Workbook

Sheet settings
A1: EM8502 ADVANCED WIZARD
A2: Author | B2: EM-Microelectronic SA | E2: User settings
A3: Date: | B3: 2025-11-17 | E3: Calculation results
A4: Description: | B4: Setup the initial value of the configuration registers | E4: =IF(COUNTIF('register map'!F3:F28,"")<>26,messages!A64,IF(COUNTIF(F10:F160,"ERROR*")>0,messages!A41,IF(COUNTIF(F10:F160,"WARNING*")>0,messages!A66,messages!A78))) -> OK
A5: Revision: | B5: 2.3
A6: Configuration description:
A7: Parameter | B7: Value | C7: Unit | D7: Related Register Name | E7: Value | F7: Check | G7: Note | H7: DEC | I7: WEIGHT | K7: User comments
A8: HARVESTER SETTINGS
A9: Harvester type: refer to the chapter 2.1 of e8500_app_note_hrv_param.pdf
A10: Harvester type | B10: Solar cell | C10: -- | F10: =messages!A78 -> OK
A11: MPPT ratio | B11: 0.8 | C11: -- | D11: reg_mppt_ratio | E11: =HLOOKUP(B11,constants!B2:N4,3,FALSE) -> 0x06 | F11: =IF(B10="TEG",IF(B11=0.5,messages!A78,messages!A50),IF(B10="Other",messages!A78,IF(settings!B11<constants!G2,messages!A51,IF(settings!B11>constants!I2,messages!A51,messages!A78)))) -> OK
A13: Battery over voltage control
A14: HRV check method | B14: =IF(B10=constants!B1,constants!C8,constants!B8) -> Short-cut current | C14: -- | D14: reg_v_hrv_cfg.hrv_check_vld | E14: =HLOOKUP(B14,constants!$B$8:$C$9,2,FALSE) -> '0' | F14: =IF(AND(B14=constants!B8,settings!B10=constants!B1),messages!A53,IF(AND(settings!B14=constants!C8,settings!B10=constants!C1),messages!A52,messages!A78)) -> OK | G14: Open voltage is preferable for TEG ; Short cut current preferable for Solar cell | H14: =HLOOKUP(B14,constants!$B$8:$C$10,3,FALSE) -> 0 | I14: 64
A15: Maximum battery voltage v_bat_max_hi | B15: 2.8 | C15: V | D15: reg_v_bat_max_hi | E15: =IF((TRUNC(B15/constants!D64-1)+1)>9,"0x"&DEC2HEX(TRUNC(B15/constants!D64-1)+1),"0x0"&DEC2HEX(TRUNC(B15/constants!D64-1)+1)) -> 0x24 | F15: =IF(B15>constants!D67,messages!A14,messages!A78) -> OK | H15: =(TRUNC(B15/constants!D64-1)+1) -> 36 | I15: 1
A16: Harvester check settings for a TEG: refer to the chapter 2.2.1 of e8500_app_note_hrv_param.pdf
A17: =IF(B14=constants!C8,"Unused","HRV resistivity (Rteg)") -> Unused | B17: 300 | C17: Ω | F17: =IF(AND(B14=constants!B8,B15<=2,B17>MAX(constants!B15:B18)),messages!A5,IF(AND(B14=constants!B8,settings!B15<=3,B15>2,settings!B17>MAX(constants!C15:C18)),messages!A4,IF(AND(B14=constants!B8,B15>3,settings!B17>MAX(constants!D15:D18)),messages!A3,IF(B14<>constants!B8,messages!A79,messages!A78)))) -> OK (Not applicable)
A18: Minimum HRV open voltage | B18: =IF(B14<>constants!B8,messages!A79,IF(B10=constants!C1,IF(B15<=2,IF(B17<=constants!B15,constants!E15,IF(settings!B17<=constants!B16,constants!E16,IF(settings!B17<=constants!B17,constants!E17,IF(settings!B17<=constants!B18,constants!E18,constants!B19)))),IF(B15<=3,IF(B17<=constants!C15,constants!E15,IF(settings!B17<=constants!C16,constants!E16,IF(settings!B17<=constants!C17,constants!E17,IF(settings!B17<=constants!C18,constants!E18,constants!C19)))),IF(B17<=constants!D15,constants!E15,IF(settings!B17<=constants!D16,constants!E16,IF(settings!B17<=constants!D17,constants!E17,IF(settings!B17<=constants!D18,constants!E18,constants!D19)))))),messages!A79)) -> OK (Not applicable) | C18: mV | D18: reg_v_hrv_cfg.v_hrv_min | E18: =IF(B18<>messages!A79,VLOOKUP(B18,constants!E15:F18,2,FALSE),"0x01") -> 0x01 | G18: Below that level the EM8500 DCDC is deactivated | H18: =IF(B18<>messages!A79,VLOOKUP(B18,constants!E15:G18,3,FALSE),1) -> 1 | I18: 1
A19: Pin_min | B19: =IF(B18=messages!A79,messages!A79,IF(B18=constants!B19,constants!B19,1000000*(0.001*settings!B18)^2/(4*settings!B17))) -> OK (Not applicable) | C19: uW | G19: Minimum power the EM8500 can harvest in such condition
A20: Solar cell definition: refer to the chapter 2.2.2 of "App Note 85 Configuration"
A21: Voc_min | B21: 3.6 | C21: V | F21: =IF(B21>constants!D22,messages!A6,IF(B21<constants!B22,messages!A7,messages!A78)) -> OK | G21: Total solar cell segments open voltage
A22: Vmpp_min | B22: =IF(B21<0.2,0.2,VLOOKUP(ROUND(B21*B11,1),constants!A27:A40,1,TRUE)) -> 1.45 | C22: V | F22: =IF(B14<>constants!C8,messages!A79,IF(B15<=2,IF(VLOOKUP(B22,constants!A27:B40,2,FALSE)=constants!B19,messages!A8,messages!A78),IF(B15<=3,IF(VLOOKUP(B22,constants!A27:C40,3,FALSE)=constants!B19,messages!A8,messages!A78),IF(VLOOKUP(B22,constants!A27:D40,4,FALSE)=constants!B19,messages!A8,messages!A78)))) -> OK
A23: Ihrv_lim absolute min | B23: =IF(B14<>constants!C8,messages!A79,IF(settings!F22<>messages!A78,constants!B19,IF(settings!B15<=2,VLOOKUP(settings!B22,constants!A27:B40,2,FALSE),IF(settings!B15<=3,VLOOKUP(settings!B22,constants!A27:C40,3,FALSE),VLOOKUP(settings!B22,constants!A27:D40,4,FALSE))))) -> 1 | C23: uA | G23: Below that level the EM8500 DCDC is deactivated
A24: Ihrv_lim effective | B24: 3 | C24: uA | D24: reg_hrv_check_lvl | E24: =IF(B14<>constants!C8,"0x00",IF(B24<B23,constants!B19,HLOOKUP(settings!B24,constants!B42:Q43,2,FALSE))) -> 0x02 | F24: =IF(settings!B14<>constants!C8,messages!A79,IF(settings!B24<settings!B23,messages!A10,messages!A78)) -> OK | G24: Minimum short-cut current under which harvesting stops
A25: Pin_min | B25: =IF(B14<>constants!C8,messages!A79,IF(settings!F22<>messages!A78,constants!B19,settings!B24*settings!B22)) -> 4.35 | C25: uW
A27: Harvester check timing settings: refer to the chapter 2.2.3 & 2.2.4 of "App Note 85 Configuration"
A28: HRV capacitor (Chrv) | B28: 2.2 | C28: uF | F28: =IF(OR(B28<constants!B46,B28>constants!D46),messages!A9,messages!A78) -> OK
A29: Thrv_meas ideal | B29: =1 -> 1 | C29: ms
A30: Thrv_meas effective | B30: 64 | C30: ms | D30: reg_t_hrv_meas | E30: =VLOOKUP(B30,constants!B51:D58,3,FALSE) -> 0x02 | F30: =IF(B29>constants!B58,messages!A11,IF(B29>B30,messages!A12,messages!A78)) -> OK | G30: ="Shall be closer and just higher than Thrv_meas_ideal: "&IF(B29<=constants!B51,constants!B51,IF(B29<=constants!B52,constants!B52,IF(B29<=constants!B53,constants!B53,IF(B29<=constants!B54,constants!B54,IF(B29<=constants!B55,constants!B55,IF(B29<=constants!B56,constants!B56,IF(B29<=constants!B57,constants!B57,constants!B58)))))))&" ms" -> Shall be closer and just higher than Thrv_meas_ideal: 16 ms
A31: Thrv_period | B31: 1024 | C31: ms | D31: reg_t_hrv_period | E31: =VLOOKUP(B31,constants!C51:D58,2,FALSE) -> 0x02 | F31: =IF(B31<2*$B$30,messages!$A$13,IF(B31<16*$B$30,messages!$A$54,messages!$A$78)) -> OK
A32: Efficiency loss @ Pin_min due to HRV control | B32: =B30/B31 -> 0.0625 | C32: %
A33: Thrv_period in HRV LOW mode | B33: 1024 | C33: ms | D33: reg_t_hrv_low_cfg.t_hrv_low_period | E33: =VLOOKUP(B33,constants!C51:E58,3,FALSE) -> "010" | F33: =messages!A68&TRUNC(30000/(8*B33))/10&" nW" -> Note: the power consumption of the HRV supervisory & sampling in HRV LOW mode is: 0.3 nW | H33: =VLOOKUP(B33,constants!C51:F58,4,FALSE) -> 2 | I33: 16
A34: STORAGE SUPERVISORY SETTINGS
A35: Operating mode selection: refer to the chapter 4 of "App Note 85 Storage"
A36: Rechargeable battery | B36: Yes | C36: -- | D36: reg_lts_cfg.prim_cell | E36: =IF(B36=constants!$B$60,"'0'","'1'") -> '0' | G36: Set Yes if LTS is a secondary cell or a super capacitor ; set No if LTS is a primary cell | H36: =IF(B36=constants!$B$60,0,1) -> 0 | I36: 2
A37: Under voltage protection | B37: Yes | C37: -- | D37: reg_lts_cfg.no_bat_protect | E37: =IF(B37=constants!$B$60,"'0'","'1'") -> '0' | F37: =IF(B37=constants!C60,messages!A56,messages!A78) -> OK | G37: Set Yes if LTS shall be disconnected in under voltage condition to protect the battery | H37: =IF(B37=constants!$B$60,0,1) -> 0 | I37: 1
A38: LTS connected to STS at start-up (in prim_cell mode only) | B38: No | C38: -- | D38: reg_lts_cfg.prim_cell_connect | E38: =IF(B38=constants!$B$60,"'1'","'0'") -> '0' | G38: Set Yes if LTS shall be connected to STS at start-up or after a soft-reset | H38: =IF(B38=constants!$B$60,1,0) -> 0 | I38: 4
A40: Absolute min/max selection: refer to the chapter 5 of "App Note 85 Storage"
A41: Maximum battery voltage v_bat_max_hi | B41: =B15 -> 2.8 | C41: V | D41: reg_v_bat_max_hi | E41: =IF(H41>9,"0x"&DEC2HEX(H41),"0x0"&DEC2HEX(H41)) -> 0x24 | F41: =IF(B41<=B43+3*constants!C64,messages!A18,messages!A78) -> OK | G41: Set the absolute maximum voltage the battery can afford | H41: =H15 -> 36 | I41: 1
A42: Maximum application voltage: | B42: 4.2 | C42: V | D42: reg_v_apl_max_hi | E42: =IF(H42>9,"0x"&DEC2HEX(H42),"0x0"&DEC2HEX(H42)) -> 0x3F | F42: =IF(AND(H42<>63,H42>=(H41-1)),messages!A34,IF(B42<=B43+3*constants!C64,messages!A15,IF(B42>constants!D67,messages!A16,messages!A78))) -> OK | G42: Set the absolute maximum voltage the application can afford | H42: =IF(B42<B41,(TRUNC(B42/constants!D64-1)+1),63) -> 63 | I42: 1
A43: Minimum battery and application voltage: | B43: 1.7 | C43: V | D43: reg_v_bat_min_lo | E43: =IF(H43>9,"0x"&DEC2HEX(H43),"0x0"&DEC2HEX(H43)) -> 0x18 | F43: =IF(B43<constants!B68,messages!A17,messages!A78) -> OK | G43: Set the absolute minimum voltage the battery can afford | H43: =(TRUNC(B43/constants!B64-1)+1) -> 24 | I43: 1
A45: Csts capacitor selection: refer to the chapter 6 of "App Note 85 Storage"
A46: STS always connected to LTS | B46: Yes | C46: -- | F46: =IF(AND(B36=constants!C60,B46=constants!B60),messages!A55,messages!A78) -> OK | G46: Set No in primary cell mode or if STS shall supply the application without any help from LTS in some condition
A47: Capacitor on VSUP (Csup) | B47: 1 | C47: uF | F47: =IF(OR(B96=constants!B60,settings!H42<63),IF(B47<constants!B71,messages!A19,messages!$A$78),messages!A78) -> OK | G47: Minimum capacity allowed is 1uF
A48: Capacitor on VAUX[0] (Caux0) | B48: 1 | C48: uF | F48: =IF(OR(B105=constants!$B$124,AND(settings!B105=constants!$D$124,settings!$H$42=63),AND(B105=constants!$E$124,$H$42=63)),messages!$A$78,IF(B48<constants!B72,messages!A20,messages!$A$78)) -> OK | G48: Minimum capacity allowed is 1uF if VAUX[0] used
A49: Capacitor on VAUX[1] (Caux1) | B49: 1 | C49: uF | F49: =IF(OR(B106=constants!$B$124,AND(settings!B106=constants!$D$124,settings!$H$42=63),AND(B106=constants!$E$124,$H$42=63)),messages!$A$78,IF(B49<constants!B73,messages!A21,messages!$A$78)) -> OK | G49: Minimum capacity allowed is 1uF if VAUX[1] used
A50: Capacitor on VAUX[2] (Caux2) | B50: 1 | C50: uF | F50: =IF(OR(B107=constants!$B$124,AND(settings!B107=constants!$D$124,settings!$H$42=63),AND(B107=constants!$E$124,$H$42=63)),messages!$A$78,IF(B50<constants!B74,messages!A22,messages!$A$78)) -> OK | G50: Minimum capacity allowed is 1uF if VAUX[2] used
A51: Csup switched on with other cap | B51: Yes | C51: -- | G51: Set "Yes" if Csup can be enabled together with others VAUX
A52: Caux0 switched on with other cap | B52: Yes | C52: -- | G52: Set "Yes" if Caux0 can be enabled together with VSUP or others VAUX
A53: Caux1 switched on with other cap | B53: No | C53: -- | G53: Set "Yes" if Caux1 can be enabled together with VSUP or others VAUX
A54: Caux2 switched on with other cap | B54: No | C54: -- | G54: Set "Yes" if Caux2 can be enabled together with VSUP or others VAUX
A55: Minimum Csts allowed | B55: =IF(B46=constants!C60,10*(IF(B51=constants!B60,B47,0)+IF(B52=constants!B60,B48,0)+IF(B53=constants!B60,B49,0)+IF(B54=constants!B60,B50,0)),constants!B75) -> 10 | C55: uF
A56: Capacitor on STS (Csts) | B56: 47 | C56: uF | F56: =IF(B56<B55,messages!A23,messages!A78) -> OK
A58: STS survey period: refer to the chapter 7 of "App Note 85 Storage"
A59: Minimum input power: Pin_min | B59: =IF(B14=constants!B8,settings!B19,settings!B25) -> 4.35 | C59: uW
A60: Maximum power loss @Pin_min in VLD allowed: VLDloss | B60: 0.2 | C60: %
A61: Minimum Tsts_period | B61: =IF((0.000003/(4*(B59/1000000)*B60))<1,1,0.000003/(4*(B59/1000000)*B60)) -> 1 | C61: ms | F61: =IF(B61>constants!B85,messages!A25,messages!A78) -> OK
A62: Effective Tsts_period | B62: 1 | C62: ms | D62: reg_t_sts_period | E62: ="0x0"&VLOOKUP(B62,constants!B78:D85,3,FALSE) -> 0x00 | F62: =IF(B62<B61,messages!A26,messages!A78) -> OK | G62: ="Shall be closer and just higher than Thrv_meas_ideal: "&IF(B61<=constants!B78,constants!B78,IF(B61<=constants!B79,constants!B79,IF(B61<=constants!B80,constants!B80,IF(B61<=constants!B81,constants!B81,IF(B61<=constants!B82,constants!B82,IF(B61<=constants!B83,constants!B83,IF(B61<=constants!B84,constants!B84,constants!B85)))))))&" ms" -> Shall be closer and just higher than Thrv_meas_ideal: 1 ms
A64: Hysteresis v_bat_min STS/LTS disconnected: refer to the chapter 8 of "App Note 85 Storage"
A65: Max avrg. consumption of the application when STS/LTS disconnected: Imax | B65: 0.1 | C65: mA | G65: Maximum consumption of application when STS & LTS disconnected
A66: High level of v_bat_min: LTS/STS disconnected | B66: =IF(B46=constants!B60,(settings!H66+1)*constants!D64,2*(B62/1000)*(B65/1000)/(B56/1000000)+((TRUNC(B43/constants!B64-1)+1)+1)*constants!D64) -> 2.06955 | C66: V | D66: reg_v_bat_min_hi_dis | E66: =IF(H66>9,"0x"&DEC2HEX(H66),"0x0"&DEC2HEX(H66)) -> 0x1A | F66: =IF(AND(H66<H42,H66<H41),messages!A78,IF(B46="No",messages!A27,messages!A78)) -> OK | H66: =IF(B46=constants!B60,settings!H71,IF((TRUNC(B66/constants!D64-1)+1)<H71,H71,(TRUNC(B66/constants!D64-1)+1))) -> 26 | I66: 1
A67: Hysteresis v_bat_min STS/LTS connected: refer to the chapter 4 of "App Note 85 Current"
A68: Average consumption of the application when STS/LTS connected: Istd | B68: 1 | C68: mA | G68: Average consumption of application when STS & LTS connected
A69: Peak consumption of the application when STS/LTS connected: Ipeak | B69: 10 | C69: mA | G69: Peak consumption of application when STS & LTS connected
A70: Battery/super cap internal resistivity | B70: 10 | C70: Ω | G70: Internal resistivity of the battery or super cap
A71: High level of v_bat_min: LTS/STS connected | B71: =(H71+1)*constants!D64 -> 2.06955 | C71: V | D71: reg_v_bat_min_hi_con | E71: =IF(H71>9,"0x"&DEC2HEX(H71),"0x0"&DEC2HEX(H71)) -> 0x1A | F71: =IF(AND(H71<H77,H71<H80),messages!A78,messages!A29) -> OK | H71: =TRUNC((B69-B68)*(B70+constants!E201)/(constants!B64*1000))+settings!H43+1 -> 26 | I71: 1
A73: Level v_apl_max_lo: refer to the chapter 9 of "App Note 85 Storage"
A74: Maximum Vmpp | B74: 3.2 | C74: V | G74: Vmpp in best case condition (higher luminescence in case of solar cell for instance)
A75: Min LTS charge time | B75: 100 | C75: ms | G75: Minimum delay to charge LTS at maximum application consumption | H75: =TRUNC(39*constants!D64/constants!D64-1) -> 38
A76: Maximum input power from the solar cell | B76: 10 | C76: mW | G76: Maximum input power from the solar cell
A77: Low level of v_apl_max | B77: =IF(H42=63,B42,IF(B46=constants!C60,IF(4*(B62/1000)*(B76/1000)/(B56/1000000)>B42^2,constants!B19,IF((B42-SQRT(B42^2-4*(B62/1000)*(B76/1000)/(B56/1000000)))>constants!D64,SQRT(B42^2-4*(B62/1000)*(B76/1000)/(B56/1000000)),H42*constants!D64)),(H77+1)*constants!B64)) -> 4.2 | C77: V | D77: reg_v_apl_max_lo | E77: =IF(H77>15,"0x"&DEC2HEX(H77),"0x0"&DEC2HEX(H77)) -> 0x3E | F77: =IF(OR(AND(H42<>63,H77<=H66),AND(H42<>63,H77<=H71)),messages!A28,IF(B77=constants!B19,messages!A30,IF(H42=63,messages!A78,IF(B46=constants!C60,IF(OR((H77+1)*constants!D64<((B75/1000)*(B65/1000)/(B56/1000000)+B66),H77>=H42),messages!A31,messages!A78),IF(H77<=H71,messages!A32,messages!A78))))) -> OK | H77: =IF(H42=63,62,IF(B46=constants!C60,IF(B77=constants!B19,H42-1,IF((B42-SQRT(B42^2-4*(B62/1000)*(B76/1000)/(B56/1000000)))>constants!D64,(TRUNC(B77/constants!D64-1)+1),H42-1)),H42-1)) -> 62 | I77: 1
A79: Level v_bat_max_lo: refer to the chapter 10 of "App Note 85 Storage"
A80: Low level of v_bat_max | B80: =IF(H42=63,IF(B46=constants!C60,IF(4*(B62/1000)*(B76/1000)/(B56/1000000)>B41^2,constants!B19,IF((B41-SQRT(B41^2-4*(B62/1000)*(B76/1000)/(B56/1000000)))>constants!D64,SQRT(B41^2-4*(B62/1000)*(B76/1000)/(B56/1000000)),H41*constants!D64)),H41*constants!D64),H41*constants!D64) -> 2.7594 | C80: V | D80: reg_v_bat_max_lo | E80: =IF(B80=constants!B19,constants!B19,IF(H80>15,"0x"&DEC2HEX(H80),"0x0"&DEC2HEX(H80))) -> 0x23 | F80: =IF(AND(H80<=H42,H42<>63),messages!A35,IF(B80=constants!B19,messages!A33,IF(H42=63,IF(B46=constants!C60,IF(OR((H80+1)*constants!D64<((B75/1000)*(B65/1000)/(B56/1000000)+B66),H80>=H41),messages!A33,messages!A78),IF(H80<=H71,messages!A36,messages!A78)),IF(H80<=H71,messages!A36,messages!A78)))) -> OK | H80: =IF(B80=constants!B19,constants!B19,IF(H42=63,IF(B46=constants!C60,IF((B42-SQRT(B42^2-4*(B62/1000)*(B76/1000)/(B56/1000000)))>constants!D64,(TRUNC(B80/constants!D64-1)+1),H41-1),H41-1),H41-1)) -> 35 | I80: 1
A82: LTS survey period: refer to the chapter 11 of "App Note 85 Storage"
A83: Tlts_period | B83: 16 | C83: ms | D83: reg_t_lts_period | E83: ="0x0"&VLOOKUP(B83,constants!B88:D95,3,FALSE) -> 0x02 | F83: =messages!A69&(TRUNC(100*3000/(4*B83),0))/100&" nW" -> Note: the power consumption of the VLD used to measure LTS is: 46.87 nW
A84: Tlts_period in HRV LOW mode | B84: 32 | C84: ms | D84: reg_t_hrv_low_cfg.t_lts_hrv_low_period | E84: =VLOOKUP(B84,constants!B98:D105,3,FALSE) -> "010" | F84: =messages!A70&(TRUNC(100*3000/(4*B84),0))/100&" nW" -> Note: the power consumption of the VLD used to measure LTS in HRV LOW mode is: 23.43 nW | H84: =VLOOKUP(B84,constants!B98:E105,4,FALSE) -> 2 | I84: 1
A85: SUPPLY OUTPUTS VSUP, VAUX, VAUX_GND CONTROL (Supply outputs VSUP, VAUX, VAUX_GND is described in e8500_app_note_supply_control.pdf)
A86: VSUP settings: refer to the chapter 2 of "App Note 85 Supply Outputs"
A87: VSUP grounded when disabled | B87: Yes | C87: -- | D87: reg_ldo_cfg.vsup_tied_low | E87: =IF(B87=constants!$B$60,"'1'","'0'") -> '1' | H87: =IF(B87=constants!$B$60,1,0) -> 1 | I87: 128
A88: VSUP in sleep mode at start-up | B88: Yes | C88: -- | D88: reg_pwr_mgt.sleep_vsup | E88: =IF(B88=constants!$B$60,"'1'","'0'") -> '1' | F88: =IF(AND($B$88=constants!$B$60,settings!$B$94=constants!$B$109),messages!$A$65,messages!$A$78) -> OK | H88: =IF(B88=constants!$B$60,1,0) -> 1 | I88: 1
A89: VSUP disabled in HRV LOW mode | B89: No | C89: -- | D89: reg_pwr_cfg.dis_vsup_hrv_low | E89: =IF(B89=constants!$B$60,"'1'","'0'") -> '0' | F89: =IF(B89=constants!B60,messages!A58,messages!A78) -> OK | H89: =IF(B89=constants!$B$60,1,0) -> 0 | I89: 1
A90: Sleep counter delay | B90: 0 | C90: h | F90: =IF(H90>HEX2DEC("FFFFFF"),messages!A37,IF(H90=0,messages!A38,messages!A78)) -> OK | H90: =B93+1000*B92+1000*60*B91+1000*60*60*B90 -> 1000
B91: 0 | C91: min | D91: reg_t_sleep_vsup_hi | E91: =IF($F$90=messages!$A$78,IF(H91>15,"0x"&DEC2HEX(H91),"0x0"&DEC2HEX(H91)),constants!$B$19) -> 0x00 | H91: =TRUNC(H90/2^16) -> 0 | I91: 1
B92: 1 | C92: s | D92: reg_t_sleep_vsup_mid | E92: =IF($F$90=messages!$A$78,IF(H92>15,"0x"&DEC2HEX(H92),"0x0"&DEC2HEX(H92)),constants!$B$19) -> 0x03 | H92: =TRUNC((H90-H91*2^16)/(2^8)) -> 3 | I92: 1
B93: 0 | C93: ms | D93: reg_t_sleep_vsup_lo | E93: =IF($F$90=messages!$A$78,IF(H93>15,"0x"&DEC2HEX(H93),"0x0"&DEC2HEX(H93)),constants!$B$19) -> 0xE8 | H93: =H90-H91*2^16-H92*2^8 -> 232 | I93: 1
A94: Wake-up active edge selection | B94: falling edge | C94: -- | D94: reg_ext_cfg.wake_up_edge_cfg | E94: =HLOOKUP(B94,constants!B109:E110,2,FALSE) -> "01" | F94: =IF(AND($B$88=constants!$B$60,settings!$B$94=constants!$B$109),messages!$A$65,messages!$A$78) -> OK | H94: =HLOOKUP(B94,constants!B109:E111,3,FALSE) -> 1 | I94: 16
A95: Wake-up debouncer enabled | B95: Yes | C95: -- | D95: reg_ext_cfg.wake_up_deb_en | E95: =IF(B95=constants!B60,"'1'","'0'") -> '1' | H95: =IF(B95=constants!B60,1,0) -> 1 | I95: 64
A96: VSUP always connected to ULP LDO | B96: No | C96: -- | D96: reg_ldo_cfg.frc_ulp_ldo | E96: =IF(B96=constants!B60,"'1'","'0'") -> '0' | H96: =IF(B96=constants!B60,1,0) -> 0 | I96: 8
A97: ULP LDO level | B97: 2.6 | C97: V | D97: reg_ldo_cfg.v_ulp_ldo | E97: =VLOOKUP(B97,constants!B114:C121,2,FALSE) -> "111" | F97: =IF(B97>=B15,messages!A59,messages!A78) -> OK | H97: =VLOOKUP(B97,constants!B114:D121,3,FALSE) -> 7 | I97: 1
A98: VAUX settings: refer to the chapter 3 of "App Note 85 Supply Outputs"
A99: VAUX[0] used | B99: No | C99: --
A100: VAUX[1] used | B100: No | C100: --
A101: VAUX[2] used | B101: No | C101: --
A102: VAUX[0] enabled at start-up | B102: No | C102: -- | D102: reg_pwr_mgt.vaux0_en | E102: =IF(B102=constants!$B$60,"'1'","'0'") -> '0' | F102: =IF(AND(B99=constants!$C$60,settings!B102=constants!$B$60),messages!$A$40,messages!$A$78) -> OK | H102: =IF(B102=constants!$B$60,1,0) -> 0 | I102: 2
A103: VAUX[1] enabled at start-up | B103: No | C103: -- | D103: reg_pwr_mgt.vaux1_en | E103: =IF(B103=constants!$B$60,"'1'","'0'") -> '0' | F103: =IF(AND(B100=constants!$C$60,settings!B103=constants!$B$60),messages!$A$40,messages!$A$78) -> OK | H103: =IF(B103=constants!$B$60,1,0) -> 0 | I103: 4
A104: VAUX[2] enabled at start-up | B104: No | C104: -- | D104: reg_pwr_mgt.vaux2_en | E104: =IF(B104=constants!$B$60,"'1'","'0'") -> '0' | F104: =IF(AND(B101=constants!$C$60,settings!B104=constants!$B$60),messages!$A$40,messages!$A$78) -> OK | H104: =IF(B104=constants!$B$60,1,0) -> 0 | I104: 8
A105: VAUX[0] connection configuration | B105: to VDD_STS | C105: -- | D105: reg_vaux_cfg.vaux0_cfg | E105: =HLOOKUP(B105,constants!$B$124:$E$125,2,FALSE) -> "00" | F105: =IF(B99=constants!C60,messages!A78,IF(AND(B105=constants!B124,settings!B96=constants!C60,settings!H42=63),messages!A78,IF(AND(B105=constants!$C$124,$B$96=constants!$B$60,$B$97=$B$108),messages!$A$78,IF(AND($B$96=constants!$C$60,OR(B105=constants!$D$124,B105=constants!$E$124)),messages!$A$78,messages!A60)))) -> OK | G105: To get the same voltage domain for VSUP and VAUX[0]; auto + frc_ulp_ldo = 0 OR VAUX_LDO + frc_ulp_ldo = 1 | H105: =HLOOKUP(B105,constants!$B$124:$E$126,3,FALSE) -> 0 | I105: 1
A106: VAUX[1] connection configuration | B106: to VDD_STS | C106: -- | D106: reg_vaux_cfg.vaux1_cfg | E106: =HLOOKUP(B106,constants!$B$124:$E$125,2,FALSE) -> "00" | F106: =IF(B100=constants!C60,messages!A78,IF(AND(B106=constants!B124,settings!B96=constants!C60,settings!H42=63),messages!A78,IF(AND(B106=constants!$C$124,$B$96=constants!$B$60,$B$97=$B$108),messages!$A$78,IF(AND($B$96=constants!$C$60,OR(B106=constants!$D$124,B106=constants!$E$124)),messages!$A$78,messages!A61)))) -> OK | G106: To get the same voltage domain for VSUP and VAUX[1]; auto + frc_ulp_ldo = 0 OR VAUX_LDO + frc_ulp_ldo = 1 | H106: =HLOOKUP(B106,constants!$B$124:$E$126,3,FALSE) -> 0 | I106: 4
A107: VAUX[2] connection configuration | B107: to VDD_STS | C107: -- | D107: reg_vaux_cfg.vaux2_cfg | E107: =HLOOKUP(B107,constants!$B$124:$E$125,2,FALSE) -> "00" | F107: =IF(B101=constants!C60,messages!A78,IF(AND(B107=constants!B124,settings!B96=constants!C60,settings!H42=63),messages!A78,IF(AND(B107=constants!$C$124,$B$96=constants!$B$60,$B$97=$B$108),messages!$A$78,IF(AND($B$96=constants!$C$60,OR(B107=constants!$D$124,B107=constants!$E$124)),messages!$A$78,messages!A62)))) -> OK | G107: To get the same voltage domain for VSUP and VAUX[2]; auto + frc_ulp_ldo = 0 OR VAUX_LDO + frc_ulp_ldo = 1 | H107: =HLOOKUP(B107,constants!$B$124:$E$126,3,FALSE) -> 0 | I107: 16
A108: VAUX ldo level v_aux_ldo | B108: 2.2 | C108: V | D108: reg_ldo_cfg.v_vaux_ldo | E108: =VLOOKUP(B108,constants!B129:C136,2,FALSE) -> "101" | F108: =IF(B108>=B15,messages!A59,messages!A78) -> OK | H108: =VLOOKUP(B108,constants!B129:D136,3,FALSE) -> 5 | I108: 16
A109: Disable VAUX[0] in HRV LOW mode | B109: No | C109: -- | D109: reg_pwr_cfg.dis_vaux0_hrv_low | E109: =IF(B109=constants!$B$60,"'1'","'0'") -> '0' | H109: =IF(B109=constants!$B$60,1,0) -> 0 | I109: 2
A110: Disable VAUX[1] in HRV LOW mode | B110: No | C110: -- | D110: reg_pwr_cfg.dis_vaux1_hrv_low | E110: =IF(B110=constants!$B$60,"'1'","'0'") -> '0' | H110: =IF(B110=constants!$B$60,1,0) -> 0 | I110: 4
A111: Disable VAUX[2] in HRV LOW mode | B111: No | C111: -- | D111: reg_pwr_cfg.dis_vaux2_hrv_low | E111: =IF(B111=constants!$B$60,"'1'","'0'") -> '0' | H111: =IF(B111=constants!$B$60,1,0) -> 0 | I111: 8
A112: VAUX_GND settings: refer to the chapter 4 of "App Note 85 Supply Outputs"
A113: VAUX_GND[0] enabled at start-up | B113: No | C113: -- | D113: reg_pwr_mgt.vaux_gnd0_en | E113: =IF(B113=constants!$B$60,"'1'","'0'") -> '0' | H113: =IF(B113=constants!$B$60,1,0) -> 0 | I113: 16
A114: VAUX_GND[1] enabled at start-up | B114: No | C114: -- | D114: reg_pwr_mgt.vaux_gnd1_en | E114: =IF(B114=constants!$B$60,"'1'","'0'") -> '0' | H114: =IF(B114=constants!$B$60,1,0) -> 0 | I114: 32
A115: VAUX_GND[2] enabled at start-up | B115: No | C115: -- | D115: reg_pwr_mgt.vaux_gnd2_en | E115: =IF(B115=constants!$B$60,"'1'","'0'") -> '0' | H115: =IF(B115=constants!$B$60,1,0) -> 0 | I115: 64
A116: VAUX_GND[0] connection configuration | B116: whatever STS | C116: -- | D116: reg_vaux_gnd_cfg.vaux0_cfg | E116: =HLOOKUP($B116,constants!$B$138:$C$139,2,FALSE) -> '0' | G116: VAUX_GND[0] is disabled automatically when VDD_STS > v_apl_max_hi if option "Auto connect" is selected | H116: =HLOOKUP($B116,constants!$B$138:$C$140,3,FALSE) -> 0 | I116: 1
A117: VAUX_GND[1] connection configuration | B117: whatever STS | C117: -- | D117: reg_vaux_gnd_cfg.vaux1_cfg | E117: =HLOOKUP($B117,constants!$B$138:$C$139,2,FALSE) -> '0' | G117: VAUX_GND[1] is disabled automatically when VDD_STS > v_apl_max_hi if option "Auto connect" is selected | H117: =HLOOKUP($B117,constants!$B$138:$C$140,3,FALSE) -> 0 | I117: 2
A118: VAUX_GND[2] connection configuration | B118: whatever STS | C118: -- | D118: reg_vaux_gnd_cfg.vaux2_cfg | E118: =HLOOKUP($B118,constants!$B$138:$C$139,2,FALSE) -> '0' | G118: VAUX_GND[2] is disabled automatically when VDD_STS > v_apl_max_hi if option "Auto connect" is selected | H118: =HLOOKUP($B118,constants!$B$138:$C$140,3,FALSE) -> 0 | I118: 4
A119: Disable VAUX_GND[0] in HRV LOW mode | B119: No | C119: -- | D119: reg_pwr_cfg.dis_vaux_gnd0_hrv_low | E119: =IF(B119=constants!$B$60,"'1'","'0'") -> '0' | H119: =IF(B119=constants!$B$60,1,0) -> 0 | I119: 16
A120: Disable VAUX_GND[1] in HRV LOW mode | B120: No | C120: -- | D120: reg_pwr_cfg.dis_vaux_gnd1_hrv_low | E120: =IF(B120=constants!$B$60,"'1'","'0'") -> '0' | H120: =IF(B120=constants!$B$60,1,0) -> 0 | I120: 32
A121: Disable VAUX_GND[2] in HRV LOW mode | B121: No | C121: -- | D121: reg_pwr_cfg.dis_vaux_gnd2_hrv_low | E121: =IF(B121=constants!$B$60,"'1'","'0'") -> '0' | H121: =IF(B121=constants!$B$60,1,0) -> 0 | I121: 64
A122: USB AND SERIAL INTERFACE SETTINGS
A123: USB configuration:
A124: USB LDO always disabled | B124: No | C124: -- | D124: reg_pwr_cfg.usb_ldo_frc_dis | E124: =IF(B124=constants!$B$60,"'1'","'0'") -> '0' | G124: Disable USB LDO in debug mode; VDD_USB does not support VDD_STS even if USB cable is connected | H124: =IF(B124=constants!$B$60,1,0) -> 0 | I124: 128
A125: USB forces HRV_LOW Hi-Z | B125: No | C125: -- | D125: reg_ext_cfg.usb_frc_hrv_low_hiz | E125: =IF(B125=constants!$B$60,"'1'","'0'") -> '0' | G125: HRV_LOW pin is Hi-Z when USB detected if Yes | H125: =IF(B125=constants!$B$60,1,0) -> 0 | I125: 8
A126: USB forces BAT_LOW Hi-Z | B126: No | C126: -- | D126: reg_ext_cfg.usb_frc_bat_low_hiz | E126: =IF(B126=constants!$B$60,"'1'","'0'") -> '0' | G126: BAT_LOW pin is Hi-Z when USB detected if Yes | H126: =IF(B126=constants!$B$60,1,0) -> 0 | I126: 4
A127: USB battery charger current source level | B127: 5 | C127: mA | D127: reg_ext_cfg.usb_crt_src_sel | E127: =HLOOKUP(B127,constants!B142:E143,2,FALSE) -> "01" | G127: USB current source disabled if 0mA selected | H127: =HLOOKUP(B127,constants!B142:E144,3,FALSE) -> 1 | I127: 1
A128: Serial interface settings:
A129: SDA slope control | B129: Standard | C129: -- | D129: reg_ext_cfg.sdi_slopectrl | E129: =IF($B129=constants!$B$147,"'0'","'1'") -> '0' | G129: Set Hi-speed only if I2C is used in Hi-speed mode and if VSUP is higher than 1.8V | H129: =IF($B129=constants!$B$147,0,1) -> 0 | I129: 128
A130: SPI configuration | B130: 4 wires | C130: -- | D130: reg_spi_i2c_cfg.spi_3w_en | E130: =HLOOKUP(B130,constants!B148:C149,2,FALSE) -> '0' | G130: If 3 wires is selected, input & output data share the same IO MOSI_SDA | H130: =HLOOKUP(B130,constants!B148:C150,3,FALSE) -> 0 | I130: 128
A131: I2C address | B131: 77 | C131: hex | D131: reg_spi_i2c_cfg.i2c_addr | E131: =IF(J131>127,constants!B19,IF(J131>15,"0x"&DEC2HEX(J131),"0x0"&DEC2HEX(J131))) -> 0x77 | F131: =IF(HEX2DEC(B131)>127,messages!A39,messages!A78) -> OK | H131: =IF(E131=constants!B19,0,HEX2DEC(settings!B131)) -> 119 | I131: 1 | J131: =IF(C131=constants!$B$152,HEX2DEC(B131),IF(C131=constants!$C$152,HEX2DEC(DEC2HEX(B131)),BIN2DEC(B131))) -> 119
A132: FREE EEPROM AREA
A133: Free EEPROM area settings:
A134: 126 | B134: FF | C134: hex | D134: -- | E134: =IF(J134>15,"0x"&DEC2HEX(J134),"0x0"&DEC2HEX(J134)) -> 0xFF | G134: EEPROM area free for user | J134: =IF(C134=constants!$B$152,HEX2DEC(B134),IF(C134=constants!$C$152,HEX2DEC(DEC2HEX(B134)),BIN2DEC(B134))) -> 255
A135: =A134+101 -> 227 | B135: FF | C135: hex | D135: -- | E135: =IF(J135>15,"0x"&DEC2HEX(J135),"0x0"&DEC2HEX(J135)) -> 0xFF | G135: EEPROM area free for user | J135: =IF(C135=constants!$B$152,HEX2DEC(B135),IF(C135=constants!$C$152,HEX2DEC(DEC2HEX(B135)),BIN2DEC(B135))) -> 255
A136: =A135+101 -> 328 | B136: FF | C136: hex | D136: -- | E136: 0xFF | G136: EEPROM area free for user | J136: =IF(C136=constants!$B$152,HEX2DEC(B136),IF(C136=constants!$C$152,HEX2DEC(DEC2HEX(B136)),BIN2DEC(B136))) -> 255
A137: 429 | B137: FF | C137: hex | D137: -- | E137: 0xFF | G137: EEPROM area free for user | J137: =IF(C137=constants!$B$152,HEX2DEC(B137),IF(C137=constants!$C$152,HEX2DEC(DEC2HEX(B137)),BIN2DEC(B137))) -> 255
A138: 530 | B138: FF | C138: hex | D138: -- | E138: 0xFF | G138: EEPROM area free for user | J138: =IF(C138=constants!$B$152,HEX2DEC(B138),IF(C138=constants!$C$152,HEX2DEC(DEC2HEX(B138)),BIN2DEC(B138))) -> 255
A139: 631 | B139: FF | C139: hex | D139: -- | E139: 0xFF | G139: EEPROM area free for user | J139: =IF(C139=constants!$B$152,HEX2DEC(B139),IF(C139=constants!$C$152,HEX2DEC(DEC2HEX(B139)),BIN2DEC(B139))) -> 255
A140: 732 | B140: FF | C140: hex | D140: -- | E140: 0xFF | G140: EEPROM area free for user | J140: =IF(C140=constants!$B$152,HEX2DEC(B140),IF(C140=constants!$C$152,HEX2DEC(DEC2HEX(B140)),BIN2DEC(B140))) -> 255
A141: 833 | B141: FF | C141: hex | D141: -- | E141: 0xFF | G141: EEPROM area free for user | J141: =IF(C141=constants!$B$152,HEX2DEC(B141),IF(C141=constants!$C$152,HEX2DEC(DEC2HEX(B141)),BIN2DEC(B141))) -> 255
A142: 934 | B142: FF | C142: hex | D142: -- | E142: 0xFF | G142: EEPROM area free for user | J142: =IF(C142=constants!$B$152,HEX2DEC(B142),IF(C142=constants!$C$152,HEX2DEC(DEC2HEX(B142)),BIN2DEC(B142))) -> 255
A143: 1035 | B143: FF | C143: hex | D143: -- | E143: 0xFF | G143: EEPROM area free for user | J143: =IF(C143=constants!$B$152,HEX2DEC(B143),IF(C143=constants!$C$152,HEX2DEC(DEC2HEX(B143)),BIN2DEC(B143))) -> 255
A144: 1136 | B144: FF | C144: hex | D144: -- | E144: 0xFF | G144: EEPROM area free for user | J144: =IF(C144=constants!$B$152,HEX2DEC(B144),IF(C144=constants!$C$152,HEX2DEC(DEC2HEX(B144)),BIN2DEC(B144))) -> 255
A145: 1237 | B145: FF | C145: hex | D145: -- | E145: 0xFF | G145: EEPROM area free for user | J145: =IF(C145=constants!$B$152,HEX2DEC(B145),IF(C145=constants!$C$152,HEX2DEC(DEC2HEX(B145)),BIN2DEC(B145))) -> 255
A146: 1338 | B146: FF | C146: hex | D146: -- | E146: 0xFF | G146: EEPROM area free for user | J146: =IF(C146=constants!$B$152,HEX2DEC(B146),IF(C146=constants!$C$152,HEX2DEC(DEC2HEX(B146)),BIN2DEC(B146))) -> 255
A147: 1439 | B147: FF | C147: hex | D147: -- | E147: 0xFF | G147: EEPROM area free for user | J147: =IF(C147=constants!$B$152,HEX2DEC(B147),IF(C147=constants!$C$152,HEX2DEC(DEC2HEX(B147)),BIN2DEC(B147))) -> 255
A148: 1540 | B148: FF | C148: hex | D148: -- | E148: 0xFF | G148: EEPROM area free for user | J148: =IF(C148=constants!$B$152,HEX2DEC(B148),IF(C148=constants!$C$152,HEX2DEC(DEC2HEX(B148)),BIN2DEC(B148))) -> 255
A149: 1641 | B149: FF | C149: hex | D149: -- | E149: 0xFF | G149: EEPROM area free for user | J149: =IF(C149=constants!$B$152,HEX2DEC(B149),IF(C149=constants!$C$152,HEX2DEC(DEC2HEX(B149)),BIN2DEC(B149))) -> 255
A150: 1742 | B150: FF | C150: hex | D150: -- | E150: 0xFF | G150: EEPROM area free for user | J150: =IF(C150=constants!$B$152,HEX2DEC(B150),IF(C150=constants!$C$152,HEX2DEC(DEC2HEX(B150)),BIN2DEC(B150))) -> 255
A151: 1843 | B151: FF | C151: hex | D151: -- | E151: 0xFF | G151: EEPROM area free for user | J151: =IF(C151=constants!$B$152,HEX2DEC(B151),IF(C151=constants!$C$152,HEX2DEC(DEC2HEX(B151)),BIN2DEC(B151))) -> 255
A152: 1944 | B152: FF | C152: hex | D152: -- | E152: 0xFF | G152: EEPROM area free for user | J152: =IF(C152=constants!$B$152,HEX2DEC(B152),IF(C152=constants!$C$152,HEX2DEC(DEC2HEX(B152)),BIN2DEC(B152))) -> 255
A153: 2045 | B153: FF | C153: hex | D153: -- | E153: 0xFF | G153: EEPROM area free for user | J153: =IF(C153=constants!$B$152,HEX2DEC(B153),IF(C153=constants!$C$152,HEX2DEC(DEC2HEX(B153)),BIN2DEC(B153))) -> 255
A154: 2146 | B154: FF | C154: hex | D154: -- | E154: 0xFF | G154: EEPROM area free for user | J154: =IF(C154=constants!$B$152,HEX2DEC(B154),IF(C154=constants!$C$152,HEX2DEC(DEC2HEX(B154)),BIN2DEC(B154))) -> 255
A155: 2247 | B155: FF | C155: hex | D155: -- | E155: 0xFF | G155: EEPROM area free for user | J155: =IF(C155=constants!$B$152,HEX2DEC(B155),IF(C155=constants!$C$152,HEX2DEC(DEC2HEX(B155)),BIN2DEC(B155))) -> 255
A156: 2348 | B156: FF | C156: hex | D156: -- | E156: 0xFF | G156: EEPROM area free for user | J156: =IF(C156=constants!$B$152,HEX2DEC(B156),IF(C156=constants!$C$152,HEX2DEC(DEC2HEX(B156)),BIN2DEC(B156))) -> 255
A157: 2449 | B157: FF | C157: hex | D157: -- | E157: 0xFF | G157: EEPROM area free for user | J157: =IF(C157=constants!$B$152,HEX2DEC(B157),IF(C157=constants!$C$152,HEX2DEC(DEC2HEX(B157)),BIN2DEC(B157))) -> 255
A158: 2550 | B158: FF | C158: hex | D158: -- | E158: 0xFF | G158: EEPROM area free for user | J158: =IF(C158=constants!$B$152,HEX2DEC(B158),IF(C158=constants!$C$152,HEX2DEC(DEC2HEX(B158)),BIN2DEC(B158))) -> 255
A159: 2651 | B159: FF | C159: hex | D159: -- | E159: 0xFF | G159: EEPROM area free for user | J159: =IF(C159=constants!$B$152,HEX2DEC(B159),IF(C159=constants!$C$152,HEX2DEC(DEC2HEX(B159)),BIN2DEC(B159))) -> 255
A160: 2752 | B160: FF | C160: hex | D160: -- | E160: 0xFF | G160: EEPROM area free for user | J160: =IF(C160=constants!$B$152,HEX2DEC(B160),IF(C160=constants!$C$152,HEX2DEC(DEC2HEX(B160)),BIN2DEC(B160))) -> 255

Sheet register map
A1: EM8502 register map | I1: =IF(L10<=L11,messages!A43,IF(L15<=L16,messages!A44,IF(OR(L12<=L14,L13<=L14),messages!A45,IF(OR(L12>=L16,L13>=L16),messages!A46,IF(OR(L12>=L11,L13>=L11),messages!A47,IF(MID(H22,3,2)="00",messages!A48,IF(COUNTIF(F3:F28,"")<>26,messages!A64,settings!E4))))))) -> OK
A2: RegName in EEPROM area | B2: Address | C2: Related register | D2: Calc Value [hex] | E2: DEC | F2: Overwrite [hex] | G2: Effective [hex] | I2: Physical representation
A3: eeprom0 | B3: 0x40 | C3: reg_t_hrv_period | D3: =settings!E31 -> 0x02 | G3: =IF(F3="",D3,"0x"&DEC2HEX(HEX2DEC(F3),2)) -> 0x02 | H3: =TEXT(HEX2BIN(MID(G3,3,2)),"00000000") -> 00000010 | I3: =VLOOKUP(VALUE(MID(H3,6,3)),constants!A51:C58,3,FALSE)&" ms" -> 1024 ms
A4: eeprom1 | B4: 0x41 | C4: reg_t_hrv_meas | D4: =settings!E30 -> 0x02 | G4: =IF(F4="",D4,"0x"&DEC2HEX(HEX2DEC(F4),2)) -> 0x02 | H4: =TEXT(HEX2BIN(MID(G4,3,2)),"00000000") -> 00000010 | I4: =VLOOKUP(VALUE(MID(H4,6,3)),constants!A51:B58,2,FALSE)&" ms" -> 64 ms
A5: eeprom2 | B5: 0x42 | C5: reg_t_sts_period | D5: =settings!E62 -> 0x00 | G5: 0x00 | H5: 00000000 | I5: =VLOOKUP(BIN2DEC(MID(H5,6,3)),constants!A78:B85,2,FALSE)&" ms" -> 1 ms
A6: eeprom3 | B6: 0x43 | C6: reg_t_lts_period | D6: =settings!E83 -> 0x02 | G6: 0x02 | H6: 00000010 | I6: =VLOOKUP(BIN2DEC(MID(H6,6,3)),constants!A88:B95,2,FALSE)&" ms" -> 16 ms
A7: eeprom4 | B7: 0x44 | C7: reg_v_hrv_cfg | D7: =IF(E7>15,"0x"&DEC2HEX(E7),"0x0"&DEC2HEX(E7)) -> 0x01 | E7: =(PRODUCT(settings!H14:I14)+PRODUCT(settings!H18:I18)) -> 1 | G7: 0x01 | H7: 00000001 | I7: =IF(MID(H7,2,1)="1",constants!B186,constants!B185) -> HRV check by Ishort-cut | J7: ="v_hrv_min: "&TEXT((BIN2DEC(MID(H7,3,6))+1)*constants!C64,"0.000")&" V (TYP)" -> v_hrv_min: 0.146 V (TYP)
A8: eeprom5 | B8: 0x45 | C8: reg_hrv_check_lvl | D8: =settings!E24 -> 0x02 | G8: 0x02 | H8: 00000010 | I8: =(BIN2DEC(MID(H8,5,4))+1)&" µA" -> 3 µA
A9: eeprom6 | B9: 0x46 | C9: reg_lts_cfg | D9: =IF(E9>15,"0x"&DEC2HEX(E9),"0x0"&DEC2HEX(E9)) -> 0x00 | E9: =PRODUCT(settings!H36:I36)+PRODUCT(settings!H37:I37)+PRODUCT(settings!H38:I38) -> 0 | G9: 0x00 | H9: 00000000 | I9: =IF(MID(H9,7,1)="0",constants!C190,IF(MID(H9,6,1)="0",constants!C191&" & "&constants!B190,constants!C191&" & "&constants!B191)) -> rechargeable battery | K9: =IF(MID(H9,8,1)="0",constants!D190,constants!D191) -> battery protection on
A10: eeprom7 | B10: 0x47 | C10: reg_v_bat_max_hi | D10: =settings!E41 -> 0x24 | G10: 0x24 | H10: 00100100 | I10: =TEXT((BIN2DEC(MID(H10,3,6))+1)*constants!$C$64,"0.000")&" V (TYP)" -> 2.701 V (TYP) | L10: =BIN2DEC(H10) -> 36
A11: eeprom8 | B11: 0x48 | C11: reg_v_bat_max_lo | D11: =settings!E80 -> 0x23 | G11: 0x23 | H11: 00100011 | I11: =TEXT((BIN2DEC(MID(H11,3,6))+1)*constants!$C$64,"0.000")&" V (TYP)" -> 2.628 V (TYP) | L11: 35
A12: eeprom9 | B12: 0x49 | C12: reg_v_bat_min_hi_dis | D12: =settings!E66 -> 0x1A | G12: 0x1A | H12: 00011010 | I12: =TEXT((BIN2DEC(MID(H12,3,6))+1)*constants!$C$64,"0.000")&" V (TYP)" -> 1.971 V (TYP) | L12: 26
A13: eeprom10 | B13: 0x4A | C13: reg_v_bat_min_hi_con | D13: =settings!E71 -> 0x1A | G13: 0x1A | H13: 00011010 | I13: =TEXT((BIN2DEC(MID(H13,3,6))+1)*constants!$C$64,"0.000")&" V (TYP)" -> 1.971 V (TYP) | L13: 26
A14: eeprom11 | B14: 0x4B | C14: reg_v_bat_min_lo | D14: =settings!E43 -> 0x18 | G14: 0x18 | H14: 00011000 | I14: =TEXT((BIN2DEC(MID(H14,3,6))+1)*constants!$C$64,"0.000")&" V (TYP)" -> 1.825 V (TYP) | L14: 24
A15: eeprom12 | B15: 0x4C | C15: reg_v_apl_max_hi | D15: =settings!E42 -> 0x3F | G15: 0x3F | H15: 00111111 | I15: =TEXT((BIN2DEC(MID(H15,3,6))+1)*constants!$C$64,"0.000")&" V (TYP)" -> 4.672 V (TYP) | L15: 63
A16: eeprom13 | B16: 0x4D | C16: reg_v_apl_max_lo | D16: =settings!E77 -> 0x3E | G16: 0x3E | H16: 00111110 | I16: =TEXT((BIN2DEC(MID(H16,3,6))+1)*constants!$C$64,"0.000")&" V (TYP)" -> 4.599 V (TYP) | L16: 62
A17: eeprom14 | B17: 0x4E | C17: reg_ldo_cfg | D17: =IF(E17>15,"0x"&DEC2HEX(E17),"0x0"&DEC2HEX(E17)) -> 0xD7 | E17: =PRODUCT(settings!H87:I87)+PRODUCT(settings!H96:I96)+PRODUCT(settings!H97:I97)+PRODUCT(settings!H108:I108) -> 215 | G17: 0xD7 | H17: 11010111 | I17: ="VAUX LDO: "&VLOOKUP(VALUE(MID($H$17,2,3)),constants!$A$129:$B$136,2,FALSE)&" V" -> VAUX LDO: 2.2 V | J17: ="ULP LDO: "&VLOOKUP(VALUE(MID($H$17,6,3)),constants!$A$114:$B$121,2,FALSE)&" V" -> ULP LDO: 2.6 V
A18: eeprom15 | B18: 0x4F | C18: reg_pwr_cfg | D18: =IF(E18>15,"0x"&DEC2HEX(E18),"0x0"&DEC2HEX(E18)) -> 0x00 | E18: =PRODUCT(settings!H89:I89)+PRODUCT(settings!H109:I109)+PRODUCT(settings!H110:I110)+PRODUCT(settings!H111:I111)+PRODUCT(settings!H119:I119)+PRODUCT(settings!H120:I120)+PRODUCT(settings!H121:I121)+PRODUCT(settings!H124:I124) -> 0 | G18: 0x00 | H18: 00000000
A19: eeprom16 | B19: 0x50 | C19: reg_vaux_cfg | D19: =IF(E19>15,"0x"&DEC2HEX(E19),"0x0"&DEC2HEX(E19)) -> 0x00 | E19: =PRODUCT(settings!H105:I105)+PRODUCT(settings!H106:I106)+PRODUCT(settings!H107:I107) -> 0 | G19: 0x00 | H19: 00000000
A20: eeprom17 | B20: 0x51 | C20: reg_vaux_gnd_cfg | D20: =IF(E20>15,"0x"&DEC2HEX(E20),"0x0"&DEC2HEX(E20)) -> 0x00 | E20: =PRODUCT(settings!H116:I116)+PRODUCT(settings!H117:I117)+PRODUCT(settings!H118:I118) -> 0 | G20: 0x00 | H20: 00000000
A21: eeprom18 | B21: 0x52 | C21: reg_mppt_ratio | D21: =settings!E11 -> 0x06 | G21: 0x06 | H21: 00000110 | I21: =TEXT(HLOOKUP(VALUE(MID(H21,5,4)),constants!B5:Q6,2,FALSE),"0%") -> 80%
A22: eeprom19 | B22: 0x53 | C22: reg_ext_cfg | D22: =IF(E22>15,"0x"&DEC2HEX(E22),"0x0"&DEC2HEX(E22)) -> 0x51 | E22: =PRODUCT(settings!H94:I94)+PRODUCT(settings!H95:I95)+PRODUCT(settings!H125:I125)+PRODUCT(settings!H126:I126)+PRODUCT(settings!H127:I127)+PRODUCT(settings!H129:I129) -> 81 | G22: 0x51 | H22: 01010001 | I22: =VLOOKUP(MID($H22,N$67+2,2),constants!A172:B175,2,FALSE) -> USB crt source 5 mA
A23: eeprom20 | B23: 0x54 | C23: reg_t_sleep_vsup_lo | D23: =settings!E93 -> 0xE8 | G23: 0xE8 | I23: Sleep delay
A24: eeprom21 | B24: 0x55 | C24: reg_t_sleep_vsup_mid | D24: =settings!E92 -> 0x03 | G24: 0x03 | I24: h:min:sec:ms
A25: eeprom22 | B25: 0x56 | C25: reg_t_sleep_vsup_hi | D25: =settings!E91 -> 0x00 | G25: 0x00 | I25: =L25&":"&M25&":"&N25&":"&O25 -> 0:0:1:0 | L25: =TRUNC((HEX2DEC(MID(G25,3,2))*256*256+HEX2DEC(MID(G24,3,2))*256+HEX2DEC(MID(G23,3,2)))/(1000*60*60),0) -> 0 | M25: =TRUNC((HEX2DEC(MID(G25,3,2))*256*256+HEX2DEC(MID(G24,3,2))*256+HEX2DEC(MID(G23,3,2)))/(1000*60)-L25*60,0) -> 0 | N25: =TRUNC((HEX2DEC(MID(G25,3,2))*256*256+HEX2DEC(MID(G24,3,2))*256+HEX2DEC(MID(G23,3,2)))/(1000)-L25*3600-M25*60,0) -> 1 | O25: =(HEX2DEC(MID(G25,3,2))*256*256+HEX2DEC(MID(G24,3,2))*256+HEX2DEC(MID(G23,3,2)))-N25*1000-M25*1000*60-L25*1000*60*60 -> 0
A26: eeprom23 | B26: 0x57 | C26: reg_t_hrv_low_cfg | D26: =IF(E26>15,"0x"&DEC2HEX(E26),"0x0"&DEC2HEX(E26)) -> 0x22 | E26: =PRODUCT(settings!H84:I84)+PRODUCT(settings!H33:I33) -> 34 | G26: 0x22 | H26: 00100010 | I26: ="t_hrv_low_period: "&VLOOKUP(VALUE(MID(H26,2,3)),constants!A51:C58,3,FALSE)&" ms" -> t_hrv_low_period: 1024 ms | J26: ="t_lts_hrv_low_period: "&VLOOKUP(BIN2DEC(MID(H26,6,3)),constants!A98:B105,2,FALSE)&" ms" -> t_lts_hrv_low_period: 32 ms
A27: eeprom24 | B27: 0x58 | C27: reg_spi_i2c_cfg | D27: =IF(E27>15,"0x"&DEC2HEX(E27),"0x0"&DEC2HEX(E27)) -> 0x77 | E27: =PRODUCT(settings!H130:I130)+PRODUCT(settings!H131:I131) -> 119 | G27: 0x77 | H27: 01110111 | I27: ="I2C address: "&BIN2HEX(MID(H27,2,7)) -> I2C address: 77
A28: eeprom25 | B28: 0x59 | C28: reg_pwr_mgt | D28: =IF(E28>15,"0x"&DEC2HEX(E28),"0x0"&DEC2HEX(E28)) -> 0x01 | E28: =PRODUCT(settings!H88:I88)+PRODUCT(settings!H102:I102)+PRODUCT(settings!H103:I103)+PRODUCT(settings!H104:I104)+PRODUCT(settings!H113:I113)+PRODUCT(settings!H114:I114)+PRODUCT(settings!H115:I115) -> 1 | G28: 0x01 | H28: 00000001
A29: eeprom26 | B29: 0x5A | C29: 1 | D29: =settings!E134 -> 0xFF | G29: 0xFF
A30: eeprom27 | B30: 0x5B | C30: =C29+1 -> 2 | D30: =settings!E135 -> 0xFF | G30: 0xFF
A31: eeprom28 | B31: 0x5C | C31: =C30+1 -> 3 | D31: =settings!E136 -> 0xFF | G31: 0xFF
A32: eeprom29 | B32: 0x5D | C32: 4 | D32: =settings!E137 -> 0xFF | G32: 0xFF
A33: eeprom30 | B33: 0x5E | C33: 5 | D33: =settings!E138 -> 0xFF | G33: 0xFF
A34: eeprom31 | B34: 0x5F | C34: 6 | D34: =settings!E139 -> 0xFF | G34: 0xFF
A35: eeprom32 | B35: 0x60 | C35: 7 | D35: =settings!E140 -> 0xFF | G35: 0xFF
A36: eeprom33 | B36: 0x61 | C36: 8 | D36: =settings!E141 -> 0xFF | G36: 0xFF
A37: eeprom34 | B37: 0x62 | C37: 9 | D37: =settings!E142 -> 0xFF | G37: 0xFF
A38: eeprom35 | B38: 0x63 | C38: 10 | D38: =settings!E143 -> 0xFF | G38: 0xFF
A39: eeprom36 | B39: 0x64 | C39: 11 | D39: =settings!E144 -> 0xFF | G39: 0xFF
A40: eeprom37 | B40: 0x65 | C40: 12 | D40: =settings!E145 -> 0xFF | G40: 0xFF
A41: eeprom38 | B41: 0x66 | C41: 13 | D41: =settings!E146 -> 0xFF | G41: 0xFF
A42: eeprom39 | B42: 0x67 | C42: 14 | D42: =settings!E147 -> 0xFF | G42: 0xFF
A43: eeprom40 | B43: 0x68 | C43: 15 | D43: =settings!E148 -> 0xFF | G43: 0xFF
A44: eeprom41 | B44: 0x69 | C44: 16 | D44: =settings!E149 -> 0xFF | G44: 0xFF
A45: eeprom42 | B45: 0x6A | C45: 17 | D45: =settings!E150 -> 0xFF | G45: 0xFF
A46: eeprom43 | B46: 0x6B | C46: 18 | D46: =settings!E151 -> 0xFF | G46: 0xFF
A47: eeprom44 | B47: 0x6C | C47: 19 | D47: =settings!E152 -> 0xFF | G47: 0xFF
A48: eeprom45 | B48: 0x6D | C48: 20 | D48: =settings!E153 -> 0xFF | G48: 0xFF
A49: eeprom46 | B49: 0x6E | C49: 21 | D49: =settings!E154 -> 0xFF | G49: 0xFF
A50: eeprom47 | B50: 0x6F | C50: 22 | D50: =settings!E155 -> 0xFF | G50: 0xFF
A51: eeprom48 | B51: 0x70 | C51: 23 | D51: =settings!E156 -> 0xFF | G51: 0xFF
A52: eeprom49 | B52: 0x71 | C52: 24 | D52: =settings!E157 -> 0xFF | G52: 0xFF
A53: eeprom50 | B53: 0x72 | C53: 25 | D53: =settings!E158 -> 0xFF | G53: 0xFF
A54: eeprom51 | B54: 0x73 | C54: 26 | D54: =settings!E159 -> 0xFF | G54: 0xFF
A55: eeprom52 | B55: 0x74 | C55: 27 | D55: =settings!E160 -> 0xFF | G55: 0xFF
A56: eeprom53 | B56: 0x75 | C56: reserved | D56: X | G56: X
A57: eeprom54 | B57: 0x76 | C57: reserved | D57: X | G57: X
A58: eeprom55 | B58: 0x77 | C58: reserved | D58: X | G58: X
A59: eeprom56 | B59: 0x78 | C59: reserved | D59: X | G59: X
A60: eeprom57 | B60: 0x79 | C60: reserved | D60: X | G60: X
A61: eeprom58 | B61: 0x7A | C61: reserved | D61: X | G61: X
A62: eeprom59 | B62: 0x7B | C62: reserved | D62: X | G62: X
A63: eeprom60 | B63: 0x7C | C63: reserved | D63: X | G63: X
A64: eeprom61 | B64: 0x7D | C64: reserved | D64: X | G64: X
A65: eeprom62 | B65: 0x7E | C65: reserved | D65: X | G65: X
A66: eeprom63 | B66: 0x7F | C66: reserved | D66: X | G66: X
I67: 0 | J67: 1 | K67: 2 | L67: 3 | M67: 4 | N67: 5 | O67: 6 | P67: 7

Sheet constants (hidden)
A1: Harvester type | B1: Solar cell | C1: TEG
A2: MPPT ratio | B2: =2/4 -> 0.5 | C2: =3/5 -> 0.6 | D2: =4/6 -> 0.6666666667 | E2: =5/7 -> 0.7142857143 | F2: =6/8 -> 0.75 | G2: =7/9 -> 0.7777777778 | H2: =8/10 -> 0.8 | I2: =9/11 -> 0.8181818182 | J2: =10/12 -> 0.8333333333 | K2: =11/13 -> 0.8461538462 | L2: =12/14 -> 0.8571428571 | M2: =13/15 -> 0.8666666667 | N2: =14/16 -> 0.875 | O2: =14/16 -> 0.875 | P2: =14/16 -> 0.875 | Q2: =14/16 -> 0.875
A3: reg_mppt_ratio [dec] | B3: 0 | C3: =B3+1 -> 1 | D3: =C3+1 -> 2 | E3: 3 | F3: 4 | G3: 5 | H3: 6 | I3: 7 | J3: 8 | K3: 9 | L3: 10 | M3: 11 | N3: 12 | O3: 13 | P3: 14 | Q3: 15
A4: reg_mppt_ratio [hex] | B4: ="0x0"&DEC2HEX(B3) -> 0x00 | C4: ="0x0"&DEC2HEX(C3) -> 0x01 | D4: 0x02 | E4: 0x03 | F4: 0x04 | G4: 0x05 | H4: 0x06 | I4: 0x07 | J4: 0x08 | K4: 0x09 | L4: 0x0A | M4: 0x0B | N4: 0x0C | O4: ="0x0"&DEC2HEX(O3) -> 0x0D | P4: 0x0E | Q4: 0x0F
B5: 0 | C5: 1 | D5: 10 | E5: 11 | F5: 100 | G5: 101 | H5: 110 | I5: 111 | J5: 1000 | K5: 1001 | L5: 1010 | M5: 1011 | N5: 1100 | O5: 1101 | P5: 1110 | Q5: 1111
B6: 0.5 | C6: 0.6 | D6: 0.6666666667 | E6: 0.7142857143 | F6: 0.75 | G6: 0.7777777778 | H6: 0.8 | I6: 0.8181818182 | J6: 0.8333333333 | K6: 0.8461538462 | L6: 0.8571428571 | M6: 0.8666666667 | N6: 0.875 | O6: 0.875 | P6: 0.875 | Q6: 0.875
A8: HRV check method | B8: Open voltage | C8: Short-cut current
A9: reg_v_hrv_cfg.hrv_check_vld | B9: '1' | C9: '0'
B10: 1 | C10: 0
B12: Maximum TEG internal resistivity
B13: Vout range | C13: Vout range | D13: Vout range
A14: Vov min | B14: 1.5V to 2V | C14: 2V to 3V | D14: 3V to 3.6V | E14: Vov min | F14: v_hrv_min | G14: v_hrv_min
A15: 216 | B15: 830 | C15: 410 | D15: 80 | E15: =A15 -> 216 | F15: 0x02 | G15: 2
A16: 288 | B16: 2980 | C16: 1490 | D16: 290 | E16: =A16 -> 288 | F16: 0x03 | G16: 3
A17: 359 | B17: 7770 | C17: 3880 | D17: 1160 | E17: =A17 -> 359 | F17: 0x04 | G17: 4
A18: 431 | B18: 16780 | C18: 8390 | D18: 3350 | E18: =A18 -> 431 | F18: 0x05 | G18: 5
B19: Out of range | C19: Out of range | D19: Out of range
B21: MIN | C21: TYP | D21: MAX
A22: VDD_HRV open | B22: 1.8 | C22: 3 | D22: 4.2
B24: Ihrv_lim | E24: reg_hrv_check_lvl
B25: Vout range | C25: Vout range | D25: Vout range | E25: Vout range | F25: Vout range | G25: Vout range
B26: 1.5V to 2V | C26: 2V to 3V | D26: 3V to 3.6V | E26: 1.5V to 2V | F26: 2V to 3V | G26: 3V to 3.6V
A27: 0.2 | B27: 11 | C27: Out of range | D27: Out of range | E27: 0x0A | F27: Out of range | G27: Out of range
A28: 0.3 | B28: 4 | C28: 8 | D28: 15 | E28: 0x03 | F28: 0x07 | G28: 0x0E
A29: 0.4 | B29: 3 | C29: 6 | D29: 9 | E29: 0x02 | F29: 0x05 | G29: 0x08
A30: 0.5 | B30: 3 | C30: 3 | D30: 5 | E30: 0x02 | F30: 0x02 | G30: 0x04
A31: 0.6 | B31: 2 | C31: 2 | D31: 4 | E31: 0x01 | F31: 0x01 | G31: 0x03
A32: 0.7 | B32: 2 | C32: 2 | D32: 4 | E32: 0x01 | F32: 0x01 | G32: 0x03
A33: 0.8 | B33: 2 | C33: 2 | D33: 3 | E33: 0x01 | F33: 0x01 | G33: 0x02
A34: 0.9 | B34: 2 | C34: 2 | D34: 3 | E34: 0x01 | F34: 0x01 | G34: 0x02
A35: 1 | B35: 2 | C35: 2 | D35: 3 | E35: 0x01 | F35: 0x01 | G35: 0x02
A36: 1.1 | B36: 1 | C36: 1 | D36: 2 | E36: 0x00 | F36: 0x00 | G36: 0x01
A37: 1.2 | B37: 1 | C37: 1 | D37: 2 | E37: 0x00 | F37: 0x00 | G37: 0x01
A38: 1.3 | B38: 1 | C38: 1 | D38: 2 | E38: 0x00 | F38: 0x00 | G38: 0x01
A39: 1.4 | B39: 1 | C39: 1 | D39: 2 | E39: 0x00 | F39: 0x00 | G39: 0x01
A40: 1.45 | B40: 1 | C40: 1 | D40: 2 | E40: 0x00 | F40: 0x00 | G40: 0x01
A42: Ihrv_lim [uA] | B42: 1 | C42: =B42+1 -> 2 | D42: =C42+1 -> 3 | E42: 4 | F42: 5 | G42: 6 | H42: 7 | I42: 8 | J42: 9 | K42: 10 | L42: 11 | M42: 12 | N42: 13 | O42: 14 | P42: 15 | Q42: 16
A43: reg_hrv_check_lvl | B43: ="0x0"&DEC2HEX(B42-1) -> 0x00 | C43: ="0x0"&DEC2HEX(C42-1) -> 0x01 | D43: 0x02 | E43: 0x03 | F43: 0x04 | G43: 0x05 | H43: 0x06 | I43: 0x07 | J43: 0x08 | K43: 0x09 | L43: 0x0A | M43: 0x0B | N43: 0x0C | O43: 0x0D | P43: 0x0E | Q43: 0x0F
B45: MIN | C45: TYP | D45: MAX
A46: Chrv | B46: 2.2 | C46: 4.7 | D46: 10 | E46: uF
A48: Register value | B48: Thrv_meas | C48: Thrv_period | D48: Register value | E48: Register value | F48: Register value
B49: (register : t_hrv_meas) | C49: (register : t_hrv_period ; HRV_LOW = 0)
C50: (register : t_hrv_low_period ; HRV_LOW = 1)
A51: 0 | B51: 16 | C51: 256 | D51: 0x00 | E51: "000" | F51: 0
A52: 1 | B52: =B51*2 -> 32 | C52: 512 | D52: 0x01 | E52: "001" | F52: =F51+1 -> 1
A53: 10 | B53: 64 | C53: 1024 | D53: 0x02 | E53: "010" | F53: =F52+1 -> 2
A54: 11 | B54: 128 | C54: 2048 | D54: 0x03 | E54: "011" | F54: 3
A55: 100 | B55: 256 | C55: 4096 | D55: 0x04 | E55: "100" | F55: 4
A56: 101 | B56: 512 | C56: 8192 | D56: 0x05 | E56: "101" | F56: 5
A57: 110 | B57: 1024 | C57: 16384 | D57: 0x06 | E57: "110" | F57: 6
A58: 111 | B58: 2048 | C58: 32768 | D58: 0x07 | E58: "111" | F58: 7
A60: Binary selection | B60: Yes | C60: No
A62: VLD constants
B63: MIN | C63: TYP | D63: MAX
A64: Vlvl | B64: =C64*0.95 -> 0.06935 | C64: 0.073 | D64: =C64*1.05 -> 0.07665 | E64: V
A66: Supervisory constants
A67: v_bat_max_hi | D67: 4.2 | E67: V
A68: v_bat_min_lo | B68: 1.47 | E68: V
B70: MIN | C70: TYP | D70: MAX
A71: Csup | B71: 1 | E71: uF
A72: Caux0 | B72: 1 | E72: uF
A73: Caux1 | B73: 1 | E73: uF
A74: Caux2 | B74: 1 | E74: uF
A75: Csts | B75: 10 | E75: uF
A77: STS Supervisory timings
A78: 0 | B78: 1 | C78: ms | D78: 0 | E78: 0
A79: 1 | B79: 2 | C79: ms | D79: =D78+1 -> 1 | E79: =E78+1 -> 1
A80: 2 | B80: 8 | C80: ms | D80: =D79+1 -> 2 | E80: 2
A81: 3 | B81: 16 | C81: ms | D81: 3 | E81: 3
A82: 4 | B82: 32 | C82: ms | D82: 4 | E82: 4
A83: 5 | B83: 64 | C83: ms | D83: 5 | E83: 5
A84: 6 | B84: 128 | C84: ms | D84: 6 | E84: 6
A85: 7 | B85: 256 | C85: ms | D85: 7 | E85: 7
A87: LTS Supervisory timings
A88: 0 | B88: 1 | C88: ms | D88: 0 | E88: 0
A89: 1 | B89: 4 | C89: ms | D89: =D88+1 -> 1 | E89: =E88+1 -> 1
A90: 2 | B90: 16 | C90: ms | D90: =D89+1 -> 2 | E90: 2
A91: 3 | B91: 64 | C91: ms | D91: 3 | E91: 3
A92: 4 | B92: 256 | C92: ms | D92: 4 | E92: 4
A93: 5 | B93: 1024 | C93: ms | D93: 5 | E93: 5
A94: 6 | B94: 4096 | C94: ms | D94: 6 | E94: 6
A95: 7 | B95: 16384 | C95: ms | D95: 7 | E95: 7
A97: LTS Supervisory timings
A98: 0 | B98: 2 | C98: ms | D98: "000" | E98: 0
A99: 1 | B99: 8 | C99: ms | D99: "001" | E99: =E98+1 -> 1
A100: 2 | B100: 32 | C100: ms | D100: "010" | E100: =E99+1 -> 2
A101: 3 | B101: 128 | C101: ms | D101: "011" | E101: 3
A102: 4 | B102: 512 | C102: ms | D102: "100" | E102: 4
A103: 5 | B103: 2048 | C103: ms | D103: "101" | E103: 5
A104: 6 | B104: 8192 | C104: ms | D104: "110" | E104: 6
A105: 7 | B105: 32768 | C105: ms | D105: "111" | E105: 7
A107: Tsleep unit | B107: ms | C107: s | D107: min | E107: h
A109: Wake-up edge selection | B109: no edge | C109: falling edge | D109: rising edge | E109: both edges
B110: "00" | C110: "01" | D110: "10" | E110: "11"
B111: 0 | C111: 1 | D111: 2 | E111: 3
A113: reg_ldo_cfg.v_ulp_ldo[2:0] | B113: v_ulp_ldo [V] | C113: reg_ldo_cfg.v_ulp_ldo[2:0] | D113: reg_ldo_cfg.v_ulp_ldo[2:0]
A114: 0 | B114: 1.2 | C114: "000" | D114: 0
A115: 1 | B115: 1.55 | C115: "001" | D115: =D114+1 -> 1
A116: 10 | B116: 1.65 | C116: "010" | D116: =D115+1 -> 2
A117: 11 | B117: 1.8 | C117: "011" | D117: 3
A118: 100 | B118: 2 | C118: "100" | D118: 4
A119: 101 | B119: 2.2 | C119: "101" | D119: 5
A120: 110 | B120: 2.4 | C120: "110" | D120: 6
A121: 111 | B121: 2.6 | C121: "111" | D121: 7
A124: VAUX[i] connection configuration | B124: to VDD_STS | C124: to VAUX LDO | D124: Auto, float if off | E124: Auto, grounded if off
B125: "00" | C125: "01" | D125: "10" | E125: "11"
B126: 0 | C126: 1 | D126: 2 | E126: 3
A128: reg_ldo_cfg.v_aux_ldo[2:0] | B128: v_aux_ldo [V] | C128: reg_aux_cfg.v_ulp_ldo[2:0] | D128: reg_ldo_cfg.v_aux_ldo[2:0]
A129: 0 | B129: 1.2 | C129: "000" | D129: 0
A130: 1 | B130: 1.55 | C130: "001" | D130: =D129+1 -> 1
A131: 10 | B131: 1.65 | C131: "010" | D131: =D130+1 -> 2
A132: 11 | B132: 1.8 | C132: "011" | D132: 3
A133: 100 | B133: 2 | C133: "100" | D133: 4
A134: 101 | B134: 2.2 | C134: "101" | D134: 5
A135: 110 | B135: 2.4 | C135: "110" | D135: 6
A136: 111 | B136: 2.6 | C136: "111" | D136: 7
A138: VAUX_GND[i] connection configuration | B138: whatever STS | C138: Auto connect
B139: '0' | C139: '1'
B140: 0 | C140: 1
A142: USB current | B142: 0 | C142: 5 | D142: 10 | E142: 20
B143: "00" | C143: "01" | D143: "10" | E143: "11"
B144: 0 | C144: 1 | D144: 2 | E144: 3
A147: Serial interface settings | B147: Standard | C147: Hi-speed
A148: SPI config | B148: 4 wires | C148: 3 wires
B149: '0' | C149: '1'
B150: 0 | C150: 1
A152: Data base | B152: hex | C152: dec | D152: bin
A154: vcs_hi | B154: 1.3
B156: usb_ldo_frc_dis | C156: dis_vaux_gnd2_hrv_low | D156: dis_vaux_gnd1_hrv_low | E156: dis_vaux_gnd0_hrv_low | F156: dis_vaux2_hrv_low | G156: dis_vaux1_hrv_low | H156: dis_vaux0_hrv_low | I156: dis_vsup_hrv_low
A157: 0 | B157: USB LDO on | C157: VAUX_GND2 on in HRV_LOW | D157: VAUX_GND1 on in HRV_LOW | E157: VAUX_GND0 on in HRV_LOW | F157: VAUX2 on in HRV_LOW | G157: VAUX1 on in HRV_LOW | H157: VAUX0 on in HRV_LOW | I157: VSUP on in HRV_LOW
A158: 1 | B158: USB LDO off | C158: VAUX_GND2 off in HRV_LOW | D158: VAUX_GND1 off in HRV_LOW | E158: VAUX_GND0 off in HRV_LOW | F158: VAUX2 off in HRV_LOW | G158: VAUX1 off in HRV_LOW | H158: VAUX0 off in HRV_LOW | I158: VSUP off in HRV_LOW
B161: sdi_slopectrl | C161: wake_up_deb_en | F161: usb_frc_hrv_low_hiz | G161: usb_frc_bat_low_hiz
A162: 0 | B162: I2C std speed | C162: wake-up debouncer off | F162: HRV_LOW hi-z if USB off | G162: BAT_LOW hi-z if USB off
A163: 1 | B163: I2C hi-speed | C163: wake-up debouncer on | F163: HRV_LOW hi-z if USB on | G163: BAT_LOW hi-z if USB on
B165: wake_up_edge_cfg
A166: 00 | B166: wake-up disabled
A167: 01 | B167: wake-up on falling edge
A168: 10 | B168: wake-up on rising edge
A169: 11 | B169: wake-up on both edges
B171: usb_crt_src_sel
A172: 00 | B172: USB crt source 0 mA
A173: 01 | B173: USB crt source 5 mA
A174: 10 | B174: USB crt source 10 mA
A175: 11 | B175: USB crt source 20 mA
A177: 1 | B177: SPI 3 wires
A178: 0 | B178: SPI 4 wires
B180: frc_prim_dcdc_dis | C180: vaux_gnd2_en | D180: vaux_gnd1_en | E180: vaux_gnd0_en | F180: vaux2_en | G180: vaux1_en | H180: vaux0_en | I180: sleep_vsup
A181: 0 | B181: DCDC on at start-up | C181: VAUX_GND2 off at start-up | D181: VAUX_GND1 off at start-up | E181: VAUX_GND0 off at start-up | F181: VAUX2 off at start-up | G181: VAUX1 off at start-up | H181: VAUX0 off at start-up | I181: VSUP on at start-up
A182: 1 | B182: DCDC off at start-up | C182: VAUX_GND2 on at start-up | D182: VAUX_GND1 on at start-up | E182: VAUX_GND0 on at start-up | F182: VAUX2 on at start-up | G182: VAUX1 on at start-up | H182: VAUX0 on at start-up | I182: VSUP sleep at start-up
A185: 1 | B185: HRV check by Ishort-cut
A186: 0 | B186: HRV check by Vopen-voltage
B189: prim_cell_connect | C189: prim_cell | D189: no_bat_protect
A190: 0 | B190: STS/LTS disconnet at start-up | C190: rechargeable battery | D190: battery protection on
A191: 1 | B191: STS/LTS connect at start-up | C191: non-rechargeable battery | D191: battery protection off
B194: vsup_tied_low | C194: frc_ulp_ldo
A195: 0 | B195: VSUP float when off | C195: VSUP LDO auto
A196: 1 | B196: VSUP to GND when off | C196: VSUP LDO forced
A199: Switches resistivity
A201: VDD_LTS to VDD_STS | B201: Rsw_LTS_STS | C201: VDD_STS at 3V | E201: 3.1 | G201: Ω
A202: VDD_STS to VSUP | B202: Rsw_VSUP | C202: VDD_STS at 3V | E202: 7.4 | G202: Ω
A203: VDD_STS to VAUX[0] | B203: Rsw_VAUX0 | C203: VDD_STS at 3V | E203: 4.4 | G203: Ω
A204: VDD_STS to VAUX[1] | B204: Rsw_VAUX1 | C204: VDD_STS at 3V | E204: 5.8 | G204: Ω
A205: VDD_STS to VAUX[2] | B205: Rsw_VAUX2 | C205: VDD_STS at 3V | E205: 6.4 | G205: Ω
A206: VAUX_GND[0] to VSS | B206: Rsw_GND0 | C206: VDD_STS at 3V | E206: 4.74 | G206: Ω
A207: VAUX_GND[1,2] to VSS | B207: Rsw_GND1,2 | C207: VDD_STS at 3V | E207: 5.62 | G207: Ω

Sheet messages (hidden)
A1: Exception messages
A2: ERRORS:
A3: =("ERROR: TEG resistivity cannot be higher than "&constants!D18&" Ohm when v_bat_max_hi > 3V") -> ERROR: TEG resistivity cannot be higher than 3350 Ohm when v_bat_max_hi > 3V
A4: =("ERROR: TEG resistivity cannot be higher than "&constants!C18&" Ohm when v_bat_max_hi is in the range 2V-3V") -> ERROR: TEG resistivity cannot be higher than 8390 Ohm when v_bat_max_hi is in the range 2V-3V
A5: =("ERROR: TEG resistivity cannot be higher than "&constants!B18&" Ohm when v_bat_max_hi < 2V") -> ERROR: TEG resistivity cannot be higher than 16780 Ohm when v_bat_max_hi < 2V
A6: ="ERROR: Maximum HRV open voltage higher than "&constants!D22&" V" -> ERROR: Maximum HRV open voltage higher than 4.2 V
A7: ="ERROR: Minimum HRV open voltage lower than "&constants!B22&" V" -> ERROR: Minimum HRV open voltage lower than 1.8 V
A8: ERROR: Vpp_min is too low for v_bat_max_hi range
A9: ="ERROR: Chrv is out of range "&constants!B46&"uF - "&constants!D46&"uF" -> ERROR: Chrv is out of range 2.2uF - 10uF
A10: ERROR: Effective Ihrv_lim is lower than absolute minimum allowed
A11: ERROR: t_hrv_meas longer than maximum configurable value
A12: ="ERROR: Effective t_hrv_meas shorter than "&settings!B29&" ms" -> ERROR: Effective t_hrv_meas shorter than 1 ms
A13: ERROR: t_hrv_period too short compare to t_hrv_meas
A14: ="ERROR: v_bat_max_hi is set higher than "&constants!$D$67&"V" -> ERROR: v_bat_max_hi is set higher than 4.2V
A15: ERROR: v_apl_max_hi is set lower or too close to v_bat_min_lo
A16: ="ERROR: v_apl_max_hi is set higher than "&constants!$D$67&"V" -> ERROR: v_apl_max_hi is set higher than 4.2V
A17: ="ERROR: v_bat_min_lo is set lower than "&constants!B68&"V" -> ERROR: v_bat_min_lo is set lower than 1.47V
A18: ERROR: v_bat_max_hi is set lower or too close to v_bat_min_lo
A19: ="ERROR: Csup too low, shall be at least "&constants!B71&"uF when ULP LDO is used" -> ERROR: Csup too low, shall be at least 1uF when ULP LDO is used
A20: ="ERROR: Caux0 too low, shall be at least "&constants!B72&"uF when VAUX LDO is used" -> ERROR: Caux0 too low, shall be at least 1uF when VAUX LDO is used
A21: ="ERROR: Caux1 too low, shall be at least "&constants!B73&"uF when VAUX LDO is used" -> ERROR: Caux1 too low, shall be at least 1uF when VAUX LDO is used
A22: ="ERROR: Caux2 too low, shall be at least "&constants!B74&"uF when VAUX LDO is used" -> ERROR: Caux2 too low, shall be at least 1uF when VAUX LDO is used
A23: ERROR: Csts is too low compare to the sum of decoupling capacitor switched on together
A24: ERROR: Csts is lower than 10uF
A25: ERROR: Tsts shall not be bigger than 256ms
A26: ="ERROR: Effective Tsts_period shall be higher or equal to "&CEILING(settings!B61,1)&" ms" -> ERROR: Effective Tsts_period shall be higher or equal to 1 ms
A27: ERROR: v_bat_min_hi_dis is higher or too close to v_apl_max_hi: increase Csts or increase VLDloss
A28: ERROR: v_apl_max_lo is lower or too close to v_bat_min_hi_dis or v_bat_min_hi_con: increase Csts or increase VLDloss
A29: ERROR: v_bat_min_hi_con is higher or too close to v_apl_max_lo or v_bat_max_lo : peak current too high for such battery resistivity or application voltage too low
A30: ERROR: Not enough margin between v_apl_max_lo and v_apl_max_hi: increase Csts or decrease Tsts_period
A31: ERROR: Not enough margin between v_apl_max_lo and v_bat_min_hi_dis: voltage peaks on STS too high: decrease Tlts_charge_min, Increase Csts or increase VLDloss
A32: ERROR: v_apl_max_lo is lower or too close to v_bat_min_hi_con: v_apl_max_lo is extremely low
A33: ERROR: Not enough margin between v_bat_max_lo and v_bat_min_hi_dis: voltage peaks on STS too high: decrease Tlts_charge_min, Increase Csts or increase VLDloss
A34: ERROR: Not enough margin between v_bat_max_hi and v_apl_max_hi: reduce maximum application voltage or set set v_apl_max_hi = v_bat_max_hi
A35: ERROR: Not enough margin between v_bat_max_lo and v_apl_max_hi: reduce maximum application voltage or set set v_apl_max_hi = v_bat_max_hi
A36: ERROR: v_bat_max_lo is lower or too close to v_bat_min_hi_con: v_bat_max_lo is extremely low
A37: ERROR: t_sleep_vsup is higher than the maximum delay of 4h 39min 37s 215ms
A38: ERROR: t_sleep_vsup must be higher than 0s
A39: ERROR: I2C address out of range (>7F)
A40: ERROR: shall not be enabled at start-up is unused
A41: ERROR
A42: FATAL ERRORS:
A43: FATAL ERROR: v_bat_max_hi shall be higher than v_bat_max_lo
A44: FATAL ERROR: v_apl_max_hi shall be higher than v_apl_max_lo
A45: FATAL ERROR: v_bat_min_hi shall be higher than v_bat_min_lo
A46: FATAL ERROR: v_bat_min_hi shall be lower than v_apl_max_lo
A47: FATAL ERROR: v_bat_min_hi shall be lower than v_bat_max_lo
A48: FATAL ERROR: wake_up_edge_cfg[1:0] cannot be set to "00"
A49: WARNINGS:
A50: WARNING: MPPT ratio for a TEG is usually 50%
A51: WARNING: MPPT ratio for a solar cell is usually close to 80%
A52: WARNING: Open voltage measurement method should be used to supervise a TEG
A53: WARNING: Short-cut measurement method should be used to supervise a Solar cell
A54: ="WARNING: t_hrv_period short, loss due to HRV-CHECK = "&100*64/settings!B31&"%" -> WARNING: t_hrv_period short, loss due to HRV-CHECK = 6.25%
A55: WARNING: LTS/STS shall not be always connected to each other with a non-rechargeable battery.
A56: WARNING: no under voltage protection on LTS has been set
A57: WARNING: "Rechargeable battery = No" AND "STS always connected to LTS = Yes" set together.
A58: WARNING: VSUP IS DISABLED IN HRV LOW MODE. IT IS STRONGLY RECOMMANDED TO AVOID THAT.
A59: WARNING: ULP LDO voltage level is lower than v_bat_max_lo; the ULP LDO could act as a follower, not as a regulator
A60: WARNING: VAUX[0] and VSUP could be at different voltage domain
A61: WARNING: VAUX[1] and VSUP could be at different voltage domain
A62: WARNING: VAUX[2] and VSUP could be at different voltage domain
A63: WARNING: VAUX LDO voltage level is lower than v_bat_max_lo; the VAUX LDO could act as a follower, not as a regulator
A64: WARNING: Some registers have been overwritten in the register map
A65: WARNING: WAKE-UP SHALL BE ENABLED WHEN VSUP IS IN SLEEP CONDITION AT START-UP
A66: WARNING
A67: NOTES:
A68: Note: the power consumption of the HRV supervisory & sampling in HRV LOW mode is:
A69: Note: the power consumption of the VLD used to measure LTS is:
A70: Note: the power consumption of the VLD used to measure LTS in HRV LOW mode is:
A71: START-UP
A72: MAINTAIN STS
A73: CONNECT APPLI
A74: OPERATING
A75: CONNECT LTS/STS
A77: All OK
A78: OK
A79: OK (Not applicable)
A80: N.A. short-cut method used

Sheet txt source (hidden)
A1: ='register map'!B3 -> 0x40 | B1: ='register map'!G3 -> 0x02
A2: ='register map'!B4 -> 0x41 | B2: ='register map'!G4 -> 0x02
A3: ='register map'!B5 -> 0x42 | B3: ='register map'!G5 -> 0x00
A4: ='register map'!B6 -> 0x43 | B4: ='register map'!G6 -> 0x02
A5: ='register map'!B7 -> 0x44 | B5: ='register map'!G7 -> 0x01
A6: ='register map'!B8 -> 0x45 | B6: ='register map'!G8 -> 0x02
A7: ='register map'!B9 -> 0x46 | B7: ='register map'!G9 -> 0x00
A8: ='register map'!B10 -> 0x47 | B8: ='register map'!G10 -> 0x24
A9: ='register map'!B11 -> 0x48 | B9: ='register map'!G11 -> 0x23
A10: ='register map'!B12 -> 0x49 | B10: ='register map'!G12 -> 0x1A
A11: ='register map'!B13 -> 0x4A | B11: ='register map'!G13 -> 0x1A
A12: ='register map'!B14 -> 0x4B | B12: ='register map'!G14 -> 0x18
A13: ='register map'!B15 -> 0x4C | B13: ='register map'!G15 -> 0x3F
A14: ='register map'!B16 -> 0x4D | B14: ='register map'!G16 -> 0x3E
A15: ='register map'!B17 -> 0x4E | B15: ='register map'!G17 -> 0xD7
A16: ='register map'!B18 -> 0x4F | B16: ='register map'!G18 -> 0x00
A17: ='register map'!B19 -> 0x50 | B17: ='register map'!G19 -> 0x00
A18: ='register map'!B20 -> 0x51 | B18: ='register map'!G20 -> 0x00
A19: ='register map'!B21 -> 0x52 | B19: ='register map'!G21 -> 0x06
A20: ='register map'!B22 -> 0x53 | B20: ='register map'!G22 -> 0x51
A21: ='register map'!B23 -> 0x54 | B21: ='register map'!G23 -> 0xE8
A22: ='register map'!B24 -> 0x55 | B22: ='register map'!G24 -> 0x03
A23: ='register map'!B25 -> 0x56 | B23: ='register map'!G25 -> 0x00
A24: ='register map'!B26 -> 0x57 | B24: ='register map'!G26 -> 0x22
A25: ='register map'!B27 -> 0x58 | B25: ='register map'!G27 -> 0x77
A26: ='register map'!B28 -> 0x59 | B26: ='register map'!G28 -> 0x01
A27: ='register map'!B29 -> 0x5A | B27: ='register map'!G29 -> 0xFF
A28: ='register map'!B30 -> 0x5B | B28: ='register map'!G30 -> 0xFF
A29: ='register map'!B31 -> 0x5C | B29: ='register map'!G31 -> 0xFF
A30: ='register map'!B32 -> 0x5D | B30: ='register map'!G32 -> 0xFF
A31: ='register map'!B33 -> 0x5E | B31: ='register map'!G33 -> 0xFF
A32: ='register map'!B34 -> 0x5F | B32: ='register map'!G34 -> 0xFF
A33: ='register map'!B35 -> 0x60 | B33: ='register map'!G35 -> 0xFF
A34: ='register map'!B36 -> 0x61 | B34: ='register map'!G36 -> 0xFF
A35: ='register map'!B37 -> 0x62 | B35: ='register map'!G37 -> 0xFF
A36: ='register map'!B38 -> 0x63 | B36: ='register map'!G38 -> 0xFF
A37: ='register map'!B39 -> 0x64 | B37: ='register map'!G39 -> 0xFF
A38: ='register map'!B40 -> 0x65 | B38: ='register map'!G40 -> 0xFF
A39: ='register map'!B41 -> 0x66 | B39: ='register map'!G41 -> 0xFF
A40: ='register map'!B42 -> 0x67 | B40: ='register map'!G42 -> 0xFF
A41: ='register map'!B43 -> 0x68 | B41: ='register map'!G43 -> 0xFF
A42: ='register map'!B44 -> 0x69 | B42: ='register map'!G44 -> 0xFF
A43: ='register map'!B45 -> 0x6A | B43: ='register map'!G45 -> 0xFF
A44: ='register map'!B46 -> 0x6B | B44: ='register map'!G46 -> 0xFF
A45: ='register map'!B47 -> 0x6C | B45: ='register map'!G47 -> 0xFF
A46: ='register map'!B48 -> 0x6D | B46: ='register map'!G48 -> 0xFF
A47: ='register map'!B49 -> 0x6E | B47: ='register map'!G49 -> 0xFF
A48: ='register map'!B50 -> 0x6F | B48: ='register map'!G50 -> 0xFF
A49: ='register map'!B51 -> 0x70 | B49: ='register map'!G51 -> 0xFF
A50: ='register map'!B52 -> 0x71 | B50: ='register map'!G52 -> 0xFF
A51: ='register map'!B53 -> 0x72 | B51: ='register map'!G53 -> 0xFF
A52: ='register map'!B54 -> 0x73 | B52: ='register map'!G54 -> 0xFF
A53: ='register map'!B55 -> 0x74 | B53: ='register map'!G55 -> 0xFF

Sheet chart calc (hidden)
A1: EM8500 chart illustration calculation
A2: Description | B2: The timing diagram is divided in 3 phases:
B3: -1. start-up phase (ULV DCDC or connection to LTS depending if STS/LTS can be disconnected)
B4: -2. STS maintaining if STS and LTS are disconnected otherwise operating mode
B5: -3. operating mode, LTS and STS connected
A7: Rechargeable battery | B7: =settings!B36 -> Yes
A8: STS always connected to LTS | B8: =settings!B46 -> Yes | C8: STS/LTS unconnected | J8: STS/LTS connected
A9: VLDlsb | B9: =constants!C64 -> 0.073 | D9: =IF(B12=-1,B11,B13) -> 2.628 | E9: 1.25 | K9: =B10 -> 2.701 | L9: 2
A10: ="v_bat_max_hi ("&TEXT(B10,"0.00")&")" -> v_bat_max_hi (2.70) | B10: =('register map'!L10+1)*'chart calc'!B9 -> 2.701 | D10: =B18 -> 1.3 | E10: 1 | K10: =F76 -> 2.2995 | L10: 1
A11: ="v_bat_max_lo ("&TEXT(B11,"0.00")&")" -> v_bat_max_lo (2.63) | B11: =('register map'!L11+1)*B9 -> 2.628 | C11: SLOPE1 | D11: =SLOPE(D9:D10,E9:E10) -> 5.312 | J11: SLOPE1 | K11: =SLOPE(K9:K10,L9:L10) -> 0.4015
A12: ="v_apl_max_hi ("&TEXT(B12,"0.00")&")" -> v_apl_max_hi (-1.00) | B12: =IF('register map'!L15>'register map'!L10,-1,('register map'!L15+1)*B9) -> -1 | C12: INTERCEPT1 | D12: =INTERCEPT(D9:D10,E9:E10) -> -4.012 | J12: INTERCEPT1 | K12: =INTERCEPT(K9:K10,L9:L10) -> 1.898
A13: ="v_apl_max_lo ("&TEXT(B13,"0.00")&")" -> v_apl_max_lo (-1.00) | B13: =IF('register map'!L15>'register map'!L10,-1,('register map'!L16+1)*B9) -> -1 | D13: =B16 -> 1.971 | E13: 1.5 | G13: =(B16+G14)/2 -> 1.3105 | H13: 1.5 | K13: =B11 -> 2.628 | L13: 2.5
A14: ="v_bat_min_hi_dis ("&TEXT(B14,"0.00")&")" -> v_bat_min_hi_dis (1.97) | B14: =('register map'!L12+1)*B9 -> 1.971 | D14: =D9 -> 2.628 | E14: 1.25 | G14: =D201 -> 0.65 | H14: 1.25 | K14: =K9 -> 2.701 | L14: 2
A15: ="v_bat_min_hi_con ("&TEXT(B15,"0.00")&")" -> v_bat_min_hi_con (1.97) | B15: =('register map'!L13+1)*B9 -> 1.971 | C15: SLOPE2 | D15: =SLOPE(D13:D14,E13:E14) -> -2.628 | G15: =SLOPE(G13:G14,H13:H14) -> 2.642 | J15: SLOPE2 | K15: =SLOPE(K13:K14,L13:L14) -> -0.146
A16: ="v_bat_min_hi ("&TEXT(B16,"0.00")&")" -> v_bat_min_hi (1.97) | B16: =IF(B8="No",B14,B15) -> 1.971 | C16: INTERCEPT2 | D16: =INTERCEPT(D13:D14,E13:E14) -> 5.913 | G16: =INTERCEPT(G13:G14,H13:H14) -> -2.6525 | J16: INTERCEPT2 | K16: =INTERCEPT(K13:K14,L13:L14) -> 2.993
A17: ="v_bat_min_lo ("&TEXT(B17,"0.00")&")" -> v_bat_min_lo (1.83) | B17: =('register map'!L14+1)*B9 -> 1.825 | D17: =D14 -> 2.628 | E17: 1.75 | K17: =K14 -> 2.701 | L17: 3
A18: ="Vcs_hi ("&TEXT(B18,"0.00")&")" -> Vcs_hi (1.30) | B18: =constants!B154 -> 1.3 | D18: =D13 -> 1.971 | E18: 1.5 | K18: =K13 -> 2.628 | L18: 2.5
C19: SLOPE3 | D19: =SLOPE(D17:D18,E17:E18) -> 2.628 | J19: SLOPE3 | K19: =SLOPE(K17:K18,L17:L18) -> 0.146
A20: ULP LDO | B20: =settings!B97 -> 2.6 | C20: INTERCEPT3 | D20: =INTERCEPT(D17:D18,E17:E18) -> -1.971 | J20: INTERCEPT3 | K20: =INTERCEPT(K17:K18,L17:L18) -> 2.263
A21: VAUX LDO | B21: =settings!B108 -> 2.2 | D21: =D18 -> 1.971 | E21: 2 | G21: =D21 -> 1.971 | H21: 2
A22: Force ULP LDO | B22: =settings!B96 -> No | D22: =D17 -> 2.628 | E22: 1.75 | G22: =G13 -> 1.3105 | H22: 1.75
C23: SLOPE4 | D23: =SLOPE(D21:D22,E21:E22) -> -2.628 | G23: =SLOPE(G21:G22,H21:H22) -> 2.642
C24: INTERCEPT4 | D24: =INTERCEPT(D21:D22,E21:E22) -> 7.227 | G24: =INTERCEPT(G21:G22,H21:H22) -> -3.313
D27: =B10 -> 2.701 | E27: 2.25
A28: v_bat_max_hi (2.88) | D28: =D21 -> 1.971 | E28: 2
A29: v_bat_max_lo | C29: SLOPE4 | D29: =SLOPE(D27:D28,E27:E28) -> 2.92 | I29: 0.3
A30: v_apl_max_hi | C30: INTERCEPT4 | D30: =INTERCEPT(D27:D28,E27:E28) -> -3.869 | G30: =messages!A71 -> START-UP | H30: 0.5 | I30: =$B$10+I29 -> 3.001 | J30: =7 -> 7
A31: v_apl_max_lo | D31: =B11 -> 2.628 | E31: 2.5 | G31: =IF(B8=constants!C60,messages!A72,messages!A73) -> CONNECT APPLI | H31: 1.5 | I31: =I30 -> 3.001 | J31: =7 -> 7
A32: v_bat_min_hi_dis | D32: =D27 -> 2.701 | E32: 2.25 | G32: =IF(B7=constants!B60,messages!A74,messages!A75) -> OPERATING | H32: 2.5 | I32: =I31 -> 3.001 | J32: =7 -> 7
A33: v_bat_min_hi_con | C33: SLOPE5 | D33: =SLOPE(D31:D32,E31:E32) -> -0.292
A34: v_bat_min_hi | C34: INTERCEPT5 | D34: =INTERCEPT(D31:D32,E31:E32) -> 3.358
A35: v_bat_min_lo | D35: =D32 -> 2.701 | E35: 2.75
A36: Vcs_hi
G39: =IF(B13=-1,B11,B13) -> 2.628 | H39: 1.25
D40: =D31 -> 2.628 | E40: 2.5 | G40: =G175 -> 2.1855 | H40: 1
C41: SLOPE5 | D41: =SLOPE(D35:D40,E35:E40) -> 0.292 | G41: SLOPE LTS | H41: =SLOPE(G39:G40,H39:H40) -> 1.77
C42: INTERCEPT5 | D42: =INTERCEPT(D35:D40,E35:E40) -> 1.898 | G42: INTERCEPT LTS | H42: =INTERCEPT(G39:G40,H39:H40) -> 0.4155
D43: =D40 -> 2.628 | E43: 3
D44: =D35 -> 2.701 | E44: 2.75 | G44: =B16 -> 1.971 | H44: 1.5
C45: SLOPE5 | D45: =SLOPE(D43:D44,E43:E44) -> -0.292 | G45: =G39 -> 2.628 | H45: =H39 -> 1.25
C46: INTERCEPT5 | D46: =INTERCEPT(D43:D44,E43:E44) -> 3.504 | G46: SLOPE LTS | H46: =SLOPE(G44:G45,H44:H45) -> -2.628
G47: INTERCEPT LTS | H47: =INTERCEPT(G44:G45,H44:H45) -> 5.913
G49: =G45 -> 2.628 | H49: 1.75
G50: =G44 -> 1.971 | H50: =H44 -> 1.5
G51: SLOPE LTS | H51: =SLOPE(G49:G50,H49:H50) -> 2.628
G52: INTERCEPT LTS | H52: =INTERCEPT(G49:G50,H49:H50) -> -1.971
G54: =H275-H74 -> 2.1855 | H54: 2
G55: =G49 -> 2.628 | H55: =H49 -> 1.75
G56: SLOPE LTS | H56: =SLOPE(G54:G55,H54:H55) -> -1.77
G57: INTERCEPT LTS | H57: =INTERCEPT(G54:G55,H54:H55) -> 5.7255
G61: =G62-H72 -> 2.1005 | H61: 3
G62: =H176 -> 2.2005 | H62: 2
G63: SLOPE LTS | H63: =SLOPE(G61:G62,H61:H62) -> -0.1
G64: INTERCEPT LTS | H64: =INTERCEPT(G61:G62,H61:H62) -> 2.4005
G66: =G67-H72 -> 2.1995 | H66: 1
G67: =H76 -> 2.2995 | H67: 0
G68: SLOPE LTS | H68: =SLOPE(G66:G67,H66:H67) -> -0.1
G69: INTERCEPT LTS | H69: =INTERCEPT(G66:G67,H66:H67) -> 2.2995
S71: =settings!$H$105 -> 0 | T71: =settings!$H$106 -> 0 | U71: =settings!$H$107 -> 0
H72: 0.1 | J72: 0 | K72: 0 | L72: 0.01 | O72: 0.01 | P72: 0.02 | S72: =IF(settings!$B$99=constants!$C$60,0,1) -> 0 | T72: =IF(settings!$B$100=constants!$C$60,0,1) -> 0 | U72: =IF(settings!$B$101=constants!$C$60,0,1) -> 0 | V72: 0 | W72: 0 | X72: 0 | Y72: 0.03 | Z72: 0.035 | AA72: 0.04
C73: STS/LTS unconnected | E73: STS/LTS connected | G73: Primary cell | I73: EFFECTIVE | L73: VSUP to STS | M73: VSUP to LDO2 | N73: VSUP to LDO1 | O73: VSUP intermadiate | P73: EFFECTIVE | Q73: VAUX to LDO1 | R73: VAUX to LDO | S73: VAUX SELECTION | V73: VAUX SELECTION WITHOUT OFFSET | Y73: EFFECTIVE
C74: 0.3 | D74: 0.015 | E74: 0.01 | F74: 0.015 | G74: 0.01 | H74: 0.015 | L74: 1 | M74: 1 | N74: 1 | O74: 0.9 | P74: 1 | Q74: 1 | R74: 1 | S74: 1 | T74: 1 | U74: 1 | V74: 0.9 | W74: 0.9 | X74: 0.9 | Y74: 0.9 | Z74: 0.9 | AA74: 0.9
A75: phase | B75: t | C75: VDD_STS | D75: VDD_LTS | E75: VDD_STS | F75: VDD_LTS | G75: VDD_STS | H75: VDD_LTS | I75: VDD_STS | J75: VDD_LTS | K75: HYST STS VS BAT_MIN | L75: VSUP | M75: VSUP | N75: VSUP | O75: VSUP | P75: VSUP | Q75: VAUX | R75: VAUX | S75: VAUX0 | T75: VAUX1 | U75: VAUX2 | V75: VAUX0 | W75: VAUX1 | X75: VAUX2 | Y75: VAUX0 | Z75: VAUX1 | AA75: VAUX2
A76: =IF(B76<=100,1,IF(B76<=200,2,3)) -> 1 | B76: 0 | C76: =$B$18/(1-EXP(-1/C$74))*(1-EXP(-$B76/C$74)) -> 0 | D76: =$B$18/2 -> 0.65 | E76: =($F$76-$F$74)/(1-EXP(-1/E$74))*(1-EXP(-$B76/E$74)) -> 0 | F76: =IF(B12=-1,(B11+B16)/2,(B11+B16)/2) -> 2.2995 | G76: =(H76-$H$74)/(1-EXP(-1/G$74))*(1-EXP(-$B76/G$74)) -> 0 | H76: =IF(B12=-1,(B11+B16)/2,(B11+B16)/2) -> 2.2995 | I76: =IF($B$7=constants!$C$60,G76,IF($B$8=constants!$C$60,C76,E76)) -> 0 | J76: =IF($B$7=constants!$C$60,H76,IF($B$8=constants!$C$60,D76,F76)) -> 2.2995 | K76: 0 | L76: 0 | M76: 0 | N76: 0 | O76: 0 | P76: =IF(O76=0,0,O76-$P$72) -> 0 | Q76: 0 | R76: 0 | S76: =S$72*IF(S$71=0,$L76,IF(S$71=1,$R76,IF($B$12=-1,$L76,IF($I76>$B$12,$R76,$L76)))) -> 0 | T76: =T$72*IF(T$71=0,$L76,IF(T$71=1,$R76,IF($B$12=-1,$L76,IF($I76>$B$12,$R76,$L76)))) -> 0 | U76: =U$72*IF(U$71=0,$L76,IF(U$71=1,$R76,IF($B$12=-1,$L76,IF($I76>$B$12,$R76,$L76)))) -> 0 | V76: 0 | W76: 0 | X76: 0 | Y76: =IF(V76=0,0,V76-Y$72) -> 0 | Z76: =IF(W76=0,0,W76-Z$72) -> 0 | AA76: =IF(X76=0,0,X76-AA$72) -> 0
A77: =IF(B77<=100,1,IF(B77<=200,2,3)) -> 1 | B77: =B76+0.01 -> 0.01 | C77: =$B$18/(1-EXP(-1/$C$74))*(1-EXP(-B77/$C$74)) -> 0.04419570672 | D77: =D76 -> 0.65 | E77: 1.444079417 | F77: =F76 -> 2.2995 | G77: 1.443447296 | H77: =$H$68*B77+$H$69 -> 2.2985 | I77: =IF($B$7=constants!$C$60,G77,IF($B$8=constants!$C$60,C77,E77)) -> 1.444079417 | J77: =IF($B$7=constants!$C$60,H77,IF($B$8=constants!$C$60,D77,F77)) -> 2.2995 | K77: =IF(AND(I77>$B$16,K76=0),1,IF(AND(I77<$B$17,K76=1),0,K76)) -> 0 | L77: 0 | M77: 0 | N77: =IF(M77>I77,L77,M77) -> 0 | O77: =IF(OR($B$22=constants!$B$60,AND(I77>$B$12,$B$12<>-1)),O76+(N77-O76)*$O$74,O76+(L77-O76)*$O$74) -> 0 | P77: =IF(O77=0,0,O77-$P$72) -> 0 | Q77: 0 | R77: =IF(Q77>I77,I77,Q77) -> 0 | S77: =S$72*IF(S$71=0,$L77,IF(S$71=1,$R77,IF($B$12=-1,$L77,IF($I77>$B$12,$R77,$L77)))) -> 0 | T77: 0 | U77: 0 | V77: =V76+(S77-V$72-V76)*V$74 -> 0 | W77: =W76+(T77-W$72-W76)*W$74 -> 0 | X77: =X76+(U77-X$72-X76)*X$74 -> 0 | Y77: =IF(V77=0,0,V77-Y$72) -> 0 | Z77: =IF(W77=0,0,W77-Z$72) -> 0 | AA77: =IF(X77=0,0,X77-AA$72) -> 0
A78: 1 | B78: =B77+0.01 -> 0.02 | C78: 0.08694250583 | D78: =D77 -> 0.65 | E78: 1.975326545 | F78: =F77 -> 2.2995 | G78: 1.973597216 | H78: 2.2975 | I78: =IF($B$7=constants!$C$60,G78,IF($B$8=constants!$C$60,C78,E78)) -> 1.975326545 | J78: =IF($B$7=constants!$C$60,H78,IF($B$8=constants!$C$60,D78,F78)) -> 2.2995 | K78: =IF(AND(I78>$B$16,K77=0),1,IF(AND(I78<$B$17,K77=1),0,K77)) -> 1 | L78: 0 | M78: 0 | N78: 0 | O78: =IF(OR($B$22=constants!$B$60,AND(I78>$B$12,$B$12<>-1)),O77+(N78-O77)*$O$74,O77+(L78-O77)*$O$74) -> 0 | P78: 0 | Q78: 0 | R78: =IF(Q78>I78,I78,Q78) -> 0 | S78: 0 | T78: 0 | U78: 0 | V78: =V77+(S78-V$72-V77)*V$74 -> 0 | W78: =W77+(T78-W$72-W77)*W$74 -> 0 | X78: =X77+(U78-X$72-X77)*X$74 -> 0 | Y78: 0 | Z78: 0 | AA78: 0
A79: 1 | B79: 0.03 | C79: 0.1282878982 | D79: 0.65 | E79: 2.170761442 | F79: 2.2995 | G79: 2.167910804 | H79: 2.2965 | I79: =IF($B$7=constants!$C$60,G79,IF($B$8=constants!$C$60,C79,E79)) -> 2.170761442 | J79: =IF($B$7=constants!$C$60,H79,IF($B$8=constants!$C$60,D79,F79)) -> 2.2995 | K79: 1 | L79: 0 | M79: 0 | N79: 0 | O79: =IF(OR($B$22=constants!$B$60,AND(I79>$B$12,$B$12<>-1)),O78+(N79-O78)*$O$74,O78+(L79-O78)*$O$74) -> 0 | P79: 0 | Q79: 0 | R79: 0 | S79: 0 | T79: 0 | U79: 0 | V79: 0 | W79: 0 | X79: 0 | Y79: 0 | Z79: 0 | AA79: 0
A80: 1 | B80: 0.04 | C80: 0.1682778273 | D80: 0.65 | E80: 2.242657923 | F80: 2.2995 | G80: 2.238731186 | H80: 2.2955 | I80: =IF($B$7=constants!$C$60,G80,IF($B$8=constants!$C$60,C80,E80)) -> 2.242657923 | J80: =IF($B$7=constants!$C$60,H80,IF($B$8=constants!$C$60,D80,F80)) -> 2.2995 | K80: 1 | L80: 0 | M80: 0 | N80: 0 | O80: =IF(OR($B$22=constants!$B$60,AND(I80>$B$12,$B$12<>-1)),O79+(N80-O79)*$O$74,O79+(L80-O79)*$O$74) -> 0 | P80: 0 | Q80: 0 | R80: 0 | S80: 0 | T80: 0 | U80: 0 | V80: 0 | W80: 0 | X80: 0 | Y80: 0 | Z80: 0 | AA80: 0
A81: 1 | B81: 0.05 | C81: 0.2069567307 | D81: 0.65 | E81: 2.26910716 | F81: 2.2995 | G81: 2.26414085 | H81: 2.2945 | I81: =IF($B$7=constants!$C$60,G81,IF($B$8=constants!$C$60,C81,E81)) -> 2.26910716 | J81: =IF($B$7=constants!$C$60,H81,IF($B$8=constants!$C$60,D81,F81)) -> 2.2995 | K81: 1 | L81: 0 | M81: 0 | N81: 0 | O81: =IF(OR($B$22=constants!$B$60,AND(I81>$B$12,$B$12<>-1)),O80+(N81-O80)*$O$74,O80+(L81-O80)*$O$74) -> 0 | P81: 0 | Q81: 0 | R81: 0 | S81: 0 | T81: 0 | U81: 0 | V81: 0 | W81: 0 | X81: 0 | Y81: 0 | Z81: 0 | AA81: 0
A82: 1 | B82: 0.06 | C82: 0.2443675887 | D82: 0.65 | E82: 2.278837291 | F82: 2.2995 | G82: 2.272852163 | H82: 2.2935 | I82: =IF($B$7=constants!$C$60,G82,IF($B$8=constants!$C$60,C82,E82)) -> 2.278837291 | J82: =IF($B$7=constants!$C$60,H82,IF($B$8=constants!$C$60,D82,F82)) -> 2.2995 | K82: 1 | L82: 0 | M82: 0 | N82: 0 | O82: =IF(OR($B$22=constants!$B$60,AND(I82>$B$12,$B$12<>-1)),O81+(N82-O81)*$O$74,O81+(L82-O81)*$O$74) -> 0 | P82: 0 | Q82: 0 | R82: 0 | S82: 0 | T82: 0 | U82: 0 | V82: 0 | W82: 0 | X82: 0 | Y82: 0 | Z82: 0 | AA82: 0
A83: 1 | B83: 0.07 | C83: 0.280551973 | D83: 0.65 | E83: 2.282416806 | F83: 2.2995 | G83: 2.275423189 | H83: 2.2925 | I83: =IF($B$7=constants!$C$60,G83,IF($B$8=constants!$C$60,C83,E83)) -> 2.282416806 | J83: =IF($B$7=constants!$C$60,H83,IF($B$8=constants!$C$60,D83,F83)) -> 2.2995 | K83: 1 | L83: 0 | M83: 0 | N83: 0 | O83: =IF(OR($B$22=constants!$B$60,AND(I83>$B$12,$B$12<>-1)),O82+(N83-O82)*$O$74,O82+(L83-O82)*$O$74) -> 0 | P83: 0 | Q83: 0 | R83: 0 | S83: 0 | T83: 0 | U83: 0 | V83: 0 | W83: 0 | X83: 0 | Y83: 0 | Z83: 0 | AA83: 0
A84: 1 | B84: 0.08 | C84: 0.315550092 | D84: 0.65 | E84: 2.283733636 | F84: 2.2995 | G84: 2.275736319 | H84: 2.2915 | I84: =IF($B$7=constants!$C$60,G84,IF($B$8=constants!$C$60,C84,E84)) -> 2.283733636 | J84: =IF($B$7=constants!$C$60,H84,IF($B$8=constants!$C$60,D84,F84)) -> 2.2995 | K84: 1 | L84: 0 | M84: 0 | N84: 0 | O84: =IF(OR($B$22=constants!$B$60,AND(I84>$B$12,$B$12<>-1)),O83+(N84-O83)*$O$74,O83+(L84-O83)*$O$74) -> 0 | P84: 0 | Q84: 0 | R84: 0 | S84: 0 | T84: 0 | U84: 0 | V84: 0 | W84: 0 | X84: 0 | Y84: 0 | Z84: 0 | AA84: 0
A85: 1 | B85: 0.09 | C85: 0.3494008362 | D85: 0.65 | E85: 2.28421807 | F85: 2.2995 | G85: 2.275219181 | H85: 2.2905 | I85: =IF($B$7=constants!$C$60,G85,IF($B$8=constants!$C$60,C85,E85)) -> 2.28421807 | J85: =IF($B$7=constants!$C$60,H85,IF($B$8=constants!$C$60,D85,F85)) -> 2.2995 | K85: 1 | L85: 0 | M85: 0 | N85: 0 | O85: =IF(OR($B$22=constants!$B$60,AND(I85>$B$12,$B$12<>-1)),O84+(N85-O84)*$O$74,O84+(L85-O84)*$O$74) -> 0 | P85: 0 | Q85: 0 | R85: 0 | S85: 0 | T85: 0 | U85: 0 | V85: 0 | W85: 0 | X85: 0 | Y85: 0 | Z85: 0 | AA85: 0
A86: 1 | B86: 0.1 | C86: 0.382141821 | D86: 0.65 | E86: 2.284396284 | F86: 2.2995 | G86: 2.274396738 | H86: 2.2895 | I86: =IF($B$7=constants!$C$60,G86,IF($B$8=constants!$C$60,C86,E86)) -> 2.284396284 | J86: =IF($B$7=constants!$C$60,H86,IF($B$8=constants!$C$60,D86,F86)) -> 2.2995 | K86: 1 | L86: 0 | M86: 0 | N86: 0 | O86: =IF(OR($B$22=constants!$B$60,AND(I86>$B$12,$B$12<>-1)),O85+(N86-O85)*$O$74,O85+(L86-O85)*$O$74) -> 0 | P86: 0 | Q86: 0 | R86: 0 | S86: 0 | T86: 0 | U86: 0 | V86: 0 | W86: 0 | X86: 0 | Y86: 0 | Z86: 0 | AA86: 0
A87: 1 | B87: 0.11 | C87: 0.4138094287 | D87: 0.65 | E87: 2.284461845 | F87: 2.2995 | G87: 2.273462029 | H87: 2.2885 | I87: =IF($B$7=constants!$C$60,G87,IF($B$8=constants!$C$60,C87,E87)) -> 2.284461845 | J87: =IF($B$7=constants!$C$60,H87,IF($B$8=constants!$C$60,D87,F87)) -> 2.2995 | K87: 1 | L87: 0 | M87: 0 | N87: 0 | O87: =IF(OR($B$22=constants!$B$60,AND(I87>$B$12,$B$12<>-1)),O86+(N87-O86)*$O$74,O86+(L87-O86)*$O$74) -> 0 | P87: 0 | Q87: 0 | R87: 0 | S87: 0 | T87: 0 | U87: 0 | V87: 0 | W87: 0 | X87: 0 | Y87: 0 | Z87: 0 | AA87: 0
A88: 1 | B88: 0.12 | C88: 0.4444388487 | D88: 0.65 | E88: 2.284485964 | F88: 2.2995 | G88: 2.272486037 | H88: 2.2875 | I88: =IF($B$7=constants!$C$60,G88,IF($B$8=constants!$C$60,C88,E88)) -> 2.284485964 | J88: =IF($B$7=constants!$C$60,H88,IF($B$8=constants!$C$60,D88,F88)) -> 2.2995 | K88: 1 | L88: 0 | M88: 0 | N88: 0 | O88: =IF(OR($B$22=constants!$B$60,AND(I88>$B$12,$B$12<>-1)),O87+(N88-O87)*$O$74,O87+(L88-O87)*$O$74) -> 0 | P88: 0 | Q88: 0 | R88: 0 | S88: 0 | T88: 0 | U88: 0 | V88: 0 | W88: 0 | X88: 0 | Y88: 0 | Z88: 0 | AA88: 0
A89: 1 | B89: 0.13 | C89: 0.4740641168 | D89: 0.65 | E89: 2.284494836 | F89: 2.2995 | G89: 2.271494866 | H89: 2.2865 | I89: =IF($B$7=constants!$C$60,G89,IF($B$8=constants!$C$60,C89,E89)) -> 2.284494836 | J89: =IF($B$7=constants!$C$60,H89,IF($B$8=constants!$C$60,D89,F89)) -> 2.2995 | K89: 1 | L89: 0 | M89: 0 | N89: 0 | O89: =IF(OR($B$22=constants!$B$60,AND(I89>$B$12,$B$12<>-1)),O88+(N89-O88)*$O$74,O88+(L89-O88)*$O$74) -> 0 | P89: 0 | Q89: 0 | R89: 0 | S89: 0 | T89: 0 | U89: 0 | V89: 0 | W89: 0 | X89: 0 | Y89: 0 | Z89: 0 | AA89: 0
A90: 1 | B90: 0.14 | C90: 0.5027181532 | D90: 0.65 | E90: 2.2844981 | F90: 2.2995 | G90: 2.270498112 | H90: 2.2855 | I90: =IF($B$7=constants!$C$60,G90,IF($B$8=constants!$C$60,C90,E90)) -> 2.2844981 | J90: =IF($B$7=constants!$C$60,H90,IF($B$8=constants!$C$60,D90,F90)) -> 2.2995 | K90: 1 | L90: 0 | M90: 0 | N90: 0 | O90: =IF(OR($B$22=constants!$B$60,AND(I90>$B$12,$B$12<>-1)),O89+(N90-O89)*$O$74,O89+(L90-O89)*$O$74) -> 0 | P90: 0 | Q90: 0 | R90: 0 | S90: 0 | T90: 0 | U90: 0 | V90: 0 | W90: 0 | X90: 0 | Y90: 0 | Z90: 0 | AA90: 0
A91: 1 | B91: 0.15 | C91: 0.5304327985 | D91: 0.65 | E91: 2.284499301 | F91: 2.2995 | G91: 2.269499306 | H91: 2.2845 | I91: =IF($B$7=constants!$C$60,G91,IF($B$8=constants!$C$60,C91,E91)) -> 2.284499301 | J91: =IF($B$7=constants!$C$60,H91,IF($B$8=constants!$C$60,D91,F91)) -> 2.2995 | K91: 1 | L91: 0 | M91: 0 | N91: 0 | O91: =IF(OR($B$22=constants!$B$60,AND(I91>$B$12,$B$12<>-1)),O90+(N91-O90)*$O$74,O90+(L91-O90)*$O$74) -> 0 | P91: 0 | Q91: 0 | R91: 0 | S91: 0 | T91: 0 | U91: 0 | V91: 0 | W91: 0 | X91: 0 | Y91: 0 | Z91: 0 | AA91: 0
A92: 1 | B92: 0.16 | C92: 0.5572388497 | D92: 0.65 | E92: 2.284499743 | F92: 2.2995 | G92: 2.268499745 | H92: 2.2835 | I92: =IF($B$7=constants!$C$60,G92,IF($B$8=constants!$C$60,C92,E92)) -> 2.284499743 | J92: =IF($B$7=constants!$C$60,H92,IF($B$8=constants!$C$60,D92,F92)) -> 2.2995 | K92: 1 | L92: 0 | M92: 0 | N92: 0 | O92: =IF(OR($B$22=constants!$B$60,AND(I92>$B$12,$B$12<>-1)),O91+(N92-O91)*$O$74,O91+(L92-O91)*$O$74) -> 0 | P92: 0 | Q92: 0 | R92: 0 | S92: 0 | T92: 0 | U92: 0 | V92: 0 | W92: 0 | X92: 0 | Y92: 0 | Z92: 0 | AA92: 0
A93: 1 | B93: 0.17 | C93: 0.5831660939 | D93: 0.65 | E93: 2.284499905 | F93: 2.2995 | G93: 2.267499906 | H93: 2.2825 | I93: =IF($B$7=constants!$C$60,G93,IF($B$8=constants!$C$60,C93,E93)) -> 2.284499905 | J93: =IF($B$7=constants!$C$60,H93,IF($B$8=constants!$C$60,D93,F93)) -> 2.2995 | K93: 1 | L93: 0 | M93: 0 | N93: 0 | O93: =IF(OR($B$22=constants!$B$60,AND(I93>$B$12,$B$12<>-1)),O92+(N93-O92)*$O$74,O92+(L93-O92)*$O$74) -> 0 | P93: 0 | Q93: 0 | R93: 0 | S93: 0 | T93: 0 | U93: 0 | V93: 0 | W93: 0 | X93: 0 | Y93: 0 | Z93: 0 | AA93: 0
A94: 1 | B94: 0.18 | C94: 0.608243342 | D94: 0.65 | E94: 2.284499965 | F94: 2.2995 | G94: 2.266499965 | H94: 2.2815 | I94: =IF($B$7=constants!$C$60,G94,IF($B$8=constants!$C$60,C94,E94)) -> 2.284499965 | J94: =IF($B$7=constants!$C$60,H94,IF($B$8=constants!$C$60,D94,F94)) -> 2.2995 | K94: 1 | L94: 0 | M94: 0 | N94: 0 | O94: =IF(OR($B$22=constants!$B$60,AND(I94>$B$12,$B$12<>-1)),O93+(N94-O93)*$O$74,O93+(L94-O93)*$O$74) -> 0 | P94: 0 | Q94: 0 | R94: 0 | S94: 0 | T94: 0 | U94: 0 | V94: 0 | W94: 0 | X94: 0 | Y94: 0 | Z94: 0 | AA94: 0
A95: 1 | B95: 0.19 | C95: 0.6324984601 | D95: 0.65 | E95: 2.284499987 | F95: 2.2995 | G95: 2.265499987 | H95: 2.2805 | I95: =IF($B$7=constants!$C$60,G95,IF($B$8=constants!$C$60,C95,E95)) -> 2.284499987 | J95: =IF($B$7=constants!$C$60,H95,IF($B$8=constants!$C$60,D95,F95)) -> 2.2995 | K95: 1 | L95: 0 | M95: 0 | N95: 0 | O95: =IF(OR($B$22=constants!$B$60,AND(I95>$B$12,$B$12<>-1)),O94+(N95-O94)*$O$74,O94+(L95-O94)*$O$74) -> 0 | P95: 0 | Q95: 0 | R95: 0 | S95: 0 | T95: 0 | U95: 0 | V95: 0 | W95: 0 | X95: 0 | Y95: 0 | Z95: 0 | AA95: 0
A96: 1 | B96: 0.2 | C96: 0.6559584009 | D96: 0.65 | E96: 2.284499995 | F96: 2.2995 | G96: 2.264499995 | H96: 2.2795 | I96: =IF($B$7=constants!$C$60,G96,IF($B$8=constants!$C$60,C96,E96)) -> 2.284499995 | J96: =IF($B$7=constants!$C$60,H96,IF($B$8=constants!$C$60,D96,F96)) -> 2.2995 | K96: 1 | L96: 0 | M96: 0 | N96: 0 | O96: =IF(OR($B$22=constants!$B$60,AND(I96>$B$12,$B$12<>-1)),O95+(N96-O95)*$O$74,O95+(L96-O95)*$O$74) -> 0 | P96: 0 | Q96: 0 | R96: 0 | S96: 0 | T96: 0 | U96: 0 | V96: 0 | W96: 0 | X96: 0 | Y96: 0 | Z96: 0 | AA96: 0
A97: 1 | B97: 0.21 | C97: 0.6786492333 | D97: 0.65 | E97: 2.284499998 | F97: 2.2995 | G97: 2.263499998 | H97: 2.2785 | I97: =IF($B$7=constants!$C$60,G97,IF($B$8=constants!$C$60,C97,E97)) -> 2.284499998 | J97: =IF($B$7=constants!$C$60,H97,IF($B$8=constants!$C$60,D97,F97)) -> 2.2995 | K97: 1 | L97: 0 | M97: 0 | N97: 0 | O97: =IF(OR($B$22=constants!$B$60,AND(I97>$B$12,$B$12<>-1)),O96+(N97-O96)*$O$74,O96+(L97-O96)*$O$74) -> 0 | P97: 0 | Q97: 0 | R97: 0 | S97: 0 | T97: 0 | U97: 0 | V97: 0 | W97: 0 | X97: 0 | Y97: 0 | Z97: 0 | AA97: 0
A98: 1 | B98: 0.22 | C98: 0.7005961718 | D98: 0.65 | E98: 2.284499999 | F98: 2.2995 | G98: 2.262499999 | H98: 2.2775 | I98: =IF($B$7=constants!$C$60,G98,IF($B$8=constants!$C$60,C98,E98)) -> 2.284499999 | J98: =IF($B$7=constants!$C$60,H98,IF($B$8=constants!$C$60,D98,F98)) -> 2.2995 | K98: 1 | L98: 0 | M98: 0 | N98: 0 | O98: =IF(OR($B$22=constants!$B$60,AND(I98>$B$12,$B$12<>-1)),O97+(N98-O97)*$O$74,O97+(L98-O97)*$O$74) -> 0 | P98: 0 | Q98: 0 | R98: 0 | S98: 0 | T98: 0 | U98: 0 | V98: 0 | W98: 0 | X98: 0 | Y98: 0 | Z98: 0 | AA98: 0
A99: 1 | B99: 0.23 | C99: 0.721823604 | D99: 0.65 | E99: 2.2845 | F99: 2.2995 | G99: 2.2615 | H99: 2.2765 | I99: =IF($B$7=constants!$C$60,G99,IF($B$8=constants!$C$60,C99,E99)) -> 2.2845 | J99: =IF($B$7=constants!$C$60,H99,IF($B$8=constants!$C$60,D99,F99)) -> 2.2995 | K99: 1 | L99: 0 | M99: 0 | N99: 0 | O99: =IF(OR($B$22=constants!$B$60,AND(I99>$B$12,$B$12<>-1)),O98+(N99-O98)*$O$74,O98+(L99-O98)*$O$74) -> 0 | P99: 0 | Q99: 0 | R99: 0 | S99: 0 | T99: 0 | U99: 0 | V99: 0 | W99: 0 | X99: 0 | Y99: 0 | Z99: 0 | AA99: 0
A100: 1 | B100: 0.24 | C100: 0.7423551182 | D100: 0.65 | E100: 2.2845 | F100: 2.2995 | G100: 2.2605 | H100: 2.2755 | I100: =IF($B$7=constants!$C$60,G100,IF($B$8=constants!$C$60,C100,E100)) -> 2.2845 | J100: =IF($B$7=constants!$C$60,H100,IF($B$8=constants!$C$60,D100,F100)) -> 2.2995 | K100: 1 | L100: 0 | M100: 0 | N100: 0 | O100: =IF(OR($B$22=constants!$B$60,AND(I100>$B$12,$B$12<>-1)),O99+(N100-O99)*$O$74,O99+(L100-O99)*$O$74) -> 0 | P100: 0 | Q100: 0 | R100: 0 | S100: 0 | T100: 0 | U100: 0 | V100: 0 | W100: 0 | X100: 0 | Y100: 0 | Z100: 0 | AA100: 0
A101: 1 | B101: 0.25 | C101: 0.7622135293 | D101: 0.65 | E101: 2.2845 | F101: 2.2995 | G101: 2.2595 | H101: 2.2745 | I101: =IF($B$7=constants!$C$60,G101,IF($B$8=constants!$C$60,C101,E101)) -> 2.2845 | J101: =IF($B$7=constants!$C$60,H101,IF($B$8=constants!$C$60,D101,F101)) -> 2.2995 | K101: 1 | L101: 0 | M101: 0 | N101: 0 | O101: =IF(OR($B$22=constants!$B$60,AND(I101>$B$12,$B$12<>-1)),O100+(N101-O100)*$O$74,O100+(L101-O100)*$O$74) -> 0 | P101: 0 | Q101: 0 | R101: 0 | S101: 0 | T101: 0 | U101: 0 | V101: 0 | W101: 0 | X101: 0 | Y101: 0 | Z101: 0 | AA101: 0
A102: 1 | B102: 0.26 | C102: 0.7814209043 | D102: 0.65 | E102: 2.2845 | F102: 2.2995 | G102: 2.2585 | H102: 2.2735 | I102: =IF($B$7=constants!$C$60,G102,IF($B$8=constants!$C$60,C102,E102)) -> 2.2845 | J102: =IF($B$7=constants!$C$60,H102,IF($B$8=constants!$C$60,D102,F102)) -> 2.2995 | K102: 1 | L102: 0 | M102: 0 | N102: 0 | O102: =IF(OR($B$22=constants!$B$60,AND(I102>$B$12,$B$12<>-1)),O101+(N102-O101)*$O$74,O101+(L102-O101)*$O$74) -> 0 | P102: 0 | Q102: 0 | R102: 0 | S102: 0 | T102: 0 | U102: 0 | V102: 0 | W102: 0 | X102: 0 | Y102: 0 | Z102: 0 | AA102: 0
A103: 1 | B103: 0.27 | C103: 0.7999985866 | D103: 0.65 | E103: 2.2845 | F103: 2.2995 | G103: 2.2575 | H103: 2.2725 | I103: =IF($B$7=constants!$C$60,G103,IF($B$8=constants!$C$60,C103,E103)) -> 2.2845 | J103: =IF($B$7=constants!$C$60,H103,IF($B$8=constants!$C$60,D103,F103)) -> 2.2995 | K103: 1 | L103: 0 | M103: 0 | N103: 0 | O103: =IF(OR($B$22=constants!$B$60,AND(I103>$B$12,$B$12<>-1)),O102+(N103-O102)*$O$74,O102+(L103-O102)*$O$74) -> 0 | P103: 0 | Q103: 0 | R103: 0 | S103: 0 | T103: 0 | U103: 0 | V103: 0 | W103: 0 | X103: 0 | Y103: 0 | Z103: 0 | AA103: 0
A104: 1 | B104: 0.28 | C104: 0.81796722 | D104: 0.65 | E104: 2.2845 | F104: 2.2995 | G104: 2.2565 | H104: 2.2715 | I104: =IF($B$7=constants!$C$60,G104,IF($B$8=constants!$C$60,C104,E104)) -> 2.2845 | J104: =IF($B$7=constants!$C$60,H104,IF($B$8=constants!$C$60,D104,F104)) -> 2.2995 | K104: 1 | L104: 0 | M104: 0 | N104: 0 | O104: =IF(OR($B$22=constants!$B$60,AND(I104>$B$12,$B$12<>-1)),O103+(N104-O103)*$O$74,O103+(L104-O103)*$O$74) -> 0 | P104: 0 | Q104: 0 | R104: 0 | S104: 0 | T104: 0 | U104: 0 | V104: 0 | W104: 0 | X104: 0 | Y104: 0 | Z104: 0 | AA104: 0
A105: 1 | B105: 0.29 | C105: 0.8353467716 | D105: 0.65 | E105: 2.2845 | F105: 2.2995 | G105: 2.2555 | H105: 2.2705 | I105: =IF($B$7=constants!$C$60,G105,IF($B$8=constants!$C$60,C105,E105)) -> 2.2845 | J105: =IF($B$7=constants!$C$60,H105,IF($B$8=constants!$C$60,D105,F105)) -> 2.2995 | K105: 1 | L105: 0 | M105: 0 | N105: 0 | O105: =IF(OR($B$22=constants!$B$60,AND(I105>$B$12,$B$12<>-1)),O104+(N105-O104)*$O$74,O104+(L105-O104)*$O$74) -> 0 | P105: 0 | Q105: 0 | R105: 0 | S105: 0 | T105: 0 | U105: 0 | V105: 0 | W105: 0 | X105: 0 | Y105: 0 | Z105: 0 | AA105: 0
A106: 1 | B106: 0.3 | C106: 0.8521565537 | D106: 0.65 | E106: 2.2845 | F106: 2.2995 | G106: 2.2545 | H106: 2.2695 | I106: =IF($B$7=constants!$C$60,G106,IF($B$8=constants!$C$60,C106,E106)) -> 2.2845 | J106: =IF($B$7=constants!$C$60,H106,IF($B$8=constants!$C$60,D106,F106)) -> 2.2995 | K106: 1 | L106: 0 | M106: 0 | N106: 0 | O106: =IF(OR($B$22=constants!$B$60,AND(I106>$B$12,$B$12<>-1)),O105+(N106-O105)*$O$74,O105+(L106-O105)*$O$74) -> 0 | P106: 0 | Q106: 0 | R106: 0 | S106: 0 | T106: 0 | U106: 0 | V106: 0 | W106: 0 | X106: 0 | Y106: 0 | Z106: 0 | AA106: 0
A107: 1 | B107: 0.31 | C107: 0.8684152456 | D107: 0.65 | E107: 2.2845 | F107: 2.2995 | G107: 2.2535 | H107: 2.2685 | I107: =IF($B$7=constants!$C$60,G107,IF($B$8=constants!$C$60,C107,E107)) -> 2.2845 | J107: =IF($B$7=constants!$C$60,H107,IF($B$8=constants!$C$60,D107,F107)) -> 2.2995 | K107: 1 | L107: 0 | M107: 0 | N107: 0 | O107: =IF(OR($B$22=constants!$B$60,AND(I107>$B$12,$B$12<>-1)),O106+(N107-O106)*$O$74,O106+(L107-O106)*$O$74) -> 0 | P107: 0 | Q107: 0 | R107: 0 | S107: 0 | T107: 0 | U107: 0 | V107: 0 | W107: 0 | X107: 0 | Y107: 0 | Z107: 0 | AA107: 0
A108: 1 | B108: 0.32 | C108: 0.8841409142 | D108: 0.65 | E108: =($F$76-$F$74)/(1-EXP(-1/E$74))*(1-EXP(-$B108/E$74)) -> 2.2845 | F108: 2.2995 | G108: =(H108-$H$74)/(1-EXP(-1/G$74))*(1-EXP(-$B108/G$74)) -> 2.2525 | H108: 2.2675 | I108: =IF($B$7=constants!$C$60,G108,IF($B$8=constants!$C$60,C108,E108)) -> 2.2845 | J108: =IF($B$7=constants!$C$60,H108,IF($B$8=constants!$C$60,D108,F108)) -> 2.2995 | K108: 1 | L108: 0 | M108: 0 | N108: 0 | O108: =IF(OR($B$22=constants!$B$60,AND(I108>$B$12,$B$12<>-1)),O107+(N108-O107)*$O$74,O107+(L108-O107)*$O$74) -> 0 | P108: 0 | Q108: 0 | R108: 0 | S108: 0 | T108: 0 | U108: 0 | V108: 0 | W108: 0 | X108: 0 | Y108: 0 | Z108: 0 | AA108: 0
A109: 1 | B109: 0.33 | C109: =$B$18/(1-EXP(-1/$C$74))*(1-EXP(-B109/$C$74)) -> 0.899351034 | D109: 0.65 | E109: 2.2845 | F109: 2.2995 | G109: 2.2515 | H109: =$H$68*B109+$H$69 -> 2.2665 | I109: =IF($B$7=constants!$C$60,G109,IF($B$8=constants!$C$60,C109,E109)) -> 2.2845 | J109: =IF($B$7=constants!$C$60,H109,IF($B$8=constants!$C$60,D109,F109)) -> 2.2995 | K109: 1 | L109: 0 | M109: 0 | N109: 0 | O109: =IF(OR($B$22=constants!$B$60,AND(I109>$B$12,$B$12<>-1)),O108+(N109-O108)*$O$74,O108+(L109-O108)*$O$74) -> 0 | P109: 0 | Q109: 0 | R109: 0 | S109: 0 | T109: 0 | U109: 0 | V109: 0 | W109: 0 | X109: 0 | Y109: 0 | Z109: 0 | AA109: 0
A110: 1 | B110: 0.34 | C110: 0.9140625068 | D110: 0.65 | E110: 2.2845 | F110: 2.2995 | G110: 2.2505 | H110: 2.2655 | I110: =IF($B$7=constants!$C$60,G110,IF($B$8=constants!$C$60,C110,E110)) -> 2.2845 | J110: =IF($B$7=constants!$C$60,H110,IF($B$8=constants!$C$60,D110,F110)) -> 2.2995 | K110: 1 | L110: 0 | M110: 0 | N110: 0 | O110: =IF(OR($B$22=constants!$B$60,AND(I110>$B$12,$B$12<>-1)),O109+(N110-O109)*$O$74,O109+(L110-O109)*$O$74) -> 0 | P110: 0 | Q110: 0 | R110: 0 | S110: 0 | T110: 0 | U110: 0 | V110: 0 | W110: 0 | X110: 0 | Y110: 0 | Z110: 0 | AA110: 0
A111: 1 | B111: 0.35 | C111: 0.9282916801 | D111: 0.65 | E111: 2.2845 | F111: 2.2995 | G111: 2.2495 | H111: 2.2645 | I111: =IF($B$7=constants!$C$60,G111,IF($B$8=constants!$C$60,C111,E111)) -> 2.2845 | J111: =IF($B$7=constants!$C$60,H111,IF($B$8=constants!$C$60,D111,F111)) -> 2.2995 | K111: 1 | L111: 0 | M111: 0 | N111: 0 | O111: =IF(OR($B$22=constants!$B$60,AND(I111>$B$12,$B$12<>-1)),O110+(N111-O110)*$O$74,O110+(L111-O110)*$O$74) -> 0 | P111: 0 | Q111: 0 | R111: 0 | S111: 0 | T111: 0 | U111: 0 | V111: 0 | W111: 0 | X111: 0 | Y111: 0 | Z111: 0 | AA111: 0
A112: 1 | B112: 0.36 | C112: 0.9420543657 | D112: 0.65 | E112: 2.2845 | F112: 2.2995 | G112: 2.2485 | H112: 2.2635 | I112: =IF($B$7=constants!$C$60,G112,IF($B$8=constants!$C$60,C112,E112)) -> 2.2845 | J112: =IF($B$7=constants!$C$60,H112,IF($B$8=constants!$C$60,D112,F112)) -> 2.2995 | K112: 1 | L112: 0 | M112: 0 | N112: 0 | O112: =IF(OR($B$22=constants!$B$60,AND(I112>$B$12,$B$12<>-1)),O111+(N112-O111)*$O$74,O111+(L112-O111)*$O$74) -> 0 | P112: 0 | Q112: 0 | R112: 0 | S112: 0 | T112: 0 | U112: 0 | V112: 0 | W112: 0 | X112: 0 | Y112: 0 | Z112: 0 | AA112: 0
A113: 1 | B113: 0.37 | C113: 0.9553658567 | D113: 0.65 | E113: 2.2845 | F113: 2.2995 | G113: 2.2475 | H113: 2.2625 | I113: =IF($B$7=constants!$C$60,G113,IF($B$8=constants!$C$60,C113,E113)) -> 2.2845 | J113: =IF($B$7=constants!$C$60,H113,IF($B$8=constants!$C$60,D113,F113)) -> 2.2995 | K113: 1 | L113: 0 | M113: 0 | N113: 0 | O113: =IF(OR($B$22=constants!$B$60,AND(I113>$B$12,$B$12<>-1)),O112+(N113-O112)*$O$74,O112+(L113-O112)*$O$74) -> 0 | P113: 0 | Q113: 0 | R113: 0 | S113: 0 | T113: 0 | U113: 0 | V113: 0 | W113: 0 | X113: 0 | Y113: 0 | Z113: 0 | AA113: 0
A114: 1 | B114: 0.38 | C114: 0.9682409452 | D114: 0.65 | E114: 2.2845 | F114: 2.2995 | G114: 2.2465 | H114: 2.2615 | I114: =IF($B$7=constants!$C$60,G114,IF($B$8=constants!$C$60,C114,E114)) -> 2.2845 | J114: =IF($B$7=constants!$C$60,H114,IF($B$8=constants!$C$60,D114,F114)) -> 2.2995 | K114: 1 | L114: 0 | M114: 0 | N114: 0 | O114: =IF(OR($B$22=constants!$B$60,AND(I114>$B$12,$B$12<>-1)),O113+(N114-O113)*$O$74,O113+(L114-O113)*$O$74) -> 0 | P114: 0 | Q114: 0 | R114: 0 | S114: 0 | T114: 0 | U114: 0 | V114: 0 | W114: 0 | X114: 0 | Y114: 0 | Z114: 0 | AA114: 0
A115: 1 | B115: 0.39 | C115: 0.9806939381 | D115: 0.65 | E115: 2.2845 | F115: 2.2995 | G115: 2.2455 | H115: 2.2605 | I115: =IF($B$7=constants!$C$60,G115,IF($B$8=constants!$C$60,C115,E115)) -> 2.2845 | J115: =IF($B$7=constants!$C$60,H115,IF($B$8=constants!$C$60,D115,F115)) -> 2.2995 | K115: 1 | L115: 0 | M115: 0 | N115: 0 | O115: =IF(OR($B$22=constants!$B$60,AND(I115>$B$12,$B$12<>-1)),O114+(N115-O114)*$O$74,O114+(L115-O114)*$O$74) -> 0 | P115: 0 | Q115: 0 | R115: 0 | S115: 0 | T115: 0 | U115: 0 | V115: 0 | W115: 0 | X115: 0 | Y115: 0 | Z115: 0 | AA115: 0
A116: 1 | B116: 0.4 | C116: 0.9927386733 | D116: 0.65 | E116: 2.2845 | F116: 2.2995 | G116: 2.2445 | H116: 2.2595 | I116: =IF($B$7=constants!$C$60,G116,IF($B$8=constants!$C$60,C116,E116)) -> 2.2845 | J116: =IF($B$7=constants!$C$60,H116,IF($B$8=constants!$C$60,D116,F116)) -> 2.2995 | K116: 1 | L116: 0 | M116: 0 | N116: 0 | O116: =IF(OR($B$22=constants!$B$60,AND(I116>$B$12,$B$12<>-1)),O115+(N116-O115)*$O$74,O115+(L116-O115)*$O$74) -> 0 | P116: 0 | Q116: 0 | R116: 0 | S116: 0 | T116: 0 | U116: 0 | V116: 0 | W116: 0 | X116: 0 | Y116: 0 | Z116: 0 | AA116: 0
A117: 1 | B117: 0.41 | C117: 1.004388535 | D117: 0.65 | E117: 2.2845 | F117: 2.2995 | G117: 2.2435 | H117: 2.2585 | I117: =IF($B$7=constants!$C$60,G117,IF($B$8=constants!$C$60,C117,E117)) -> 2.2845 | J117: =IF($B$7=constants!$C$60,H117,IF($B$8=constants!$C$60,D117,F117)) -> 2.2995 | K117: 1 | L117: 0 | M117: 0 | N117: 0 | O117: =IF(OR($B$22=constants!$B$60,AND(I117>$B$12,$B$12<>-1)),O116+(N117-O116)*$O$74,O116+(L117-O116)*$O$74) -> 0 | P117: 0 | Q117: 0 | R117: 0 | S117: 0 | T117: 0 | U117: 0 | V117: 0 | W117: 0 | X117: 0 | Y117: 0 | Z117: 0 | AA117: 0
A118: 1 | B118: 0.42 | C118: 1.015656469 | D118: 0.65 | E118: 2.2845 | F118: =F117 -> 2.2995 | G118: 2.2425 | H118: 2.2575 | I118: =IF($B$7=constants!$C$60,G118,IF($B$8=constants!$C$60,C118,E118)) -> 2.2845 | J118: =IF($B$7=constants!$C$60,H118,IF($B$8=constants!$C$60,D118,F118)) -> 2.2995 | K118: 1 | L118: 0 | M118: 0 | N118: 0 | O118: =IF(OR($B$22=constants!$B$60,AND(I118>$B$12,$B$12<>-1)),O117+(N118-O117)*$O$74,O117+(L118-O117)*$O$74) -> 0 | P118: 0 | Q118: 0 | R118: 0 | S118: 0 | T118: 0 | U118: 0 | V118: 0 | W118: 0 | X118: 0 | Y118: 0 | Z118: 0 | AA118: 0
A119: 1 | B119: 0.43 | C119: 1.026554996 | D119: 0.65 | E119: 2.2845 | F119: 2.2995 | G119: 2.2415 | H119: 2.2565 | I119: =IF($B$7=constants!$C$60,G119,IF($B$8=constants!$C$60,C119,E119)) -> 2.2845 | J119: =IF($B$7=constants!$C$60,H119,IF($B$8=constants!$C$60,D119,F119)) -> 2.2995 | K119: 1 | L119: 0 | M119: 0 | N119: 0 | O119: =IF(OR($B$22=constants!$B$60,AND(I119>$B$12,$B$12<>-1)),O118+(N119-O118)*$O$74,O118+(L119-O118)*$O$74) -> 0 | P119: 0 | Q119: 0 | R119: 0 | S119: 0 | T119: 0 | U119: 0 | V119: 0 | W119: 0 | X119: 0 | Y119: 0 | Z119: 0 | AA119: 0
A120: 1 | B120: 0.44 | C120: 1.037096227 | D120: 0.65 | E120: 2.2845 | F120: 2.2995 | G120: 2.2405 | H120: 2.2555 | I120: =IF($B$7=constants!$C$60,G120,IF($B$8=constants!$C$60,C120,E120)) -> 2.2845 | J120: =IF($B$7=constants!$C$60,H120,IF($B$8=constants!$C$60,D120,F120)) -> 2.2995 | K120: 1 | L120: 0 | M120: 0 | N120: 0 | O120: =IF(OR($B$22=constants!$B$60,AND(I120>$B$12,$B$12<>-1)),O119+(N120-O119)*$O$74,O119+(L120-O119)*$O$74) -> 0 | P120: 0 | Q120: 0 | R120: 0 | S120: 0 | T120: 0 | U120: 0 | V120: 0 | W120: 0 | X120: 0 | Y120: 0 | Z120: 0 | AA120: 0
A121: 1 | B121: 0.45 | C121: 1.047291875 | D121: 0.65 | E121: 2.2845 | F121: 2.2995 | G121: 2.2395 | H121: 2.2545 | I121: =IF($B$7=constants!$C$60,G121,IF($B$8=constants!$C$60,C121,E121)) -> 2.2845 | J121: =IF($B$7=constants!$C$60,H121,IF($B$8=constants!$C$60,D121,F121)) -> 2.2995 | K121: 1 | L121: 0 | M121: 0 | N121: 0 | O121: =IF(OR($B$22=constants!$B$60,AND(I121>$B$12,$B$12<>-1)),O120+(N121-O120)*$O$74,O120+(L121-O120)*$O$74) -> 0 | P121: 0 | Q121: 0 | R121: 0 | S121: 0 | T121: 0 | U121: 0 | V121: 0 | W121: 0 | X121: 0 | Y121: 0 | Z121: 0 | AA121: 0
A122: 1 | B122: 0.46 | C122: 1.05715327 | D122: 0.65 | E122: 2.2845 | F122: 2.2995 | G122: 2.2385 | H122: 2.2535 | I122: =IF($B$7=constants!$C$60,G122,IF($B$8=constants!$C$60,C122,E122)) -> 2.2845 | J122: =IF($B$7=constants!$C$60,H122,IF($B$8=constants!$C$60,D122,F122)) -> 2.2995 | K122: 1 | L122: 0 | M122: 0 | N122: 0 | O122: =IF(OR($B$22=constants!$B$60,AND(I122>$B$12,$B$12<>-1)),O121+(N122-O121)*$O$74,O121+(L122-O121)*$O$74) -> 0 | P122: 0 | Q122: 0 | R122: 0 | S122: 0 | T122: 0 | U122: 0 | V122: 0 | W122: 0 | X122: 0 | Y122: 0 | Z122: 0 | AA122: 0
A123: 1 | B123: 0.47 | C123: 1.06669137 | D123: 0.65 | E123: 2.2845 | F123: 2.2995 | G123: 2.2375 | H123: 2.2525 | I123: =IF($B$7=constants!$C$60,G123,IF($B$8=constants!$C$60,C123,E123)) -> 2.2845 | J123: =IF($B$7=constants!$C$60,H123,IF($B$8=constants!$C$60,D123,F123)) -> 2.2995 | K123: 1 | L123: 0 | M123: 0 | N123: 0 | O123: =IF(OR($B$22=constants!$B$60,AND(I123>$B$12,$B$12<>-1)),O122+(N123-O122)*$O$74,O122+(L123-O122)*$O$74) -> 0 | P123: 0 | Q123: 0 | R123: 0 | S123: 0 | T123: 0 | U123: 0 | V123: 0 | W123: 0 | X123: 0 | Y123: 0 | Z123: 0 | AA123: 0
A124: 1 | B124: 0.48 | C124: 1.075916774 | D124: 0.65 | E124: 2.2845 | F124: 2.2995 | G124: 2.2365 | H124: 2.2515 | I124: =IF($B$7=constants!$C$60,G124,IF($B$8=constants!$C$60,C124,E124)) -> 2.2845 | J124: =IF($B$7=constants!$C$60,H124,IF($B$8=constants!$C$60,D124,F124)) -> 2.2995 | K124: 1 | L124: 0 | M124: 0 | N124: 0 | O124: =IF(OR($B$22=constants!$B$60,AND(I124>$B$12,$B$12<>-1)),O123+(N124-O123)*$O$74,O123+(L124-O123)*$O$74) -> 0 | P124: 0 | Q124: 0 | R124: 0 | S124: 0 | T124: 0 | U124: 0 | V124: 0 | W124: 0 | X124: 0 | Y124: 0 | Z124: 0 | AA124: 0
A125: 1 | B125: 0.49 | C125: 1.084839734 | D125: 0.65 | E125: 2.2845 | F125: 2.2995 | G125: 2.2355 | H125: 2.2505 | I125: =IF($B$7=constants!$C$60,G125,IF($B$8=constants!$C$60,C125,E125)) -> 2.2845 | J125: =IF($B$7=constants!$C$60,H125,IF($B$8=constants!$C$60,D125,F125)) -> 2.2995 | K125: 1 | L125: 0 | M125: 0 | N125: 0 | O125: =IF(OR($B$22=constants!$B$60,AND(I125>$B$12,$B$12<>-1)),O124+(N125-O124)*$O$74,O124+(L125-O124)*$O$74) -> 0 | P125: 0 | Q125: 0 | R125: 0 | S125: 0 | T125: 0 | U125: 0 | V125: 0 | W125: 0 | X125: 0 | Y125: 0 | Z125: 0 | AA125: 0
A126: 1 | B126: 0.5 | C126: 1.093470164 | D126: 0.65 | E126: 2.2845 | F126: 2.2995 | G126: 2.2345 | H126: 2.2495 | I126: =IF($B$7=constants!$C$60,G126,IF($B$8=constants!$C$60,C126,E126)) -> 2.2845 | J126: =IF($B$7=constants!$C$60,H126,IF($B$8=constants!$C$60,D126,F126)) -> 2.2995 | K126: 1 | L126: 0 | M126: 0 | N126: 0 | O126: =IF(OR($B$22=constants!$B$60,AND(I126>$B$12,$B$12<>-1)),O125+(N126-O125)*$O$74,O125+(L126-O125)*$O$74) -> 0 | P126: 0 | Q126: 0 | R126: 0 | S126: 0 | T126: 0 | U126: 0 | V126: 0 | W126: 0 | X126: 0 | Y126: 0 | Z126: 0 | AA126: 0
A127: 1 | B127: 0.51 | C127: 1.101817654 | D127: 0.65 | E127: 2.2845 | F127: 2.2995 | G127: 2.2335 | H127: 2.2485 | I127: =IF($B$7=constants!$C$60,G127,IF($B$8=constants!$C$60,C127,E127)) -> 2.2845 | J127: =IF($B$7=constants!$C$60,H127,IF($B$8=constants!$C$60,D127,F127)) -> 2.2995 | K127: 1 | L127: 0 | M127: 0 | N127: 0 | O127: =IF(OR($B$22=constants!$B$60,AND(I127>$B$12,$B$12<>-1)),O126+(N127-O126)*$O$74,O126+(L127-O126)*$O$74) -> 0 | P127: 0 | Q127: 0 | R127: 0 | S127: 0 | T127: 0 | U127: 0 | V127: 0 | W127: 0 | X127: 0 | Y127: 0 | Z127: 0 | AA127: 0
A128: 1 | B128: 0.52 | C128: 1.109891482 | D128: 0.65 | E128: 2.2845 | F128: 2.2995 | G128: 2.2325 | H128: 2.2475 | I128: =IF($B$7=constants!$C$60,G128,IF($B$8=constants!$C$60,C128,E128)) -> 2.2845 | J128: =IF($B$7=constants!$C$60,H128,IF($B$8=constants!$C$60,D128,F128)) -> 2.2995 | K128: 1 | L128: 0 | M128: 0 | N128: 0 | O128: =IF(OR($B$22=constants!$B$60,AND(I128>$B$12,$B$12<>-1)),O127+(N128-O127)*$O$74,O127+(L128-O127)*$O$74) -> 0 | P128: 0 | Q128: 0 | R128: 0 | S128: 0 | T128: 0 | U128: 0 | V128: 0 | W128: 0 | X128: 0 | Y128: 0 | Z128: 0 | AA128: 0
A129: 1 | B129: 0.53 | C129: 1.117700618 | D129: 0.65 | E129: 2.2845 | F129: 2.2995 | G129: 2.2315 | H129: 2.2465 | I129: =IF($B$7=constants!$C$60,G129,IF($B$8=constants!$C$60,C129,E129)) -> 2.2845 | J129: =IF($B$7=constants!$C$60,H129,IF($B$8=constants!$C$60,D129,F129)) -> 2.2995 | K129: 1 | L129: 0 | M129: 0 | N129: 0 | O129: =IF(OR($B$22=constants!$B$60,AND(I129>$B$12,$B$12<>-1)),O128+(N129-O128)*$O$74,O128+(L129-O128)*$O$74) -> 0 | P129: 0 | Q129: 0 | R129: 0 | S129: 0 | T129: 0 | U129: 0 | V129: 0 | W129: 0 | X129: 0 | Y129: 0 | Z129: 0 | AA129: 0
A130: 1 | B130: 0.54 | C130: 1.12525374 | D130: 0.65 | E130: 2.2845 | F130: 2.2995 | G130: 2.2305 | H130: 2.2455 | I130: =IF($B$7=constants!$C$60,G130,IF($B$8=constants!$C$60,C130,E130)) -> 2.2845 | J130: =IF($B$7=constants!$C$60,H130,IF($B$8=constants!$C$60,D130,F130)) -> 2.2995 | K130: 1 | L130: 0 | M130: 0 | N130: 0 | O130: =IF(OR($B$22=constants!$B$60,AND(I130>$B$12,$B$12<>-1)),O129+(N130-O129)*$O$74,O129+(L130-O129)*$O$74) -> 0 | P130: 0 | Q130: 0 | R130: 0 | S130: 0 | T130: 0 | U130: 0 | V130: 0 | W130: 0 | X130: 0 | Y130: 0 | Z130: 0 | AA130: 0
A131: 1 | B131: 0.55 | C131: 1.132559241 | D131: 0.65 | E131: 2.2845 | F131: 2.2995 | G131: 2.2295 | H131: 2.2445 | I131: =IF($B$7=constants!$C$60,G131,IF($B$8=constants!$C$60,C131,E131)) -> 2.2845 | J131: =IF($B$7=constants!$C$60,H131,IF($B$8=constants!$C$60,D131,F131)) -> 2.2995 | K131: 1 | L131: 0 | M131: 0 | N131: 0 | O131: =IF(OR($B$22=constants!$B$60,AND(I131>$B$12,$B$12<>-1)),O130+(N131-O130)*$O$74,O130+(L131-O130)*$O$74) -> 0 | P131: 0 | Q131: 0 | R131: 0 | S131: 0 | T131: 0 | U131: 0 | V131: 0 | W131: 0 | X131: 0 | Y131: 0 | Z131: 0 | AA131: 0
A132: 1 | B132: 0.56 | C132: 1.139625239 | D132: 0.65 | E132: 2.2845 | F132: 2.2995 | G132: 2.2285 | H132: 2.2435 | I132: =IF($B$7=constants!$C$60,G132,IF($B$8=constants!$C$60,C132,E132)) -> 2.2845 | J132: =IF($B$7=constants!$C$60,H132,IF($B$8=constants!$C$60,D132,F132)) -> 2.2995 | K132: 1 | L132: 0 | M132: 0 | N132: 0 | O132: =IF(OR($B$22=constants!$B$60,AND(I132>$B$12,$B$12<>-1)),O131+(N132-O131)*$O$74,O131+(L132-O131)*$O$74) -> 0 | P132: 0 | Q132: 0 | R132: 0 | S132: 0 | T132: 0 | U132: 0 | V132: 0 | W132: 0 | X132: 0 | Y132: 0 | Z132: 0 | AA132: 0
A133: 1 | B133: 0.57 | C133: 1.146459587 | D133: 0.65 | E133: 2.2845 | F133: 2.2995 | G133: 2.2275 | H133: 2.2425 | I133: =IF($B$7=constants!$C$60,G133,IF($B$8=constants!$C$60,C133,E133)) -> 2.2845 | J133: =IF($B$7=constants!$C$60,H133,IF($B$8=constants!$C$60,D133,F133)) -> 2.2995 | K133: 1 | L133: 0 | M133: 0 | N133: 0 | O133: =IF(OR($B$22=constants!$B$60,AND(I133>$B$12,$B$12<>-1)),O132+(N133-O132)*$O$74,O132+(L133-O132)*$O$74) -> 0 | P133: 0 | Q133: 0 | R133: 0 | S133: 0 | T133: 0 | U133: 0 | V133: 0 | W133: 0 | X133: 0 | Y133: 0 | Z133: 0 | AA133: 0
A134: 1 | B134: 0.58 | C134: 1.153069878 | D134: 0.65 | E134: 2.2845 | F134: 2.2995 | G134: 2.2265 | H134: 2.2415 | I134: =IF($B$7=constants!$C$60,G134,IF($B$8=constants!$C$60,C134,E134)) -> 2.2845 | J134: =IF($B$7=constants!$C$60,H134,IF($B$8=constants!$C$60,D134,F134)) -> 2.2995 | K134: 1 | L134: 0 | M134: 0 | N134: 0 | O134: =IF(OR($B$22=constants!$B$60,AND(I134>$B$12,$B$12<>-1)),O133+(N134-O133)*$O$74,O133+(L134-O133)*$O$74) -> 0 | P134: 0 | Q134: 0 | R134: 0 | S134: 0 | T134: 0 | U134: 0 | V134: 0 | W134: 0 | X134: 0 | Y134: 0 | Z134: 0 | AA134: 0
A135: 1 | B135: 0.59 | C135: 1.159463457 | D135: 0.65 | E135: 2.2845 | F135: 2.2995 | G135: 2.2255 | H135: 2.2405 | I135: =IF($B$7=constants!$C$60,G135,IF($B$8=constants!$C$60,C135,E135)) -> 2.2845 | J135: =IF($B$7=constants!$C$60,H135,IF($B$8=constants!$C$60,D135,F135)) -> 2.2995 | K135: 1 | L135: 0 | M135: 0 | N135: 0 | O135: =IF(OR($B$22=constants!$B$60,AND(I135>$B$12,$B$12<>-1)),O134+(N135-O134)*$O$74,O134+(L135-O134)*$O$74) -> 0 | P135: 0 | Q135: 0 | R135: 0 | S135: 0 | T135: 0 | U135: 0 | V135: 0 | W135: 0 | X135: 0 | Y135: 0 | Z135: 0 | AA135: 0
A136: 1 | B136: 0.6 | C136: 1.16564743 | D136: 0.65 | E136: 2.2845 | F136: 2.2995 | G136: 2.2245 | H136: 2.2395 | I136: =IF($B$7=constants!$C$60,G136,IF($B$8=constants!$C$60,C136,E136)) -> 2.2845 | J136: =IF($B$7=constants!$C$60,H136,IF($B$8=constants!$C$60,D136,F136)) -> 2.2995 | K136: 1 | L136: 0 | M136: 0 | N136: 0 | O136: =IF(OR($B$22=constants!$B$60,AND(I136>$B$12,$B$12<>-1)),O135+(N136-O135)*$O$74,O135+(L136-O135)*$O$74) -> 0 | P136: 0 | Q136: 0 | R136: 0 | S136: 0 | T136: 0 | U136: 0 | V136: 0 | W136: 0 | X136: 0 | Y136: 0 | Z136: 0 | AA136: 0
A137: 1 | B137: 0.61 | C137: 1.171628669 | D137: 0.65 | E137: 2.2845 | F137: 2.2995 | G137: 2.2235 | H137: 2.2385 | I137: =IF($B$7=constants!$C$60,G137,IF($B$8=constants!$C$60,C137,E137)) -> 2.2845 | J137: =IF($B$7=constants!$C$60,H137,IF($B$8=constants!$C$60,D137,F137)) -> 2.2995 | K137: 1 | L137: 0 | M137: 0 | N137: 0 | O137: =IF(OR($B$22=constants!$B$60,AND(I137>$B$12,$B$12<>-1)),O136+(N137-O136)*$O$74,O136+(L137-O136)*$O$74) -> 0 | P137: 0 | Q137: 0 | R137: 0 | S137: 0 | T137: 0 | U137: 0 | V137: 0 | W137: 0 | X137: 0 | Y137: 0 | Z137: 0 | AA137: 0
A138: 1 | B138: 0.62 | C138: 1.177413819 | D138: 0.65 | E138: 2.2845 | F138: 2.2995 | G138: 2.2225 | H138: 2.2375 | I138: =IF($B$7=constants!$C$60,G138,IF($B$8=constants!$C$60,C138,E138)) -> 2.2845 | J138: =IF($B$7=constants!$C$60,H138,IF($B$8=constants!$C$60,D138,F138)) -> 2.2995 | K138: 1 | L138: 0 | M138: 0 | N138: 0 | O138: =IF(OR($B$22=constants!$B$60,AND(I138>$B$12,$B$12<>-1)),O137+(N138-O137)*$O$74,O137+(L138-O137)*$O$74) -> 0 | P138: 0 | Q138: 0 | R138: 0 | S138: 0 | T138: 0 | U138: 0 | V138: 0 | W138: 0 | X138: 0 | Y138: 0 | Z138: 0 | AA138: 0
A139: 1 | B139: 0.63 | C139: 1.18300931 | D139: 0.65 | E139: 2.2845 | F139: 2.2995 | G139: 2.2215 | H139: 2.2365 | I139: =IF($B$7=constants!$C$60,G139,IF($B$8=constants!$C$60,C139,E139)) -> 2.2845 | J139: =IF($B$7=constants!$C$60,H139,IF($B$8=constants!$C$60,D139,F139)) -> 2.2995 | K139: 1 | L139: 0 | M139: 0 | N139: 0 | O139: =IF(OR($B$22=constants!$B$60,AND(I139>$B$12,$B$12<>-1)),O138+(N139-O138)*$O$74,O138+(L139-O138)*$O$74) -> 0 | P139: 0 | Q139: 0 | R139: 0 | S139: 0 | T139: 0 | U139: 0 | V139: 0 | W139: 0 | X139: 0 | Y139: 0 | Z139: 0 | AA139: 0
A140: 1 | B140: 0.64 | C140: 1.188421358 | D140: 0.65 | E140: =($F$76-$F$74)/(1-EXP(-1/E$74))*(1-EXP(-$B140/E$74)) -> 2.2845 | F140: 2.2995 | G140: =(H140-$H$74)/(1-EXP(-1/G$74))*(1-EXP(-$B140/G$74)) -> 2.2205 | H140: 2.2355 | I140: =IF($B$7=constants!$C$60,G140,IF($B$8=constants!$C$60,C140,E140)) -> 2.2845 | J140: =IF($B$7=constants!$C$60,H140,IF($B$8=constants!$C$60,D140,F140)) -> 2.2995 | K140: 1 | L140: 0 | M140: 0 | N140: 0 | O140: =IF(OR($B$22=constants!$B$60,AND(I140>$B$12,$B$12<>-1)),O139+(N140-O139)*$O$74,O139+(L140-O139)*$O$74) -> 0 | P140: 0 | Q140: 0 | R140: 0 | S140: 0 | T140: 0 | U140: 0 | V140: 0 | W140: 0 | X140: 0 | Y140: 0 | Z140: 0 | AA140: 0
A141: =IF(B141<=100,1,IF(B141<=200,2,3)) -> 1 | B141: 0.65 | C141: =$B$18/(1-EXP(-1/$C$74))*(1-EXP(-B141/$C$74)) -> 1.193655978 | D141: 0.65 | E141: 2.2845 | F141: 2.2995 | G141: 2.2195 | H141: =$H$68*B141+$H$69 -> 2.2345 | I141: =IF($B$7=constants!$C$60,G141,IF($B$8=constants!$C$60,C141,E141)) -> 2.2845 | J141: =IF($B$7=constants!$C$60,H141,IF($B$8=constants!$C$60,D141,F141)) -> 2.2995 | K141: 1 | L141: 0 | M141: 0 | N141: =IF(M141>I141,L141,M141) -> 0 | O141: =IF(OR($B$22=constants!$B$60,AND(I141>$B$12,$B$12<>-1)),O140+(N141-O140)*$O$74,O140+(L141-O140)*$O$74) -> 0 | P141: =IF(O141=0,0,O141-$P$72) -> 0 | Q141: 0 | R141: 0 | S141: =S$72*IF(S$71=0,$L141,IF(S$71=1,$R141,IF($B$12=-1,$L141,IF($I141>$B$12,$R141,$L141)))) -> 0 | T141: 0 | U141: 0 | V141: 0 | W141: 0 | X141: 0 | Y141: =IF(V141=0,0,V141-Y$72) -> 0 | Z141: =IF(W141=0,0,W141-Z$72) -> 0 | AA141: =IF(X141=0,0,X141-AA$72) -> 0
A142: 1 | B142: =B141+0.01 -> 0.66 | C142: 1.198718987 | D142: =D141 -> 0.65 | E142: 2.2845 | F142: 2.2995 | G142: 2.2185 | H142: 2.2335 | I142: =IF($B$7=constants!$C$60,G142,IF($B$8=constants!$C$60,C142,E142)) -> 2.2845 | J142: =IF($B$7=constants!$C$60,H142,IF($B$8=constants!$C$60,D142,F142)) -> 2.2995 | K142: =IF(AND(I142>$B$16,K141=0),1,IF(AND(I142<$B$17,K141=1),0,K141)) -> 1 | L142: 0 | M142: 0 | N142: 0 | O142: =IF(OR($B$22=constants!$B$60,AND(I142>$B$12,$B$12<>-1)),O141+(N142-O141)*$O$74,O141+(L142-O141)*$O$74) -> 0 | P142: 0 | Q142: 0 | R142: =IF(Q142>I142,I142,Q142) -> 0 | S142: 0 | T142: 0 | U142: 0 | V142: =V141+(S142-V$72-V141)*V$74 -> 0 | W142: =W141+(T142-W$72-W141)*W$74 -> 0 | X142: =X141+(U142-X$72-X141)*X$74 -> 0 | Y142: 0 | Z142: 0 | AA142: 0
A143: 1 | B143: 0.67 | C143: 1.203616011 | D143: 0.65 | E143: 2.2845 | F143: 2.2995 | G143: 2.2175 | H143: 2.2325 | I143: =IF($B$7=constants!$C$60,G143,IF($B$8=constants!$C$60,C143,E143)) -> 2.2845 | J143: =IF($B$7=constants!$C$60,H143,IF($B$8=constants!$C$60,D143,F143)) -> 2.2995 | K143: 1 | L143: 0 | M143: 0 | N143: 0 | O143: =IF(OR($B$22=constants!$B$60,AND(I143>$B$12,$B$12<>-1)),O142+(N143-O142)*$O$74,O142+(L143-O142)*$O$74) -> 0 | P143: 0 | Q143: 0 | R143: 0 | S143: 0 | T143: 0 | U143: 0 | V143: 0 | W143: 0 | X143: 0 | Y143: 0 | Z143: 0 | AA143: 0
A144: 1 | B144: 0.68 | C144: 1.208352492 | D144: 0.65 | E144: 2.2845 | F144: 2.2995 | G144: 2.2165 | H144: 2.2315 | I144: =IF($B$7=constants!$C$60,G144,IF($B$8=constants!$C$60,C144,E144)) -> 2.2845 | J144: =IF($B$7=constants!$C$60,H144,IF($B$8=constants!$C$60,D144,F144)) -> 2.2995 | K144: 1 | L144: 0 | M144: 0 | N144: 0 | O144: =IF(OR($B$22=constants!$B$60,AND(I144>$B$12,$B$12<>-1)),O143+(N144-O143)*$O$74,O143+(L144-O143)*$O$74) -> 0 | P144: 0 | Q144: 0 | R144: 0 | S144: 0 | T144: 0 | U144: 0 | V144: 0 | W144: 0 | X144: 0 | Y144: 0 | Z144: 0 | AA144: 0
A145: 1 | B145: 0.69 | C145: 1.212933692 | D145: 0.65 | E145: 2.2845 | F145: 2.2995 | G145: 2.2155 | H145: 2.2305 | I145: =IF($B$7=constants!$C$60,G145,IF($B$8=constants!$C$60,C145,E145)) -> 2.2845 | J145: =IF($B$7=constants!$C$60,H145,IF($B$8=constants!$C$60,D145,F145)) -> 2.2995 | K145: 1 | L145: 0 | M145: 0 | N145: 0 | O145: =IF(OR($B$22=constants!$B$60,AND(I145>$B$12,$B$12<>-1)),O144+(N145-O144)*$O$74,O144+(L145-O144)*$O$74) -> 0 | P145: 0 | Q145: 0 | R145: 0 | S145: 0 | T145: 0 | U145: 0 | V145: 0 | W145: 0 | X145: 0 | Y145: 0 | Z145: 0 | AA145: 0
A146: 1 | B146: 0.7 | C146: 1.217364702 | D146: 0.65 | E146: 2.2845 | F146: 2.2995 | G146: 2.2145 | H146: 2.2295 | I146: =IF($B$7=constants!$C$60,G146,IF($B$8=constants!$C$60,C146,E146)) -> 2.2845 | J146: =IF($B$7=constants!$C$60,H146,IF($B$8=constants!$C$60,D146,F146)) -> 2.2995 | K146: 1 | L146: 0 | M146: 0 | N146: 0 | O146: =IF(OR($B$22=constants!$B$60,AND(I146>$B$12,$B$12<>-1)),O145+(N146-O145)*$O$74,O145+(L146-O145)*$O$74) -> 0 | P146: 0 | Q146: 0 | R146: 0 | S146: 0 | T146: 0 | U146: 0 | V146: 0 | W146: 0 | X146: 0 | Y146: 0 | Z146: 0 | AA146: 0
A147: 1 | B147: 0.71 | C147: 1.221650447 | D147: 0.65 | E147: 2.2845 | F147: 2.2995 | G147: 2.2135 | H147: 2.2285 | I147: =IF($B$7=constants!$C$60,G147,IF($B$8=constants!$C$60,C147,E147)) -> 2.2845 | J147: =IF($B$7=constants!$C$60,H147,IF($B$8=constants!$C$60,D147,F147)) -> 2.2995 | K147: 1 | L147: 0 | M147: 0 | N147: 0 | O147: =IF(OR($B$22=constants!$B$60,AND(I147>$B$12,$B$12<>-1)),O146+(N147-O146)*$O$74,O146+(L147-O146)*$O$74) -> 0 | P147: 0 | Q147: 0 | R147: 0 | S147: 0 | T147: 0 | U147: 0 | V147: 0 | W147: 0 | X147: 0 | Y147: 0 | Z147: 0 | AA147: 0
A148: 1 | B148: 0.72 | C148: 1.225795688 | D148: 0.65 | E148: 2.2845 | F148: 2.2995 | G148: 2.2125 | H148: 2.2275 | I148: =IF($B$7=constants!$C$60,G148,IF($B$8=constants!$C$60,C148,E148)) -> 2.2845 | J148: =IF($B$7=constants!$C$60,H148,IF($B$8=constants!$C$60,D148,F148)) -> 2.2995 | K148: 1 | L148: 0 | M148: 0 | N148: 0 | O148: =IF(OR($B$22=constants!$B$60,AND(I148>$B$12,$B$12<>-1)),O147+(N148-O147)*$O$74,O147+(L148-O147)*$O$74) -> 0 | P148: 0 | Q148: 0 | R148: 0 | S148: 0 | T148: 0 | U148: 0 | V148: 0 | W148: 0 | X148: 0 | Y148: 0 | Z148: 0 | AA148: 0
A149: 1 | B149: 0.73 | C149: 1.229805032 | D149: 0.65 | E149: 2.2845 | F149: 2.2995 | G149: 2.2115 | H149: 2.2265 | I149: =IF($B$7=constants!$C$60,G149,IF($B$8=constants!$C$60,C149,E149)) -> 2.2845 | J149: =IF($B$7=constants!$C$60,H149,IF($B$8=constants!$C$60,D149,F149)) -> 2.2995 | K149: 1 | L149: 0 | M149: 0 | N149: 0 | O149: =IF(OR($B$22=constants!$B$60,AND(I149>$B$12,$B$12<>-1)),O148+(N149-O148)*$O$74,O148+(L149-O148)*$O$74) -> 0 | P149: 0 | Q149: 0 | R149: 0 | S149: 0 | T149: 0 | U149: 0 | V149: 0 | W149: 0 | X149: 0 | Y149: 0 | Z149: 0 | AA149: 0
A150: 1 | B150: 0.74 | C150: 1.233682934 | D150: 0.65 | E150: 2.2845 | F150: 2.2995 | G150: 2.2105 | H150: 2.2255 | I150: =IF($B$7=constants!$C$60,G150,IF($B$8=constants!$C$60,C150,E150)) -> 2.2845 | J150: =IF($B$7=constants!$C$60,H150,IF($B$8=constants!$C$60,D150,F150)) -> 2.2995 | K150: 1 | L150: 0 | M150: 0 | N150: 0 | O150: =IF(OR($B$22=constants!$B$60,AND(I150>$B$12,$B$12<>-1)),O149+(N150-O149)*$O$74,O149+(L150-O149)*$O$74) -> 0 | P150: 0 | Q150: 0 | R150: 0 | S150: 0 | T150: 0 | U150: 0 | V150: 0 | W150: 0 | X150: 0 | Y150: 0 | Z150: 0 | AA150: 0
A151: 1 | B151: 0.75 | C151: 1.237433703 | D151: 0.65 | E151: 2.2845 | F151: 2.2995 | G151: 2.2095 | H151: 2.2245 | I151: =IF($B$7=constants!$C$60,G151,IF($B$8=constants!$C$60,C151,E151)) -> 2.2845 | J151: =IF($B$7=constants!$C$60,H151,IF($B$8=constants!$C$60,D151,F151)) -> 2.2995 | K151: 1 | L151: 0 | M151: 0 | N151: 0 | O151: =IF(OR($B$22=constants!$B$60,AND(I151>$B$12,$B$12<>-1)),O150+(N151-O150)*$O$74,O150+(L151-O150)*$O$74) -> 0 | P151: 0 | Q151: 0 | R151: 0 | S151: 0 | T151: 0 | U151: 0 | V151: 0 | W151: 0 | X151: 0 | Y151: 0 | Z151: 0 | AA151: 0
A152: 1 | B152: 0.76 | C152: 1.241061508 | D152: 0.65 | E152: 2.2845 | F152: 2.2995 | G152: 2.2085 | H152: 2.2235 | I152: =IF($B$7=constants!$C$60,G152,IF($B$8=constants!$C$60,C152,E152)) -> 2.2845 | J152: =IF($B$7=constants!$C$60,H152,IF($B$8=constants!$C$60,D152,F152)) -> 2.2995 | K152: 1 | L152: 0 | M152: 0 | N152: 0 | O152: =IF(OR($B$22=constants!$B$60,AND(I152>$B$12,$B$12<>-1)),O151+(N152-O151)*$O$74,O151+(L152-O151)*$O$74) -> 0 | P152: 0 | Q152: 0 | R152: 0 | S152: 0 | T152: 0 | U152: 0 | V152: 0 | W152: 0 | X152: 0 | Y152: 0 | Z152: 0 | AA152: 0
A153: 1 | B153: 0.77 | C153: 1.244570379 | D153: 0.65 | E153: 2.2845 | F153: 2.2995 | G153: 2.2075 | H153: 2.2225 | I153: =IF($B$7=constants!$C$60,G153,IF($B$8=constants!$C$60,C153,E153)) -> 2.2845 | J153: =IF($B$7=constants!$C$60,H153,IF($B$8=constants!$C$60,D153,F153)) -> 2.2995 | K153: 1 | L153: 0 | M153: 0 | N153: 0 | O153: =IF(OR($B$22=constants!$B$60,AND(I153>$B$12,$B$12<>-1)),O152+(N153-O152)*$O$74,O152+(L153-O152)*$O$74) -> 0 | P153: 0 | Q153: 0 | R153: 0 | S153: 0 | T153: 0 | U153: 0 | V153: 0 | W153: 0 | X153: 0 | Y153: 0 | Z153: 0 | AA153: 0
A154: 1 | B154: 0.78 | C154: 1.247964215 | D154: 0.65 | E154: 2.2845 | F154: 2.2995 | G154: 2.2065 | H154: 2.2215 | I154: =IF($B$7=constants!$C$60,G154,IF($B$8=constants!$C$60,C154,E154)) -> 2.2845 | J154: =IF($B$7=constants!$C$60,H154,IF($B$8=constants!$C$60,D154,F154)) -> 2.2995 | K154: 1 | L154: 0 | M154: 0 | N154: 0 | O154: =IF(OR($B$22=constants!$B$60,AND(I154>$B$12,$B$12<>-1)),O153+(N154-O153)*$O$74,O153+(L154-O153)*$O$74) -> 0 | P154: 0 | Q154: 0 | R154: 0 | S154: 0 | T154: 0 | U154: 0 | V154: 0 | W154: 0 | X154: 0 | Y154: 0 | Z154: 0 | AA154: 0
A155: 1 | B155: 0.79 | C155: 1.251246789 | D155: 0.65 | E155: 2.2845 | F155: 2.2995 | G155: 2.2055 | H155: 2.2205 | I155: =IF($B$7=constants!$C$60,G155,IF($B$8=constants!$C$60,C155,E155)) -> 2.2845 | J155: =IF($B$7=constants!$C$60,H155,IF($B$8=constants!$C$60,D155,F155)) -> 2.2995 | K155: 1 | L155: 0 | M155: 0 | N155: 0 | O155: =IF(OR($B$22=constants!$B$60,AND(I155>$B$12,$B$12<>-1)),O154+(N155-O154)*$O$74,O154+(L155-O154)*$O$74) -> 0 | P155: 0 | Q155: 0 | R155: 0 | S155: 0 | T155: 0 | U155: 0 | V155: 0 | W155: 0 | X155: 0 | Y155: 0 | Z155: 0 | AA155: 0
A156: 1 | B156: 0.8 | C156: 1.254421746 | D156: 0.65 | E156: 2.2845 | F156: 2.2995 | G156: 2.2045 | H156: 2.2195 | I156: =IF($B$7=constants!$C$60,G156,IF($B$8=constants!$C$60,C156,E156)) -> 2.2845 | J156: =IF($B$7=constants!$C$60,H156,IF($B$8=constants!$C$60,D156,F156)) -> 2.2995 | K156: 1 | L156: 0 | M156: 0 | N156: 0 | O156: =IF(OR($B$22=constants!$B$60,AND(I156>$B$12,$B$12<>-1)),O155+(N156-O155)*$O$74,O155+(L156-O155)*$O$74) -> 0 | P156: 0 | Q156: 0 | R156: 0 | S156: 0 | T156: 0 | U156: 0 | V156: 0 | W156: 0 | X156: 0 | Y156: 0 | Z156: 0 | AA156: 0
A157: 1 | B157: 0.81 | C157: 1.257492617 | D157: 0.65 | E157: 2.2845 | F157: 2.2995 | G157: 2.2035 | H157: 2.2185 | I157: =IF($B$7=constants!$C$60,G157,IF($B$8=constants!$C$60,C157,E157)) -> 2.2845 | J157: =IF($B$7=constants!$C$60,H157,IF($B$8=constants!$C$60,D157,F157)) -> 2.2995 | K157: 1 | L157: 0 | M157: 0 | N157: 0 | O157: =IF(OR($B$22=constants!$B$60,AND(I157>$B$12,$B$12<>-1)),O156+(N157-O156)*$O$74,O156+(L157-O156)*$O$74) -> 0 | P157: 0 | Q157: 0 | R157: 0 | S157: 0 | T157: 0 | U157: 0 | V157: 0 | W157: 0 | X157: 0 | Y157: 0 | Z157: 0 | AA157: 0
A158: 1 | B158: 0.82 | C158: 1.260462812 | D158: 0.65 | E158: 2.2845 | F158: 2.2995 | G158: 2.2025 | H158: 2.2175 | I158: =IF($B$7=constants!$C$60,G158,IF($B$8=constants!$C$60,C158,E158)) -> 2.2845 | J158: =IF($B$7=constants!$C$60,H158,IF($B$8=constants!$C$60,D158,F158)) -> 2.2995 | K158: 1 | L158: 0 | M158: 0 | N158: 0 | O158: =IF(OR($B$22=constants!$B$60,AND(I158>$B$12,$B$12<>-1)),O157+(N158-O157)*$O$74,O157+(L158-O157)*$O$74) -> 0 | P158: 0 | Q158: 0 | R158: 0 | S158: 0 | T158: 0 | U158: 0 | V158: 0 | W158: 0 | X158: 0 | Y158: 0 | Z158: 0 | AA158: 0
A159: 1 | B159: 0.83 | C159: 1.263335632 | D159: 0.65 | E159: 2.2845 | F159: 2.2995 | G159: 2.2015 | H159: 2.2165 | I159: =IF($B$7=constants!$C$60,G159,IF($B$8=constants!$C$60,C159,E159)) -> 2.2845 | J159: =IF($B$7=constants!$C$60,H159,IF($B$8=constants!$C$60,D159,F159)) -> 2.2995 | K159: 1 | L159: 0 | M159: 0 | N159: 0 | O159: =IF(OR($B$22=constants!$B$60,AND(I159>$B$12,$B$12<>-1)),O158+(N159-O158)*$O$74,O158+(L159-O158)*$O$74) -> 0 | P159: 0 | Q159: 0 | R159: 0 | S159: 0 | T159: 0 | U159: 0 | V159: 0 | W159: 0 | X159: 0 | Y159: 0 | Z159: 0 | AA159: 0
A160: 1 | B160: 0.84 | C160: 1.266114271 | D160: 0.65 | E160: 2.2845 | F160: 2.2995 | G160: 2.2005 | H160: 2.2155 | I160: =IF($B$7=constants!$C$60,G160,IF($B$8=constants!$C$60,C160,E160)) -> 2.2845 | J160: =IF($B$7=constants!$C$60,H160,IF($B$8=constants!$C$60,D160,F160)) -> 2.2995 | K160: 1 | L160: 0 | M160: 0 | N160: 0 | O160: =IF(OR($B$22=constants!$B$60,AND(I160>$B$12,$B$12<>-1)),O159+(N160-O159)*$O$74,O159+(L160-O159)*$O$74) -> 0 | P160: 0 | Q160: 0 | R160: 0 | S160: 0 | T160: 0 | U160: 0 | V160: 0 | W160: 0 | X160: 0 | Y160: 0 | Z160: 0 | AA160: 0
A161: 1 | B161: 0.85 | C161: 1.268801814 | D161: 0.65 | E161: 2.2845 | F161: 2.2995 | G161: 2.1995 | H161: 2.2145 | I161: =IF($B$7=constants!$C$60,G161,IF($B$8=constants!$C$60,C161,E161)) -> 2.2845 | J161: =IF($B$7=constants!$C$60,H161,IF($B$8=constants!$C$60,D161,F161)) -> 2.2995 | K161: 1 | L161: 0 | M161: 0 | N161: 0 | O161: =IF(OR($B$22=constants!$B$60,AND(I161>$B$12,$B$12<>-1)),O160+(N161-O160)*$O$74,O160+(L161-O160)*$O$74) -> 0 | P161: 0 | Q161: 0 | R161: 0 | S161: 0 | T161: 0 | U161: 0 | V161: 0 | W161: 0 | X161: 0 | Y161: 0 | Z161: 0 | AA161: 0
A162: 1 | B162: 0.86 | C162: 1.27140125 | D162: 0.65 | E162: 2.2845 | F162: 2.2995 | G162: 2.1985 | H162: 2.2135 | I162: =IF($B$7=constants!$C$60,G162,IF($B$8=constants!$C$60,C162,E162)) -> 2.2845 | J162: =IF($B$7=constants!$C$60,H162,IF($B$8=constants!$C$60,D162,F162)) -> 2.2995 | K162: 1 | L162: 0 | M162: 0 | N162: 0 | O162: =IF(OR($B$22=constants!$B$60,AND(I162>$B$12,$B$12<>-1)),O161+(N162-O161)*$O$74,O161+(L162-O161)*$O$74) -> 0 | P162: 0 | Q162: 0 | R162: 0 | S162: 0 | T162: 0 | U162: 0 | V162: 0 | W162: 0 | X162: 0 | Y162: 0 | Z162: 0 | AA162: 0
A163: 1 | B163: 0.87 | C163: 1.273915466 | D163: 0.65 | E163: 2.2845 | F163: 2.2995 | G163: 2.1975 | H163: 2.2125 | I163: =IF($B$7=constants!$C$60,G163,IF($B$8=constants!$C$60,C163,E163)) -> 2.2845 | J163: =IF($B$7=constants!$C$60,H163,IF($B$8=constants!$C$60,D163,F163)) -> 2.2995 | K163: 1 | L163: 0 | M163: 0 | N163: 0 | O163: =IF(OR($B$22=constants!$B$60,AND(I163>$B$12,$B$12<>-1)),O162+(N163-O162)*$O$74,O162+(L163-O162)*$O$74) -> 0 | P163: 0 | Q163: 0 | R163: 0 | S163: 0 | T163: 0 | U163: 0 | V163: 0 | W163: 0 | X163: 0 | Y163: 0 | Z163: 0 | AA163: 0
A164: 1 | B164: 0.88 | C164: 1.276347256 | D164: 0.65 | E164: 2.2845 | F164: 2.2995 | G164: 2.1965 | H164: 2.2115 | I164: =IF($B$7=constants!$C$60,G164,IF($B$8=constants!$C$60,C164,E164)) -> 2.2845 | J164: =IF($B$7=constants!$C$60,H164,IF($B$8=constants!$C$60,D164,F164)) -> 2.2995 | K164: 1 | L164: 0 | M164: 0 | N164: 0 | O164: =IF(OR($B$22=constants!$B$60,AND(I164>$B$12,$B$12<>-1)),O163+(N164-O163)*$O$74,O163+(L164-O163)*$O$74) -> 0 | P164: 0 | Q164: 0 | R164: 0 | S164: 0 | T164: 0 | U164: 0 | V164: 0 | W164: 0 | X164: 0 | Y164: 0 | Z164: 0 | AA164: 0
A165: 1 | B165: 0.89 | C165: 1.278699322 | D165: 0.65 | E165: 2.2845 | F165: 2.2995 | G165: 2.1955 | H165: 2.2105 | I165: =IF($B$7=constants!$C$60,G165,IF($B$8=constants!$C$60,C165,E165)) -> 2.2845 | J165: =IF($B$7=constants!$C$60,H165,IF($B$8=constants!$C$60,D165,F165)) -> 2.2995 | K165: 1 | L165: 0 | M165: 0 | N165: 0 | O165: =IF(OR($B$22=constants!$B$60,AND(I165>$B$12,$B$12<>-1)),O164+(N165-O164)*$O$74,O164+(L165-O164)*$O$74) -> 0 | P165: 0 | Q165: 0 | R165: 0 | S165: 0 | T165: 0 | U165: 0 | V165: 0 | W165: 0 | X165: 0 | Y165: 0 | Z165: 0 | AA165: 0
A166: 1 | B166: 0.9 | C166: 1.280974279 | D166: 0.65 | E166: 2.2845 | F166: 2.2995 | G166: 2.1945 | H166: 2.2095 | I166: =IF($B$7=constants!$C$60,G166,IF($B$8=constants!$C$60,C166,E166)) -> 2.2845 | J166: =IF($B$7=constants!$C$60,H166,IF($B$8=constants!$C$60,D166,F166)) -> 2.2995 | K166: 1 | L166: 0 | M166: 0 | N166: 0 | O166: =IF(OR($B$22=constants!$B$60,AND(I166>$B$12,$B$12<>-1)),O165+(N166-O165)*$O$74,O165+(L166-O165)*$O$74) -> 0 | P166: 0 | Q166: 0 | R166: 0 | S166: 0 | T166: 0 | U166: 0 | V166: 0 | W166: 0 | X166: 0 | Y166: 0 | Z166: 0 | AA166: 0
A167: 1 | B167: 0.91 | C167: 1.283174654 | D167: 0.65 | E167: 2.2845 | F167: 2.2995 | G167: 2.1935 | H167: 2.2085 | I167: =IF($B$7=constants!$C$60,G167,IF($B$8=constants!$C$60,C167,E167)) -> 2.2845 | J167: =IF($B$7=constants!$C$60,H167,IF($B$8=constants!$C$60,D167,F167)) -> 2.2995 | K167: 1 | L167: 0 | M167: 0 | N167: 0 | O167: =IF(OR($B$22=constants!$B$60,AND(I167>$B$12,$B$12<>-1)),O166+(N167-O166)*$O$74,O166+(L167-O166)*$O$74) -> 0 | P167: 0 | Q167: 0 | R167: 0 | S167: 0 | T167: 0 | U167: 0 | V167: 0 | W167: 0 | X167: 0 | Y167: 0 | Z167: 0 | AA167: 0
A168: 1 | B168: 0.92 | C168: 1.285302892 | D168: 0.65 | E168: 2.2845 | F168: 2.2995 | G168: 2.1925 | H168: 2.2075 | I168: =IF($B$7=constants!$C$60,G168,IF($B$8=constants!$C$60,C168,E168)) -> 2.2845 | J168: =IF($B$7=constants!$C$60,H168,IF($B$8=constants!$C$60,D168,F168)) -> 2.2995 | K168: 1 | L168: 0 | M168: 0 | N168: 0 | O168: =IF(OR($B$22=constants!$B$60,AND(I168>$B$12,$B$12<>-1)),O167+(N168-O167)*$O$74,O167+(L168-O167)*$O$74) -> 0 | P168: 0 | Q168: 0 | R168: 0 | S168: 0 | T168: 0 | U168: 0 | V168: 0 | W168: 0 | X168: 0 | Y168: 0 | Z168: 0 | AA168: 0
A169: 1 | B169: 0.93 | C169: 1.287361357 | D169: 0.65 | E169: 2.2845 | F169: 2.2995 | G169: 2.1915 | H169: 2.2065 | I169: =IF($B$7=constants!$C$60,G169,IF($B$8=constants!$C$60,C169,E169)) -> 2.2845 | J169: =IF($B$7=constants!$C$60,H169,IF($B$8=constants!$C$60,D169,F169)) -> 2.2995 | K169: 1 | L169: 0 | M169: 0 | N169: 0 | O169: =IF(OR($B$22=constants!$B$60,AND(I169>$B$12,$B$12<>-1)),O168+(N169-O168)*$O$74,O168+(L169-O168)*$O$74) -> 0 | P169: 0 | Q169: 0 | R169: 0 | S169: 0 | T169: 0 | U169: 0 | V169: 0 | W169: 0 | X169: 0 | Y169: 0 | Z169: 0 | AA169: 0
A170: 1 | B170: 0.94 | C170: 1.289352339 | D170: 0.65 | E170: 2.2845 | F170: 2.2995 | G170: 2.1905 | H170: 2.2055 | I170: =IF($B$7=constants!$C$60,G170,IF($B$8=constants!$C$60,C170,E170)) -> 2.2845 | J170: =IF($B$7=constants!$C$60,H170,IF($B$8=constants!$C$60,D170,F170)) -> 2.2995 | K170: 1 | L170: 0 | M170: 0 | N170: 0 | O170: =IF(OR($B$22=constants!$B$60,AND(I170>$B$12,$B$12<>-1)),O169+(N170-O169)*$O$74,O169+(L170-O169)*$O$74) -> 0 | P170: 0 | Q170: 0 | R170: 0 | S170: 0 | T170: 0 | U170: 0 | V170: 0 | W170: 0 | X170: 0 | Y170: 0 | Z170: 0 | AA170: 0
A171: 1 | B171: 0.95 | C171: 1.291278048 | D171: 0.65 | E171: 2.2845 | F171: 2.2995 | G171: 2.1895 | H171: 2.2045 | I171: =IF($B$7=constants!$C$60,G171,IF($B$8=constants!$C$60,C171,E171)) -> 2.2845 | J171: =IF($B$7=constants!$C$60,H171,IF($B$8=constants!$C$60,D171,F171)) -> 2.2995 | K171: 1 | L171: 0 | M171: 0 | N171: 0 | O171: =IF(OR($B$22=constants!$B$60,AND(I171>$B$12,$B$12<>-1)),O170+(N171-O170)*$O$74,O170+(L171-O170)*$O$74) -> 0 | P171: 0 | Q171: 0 | R171: 0 | S171: 0 | T171: 0 | U171: 0 | V171: 0 | W171: 0 | X171: 0 | Y171: 0 | Z171: 0 | AA171: 0
A172: 1 | B172: 0.96 | C172: 1.293140625 | D172: 0.65 | E172: 2.2845 | F172: 2.2995 | G172: =(H172-$H$74)/(1-EXP(-1/G$74))*(1-EXP(-$B172/G$74)) -> 2.1885 | H172: 2.2035 | I172: =IF($B$7=constants!$C$60,G172,IF($B$8=constants!$C$60,C172,E172)) -> 2.2845 | J172: =IF($B$7=constants!$C$60,H172,IF($B$8=constants!$C$60,D172,F172)) -> 2.2995 | K172: 1 | L172: 0 | M172: 0 | N172: 0 | O172: =IF(OR($B$22=constants!$B$60,AND(I172>$B$12,$B$12<>-1)),O171+(N172-O171)*$O$74,O171+(L172-O171)*$O$74) -> 0 | P172: 0 | Q172: 0 | R172: 0 | S172: 0 | T172: 0 | U172: 0 | V172: 0 | W172: 0 | X172: 0 | Y172: 0 | Z172: 0 | AA172: 0
A173: 1 | B173: 0.97 | C173: =$B$18/(1-EXP(-1/$C$74))*(1-EXP(-B173/$C$74)) -> 1.294942139 | D173: 0.65 | E173: 2.2845 | F173: 2.2995 | G173: 2.1875 | H173: 2.2025 | I173: =IF($B$7=constants!$C$60,G173,IF($B$8=constants!$C$60,C173,E173)) -> 2.2845 | J173: =IF($B$7=constants!$C$60,H173,IF($B$8=constants!$C$60,D173,F173)) -> 2.2995 | K173: 1 | L173: 0 | M173: 0 | N173: 0 | O173: =IF(OR($B$22=constants!$B$60,AND(I173>$B$12,$B$12<>-1)),O172+(N173-O172)*$O$74,O172+(L173-O172)*$O$74) -> 0 | P173: 0 | Q173: 0 | R173: 0 | S173: 0 | T173: 0 | U173: 0 | V173: 0 | W173: 0 | X173: 0 | Y173: 0 | Z173: 0 | AA173: 0
A174: 1 | B174: 0.98 | C174: 1.296684593 | D174: 0.65 | E174: 2.2845 | F174: 2.2995 | G174: 2.1865 | H174: 2.2015 | I174: =IF($B$7=constants!$C$60,G174,IF($B$8=constants!$C$60,C174,E174)) -> 2.2845 | J174: =IF($B$7=constants!$C$60,H174,IF($B$8=constants!$C$60,D174,F174)) -> 2.2995 | K174: 1 | L174: 0 | M174: 0 | N174: 0 | O174: =IF(OR($B$22=constants!$B$60,AND(I174>$B$12,$B$12<>-1)),O173+(N174-O173)*$O$74,O173+(L174-O173)*$O$74) -> 0 | P174: 0 | Q174: 0 | R174: 0 | S174: 0 | T174: 0 | U174: 0 | V174: 0 | W174: 0 | X174: 0 | Y174: 0 | Z174: 0 | AA174: 0
A175: 1 | B175: 0.99 | C175: 1.298369922 | D175: 0.65 | E175: 2.2845 | F175: 2.2995 | G175: 2.1855 | H175: 2.2005 | I175: =IF($B$7=constants!$C$60,G175,IF($B$8=constants!$C$60,C175,E175)) -> 2.2845 | J175: =IF($B$7=constants!$C$60,H175,IF($B$8=constants!$C$60,D175,F175)) -> 2.2995 | K175: 1 | L175: 0 | M175: 0 | N175: 0 | O175: =IF(OR($B$22=constants!$B$60,AND(I175>$B$12,$B$12<>-1)),O174+(N175-O174)*$O$74,O174+(L175-O174)*$O$74) -> 0 | P175: 0 | Q175: 0 | R175: 0 | S175: 0 | T175: 0 | U175: 0 | V175: 0 | W175: 0 | X175: 0 | Y175: 0 | Z175: 0 | AA175: 0
A176: 1 | B176: 1 | C176: =$D$11*B176+$D$12 -> 1.3 | D176: 0.65 | E176: 2.2845 | F176: 2.2995 | G176: =B176*$H$41+$H$42 -> 2.1855 | H176: =H175 -> 2.2005 | I176: =IF($B$7=constants!$C$60,G176,IF($B$8=constants!$C$60,C176,E176)) -> 2.2845 | J176: =IF($B$7=constants!$C$60,H176,IF($B$8=constants!$C$60,D176,F176)) -> 2.2995 | K176: 1 | L176: =IF($K176=0,IF($I176>$B$16,L175+($I176-L175)*L$74-J$72,L175-L175/L$74),IF($I176>$B$17,L175+($I176-L175)*L$74-J$72,L175-L175/L$74)) -> 2.2845 | M176: =IF($K176=0,IF($I176>$B$16,M175+($B$20-M175)*M$74-K$72,M175-M175/M$74),IF($I176>$B$17,M175+($B$20-M175)*M$74-K$72,M175-M175/M$74)) -> 2.6 | N176: 2.2845 | O176: =IF(OR($B$22=constants!$B$60,AND(I176>$B$12,$B$12<>-1)),O175+(N176-O175)*$O$74,O175+(L176-O175)*$O$74) -> 2.05605 | P176: 2.03605 | Q176: =IF($K176=0,IF($I176>$B$16,R175+($B$21-R175)*R$74-R$72,R175-R175/R$74),IF($I176>$B$17,R175+($B$21-R175)*R$74-R$72,R175-R175/R$74)) -> 2.2 | R176: 2.2 | S176: 0 | T176: 0 | U176: 0 | V176: 0 | W176: 0 | X176: 0 | Y176: 0 | Z176: 0 | AA176: 0
A177: 1 | B177: 1.01 | C177: =$D$11*$B177+$D$12 -> 1.35312 | D177: 0.65 | E177: =$K$11*$B177+$K$12 -> 2.303515 | F177: =E177+$F$74 -> 2.318515 | G177: =B177*$H$41+$H$42 -> 2.2032 | H177: =H176 -> 2.2005 | I177: =IF($B$7=constants!$C$60,G177,IF($B$8=constants!$C$60,C177,E177)) -> 2.303515 | J177: =IF($B$7=constants!$C$60,H177,IF($B$8=constants!$C$60,D177,F177)) -> 2.318515 | K177: 1 | L177: 2.303515 | M177: =IF($K177=0,IF($I177>$B$16,M176+($B$20-M176)*M$74-K$72,M176-M176/M$74),IF($I177>$B$17,M176+($B$20-M176)*M$74-K$72,M176-M176/M$74)) -> 2.6 | N177: 2.303515 | O177: =IF(OR($B$22=constants!$B$60,AND(I177>$B$12,$B$12<>-1)),O176+(N177-O176)*$O$74,O176+(L177-O176)*$O$74) -> 2.2787685 | P177: 2.2587685 | Q177: 2.2 | R177: 2.2 | S177: 0 | T177: 0 | U177: 0 | V177: 0 | W177: 0 | X177: 0 | Y177: 0 | Z177: 0 | AA177: 0
A178: 1 | B178: 1.02 | C178: =$D$11*B178+$D$12 -> 1.40624 | D178: 0.65 | E178: =$K$11*$B178+$K$12 -> 2.30753 | F178: 2.32253 | G178: 2.2209 | H178: 2.2005 | I178: =IF($B$7=constants!$C$60,G178,IF($B$8=constants!$C$60,C178,E178)) -> 2.30753 | J178: =IF($B$7=constants!$C$60,H178,IF($B$8=constants!$C$60,D178,F178)) -> 2.32253 | K178: 1 | L178: 2.30753 | M178: =IF($K178=0,IF($I178>$B$16,M177+($B$20-M177)*M$74-K$72,M177-M177/M$74),IF($I178>$B$17,M177+($B$20-M177)*M$74-K$72,M177-M177/M$74)) -> 2.6 | N178: 2.30753 | O178: =IF(OR($B$22=constants!$B$60,AND(I178>$B$12,$B$12<>-1)),O177+(N178-O177)*$O$74,O177+(L178-O177)*$O$74) -> 2.30465385 | P178: 2.28465385 | Q178: 2.2 | R178: 2.2 | S178: 0 | T178: 0 | U178: 0 | V178: 0 | W178: 0 | X178: 0 | Y178: 0 | Z178: 0 | AA178: 0
A179: 1 | B179: 1.03 | C179: 1.45936 | D179: 0.65 | E179: 2.311545 | F179: 2.326545 | G179: 2.2386 | H179: 2.2005 | I179: =IF($B$7=constants!$C$60,G179,IF($B$8=constants!$C$60,C179,E179)) -> 2.311545 | J179: =IF($B$7=constants!$C$60,H179,IF($B$8=constants!$C$60,D179,F179)) -> 2.326545 | K179: 1 | L179: 2.311545 | M179: 2.6 | N179: 2.311545 | O179: =IF(OR($B$22=constants!$B$60,AND(I179>$B$12,$B$12<>-1)),O178+(N179-O178)*$O$74,O178+(L179-O178)*$O$74) -> 2.310855885 | P179: 2.290855885 | Q179: 2.2 | R179: 2.2 | S179: 0 | T179: 0 | U179: 0 | V179: 0 | W179: 0 | X179: 0 | Y179: 0 | Z179: 0 | AA179: 0
A180: 1 | B180: 1.04 | C180: 1.51248 | D180: 0.65 | E180: 2.31556 | F180: 2.33056 | G180: 2.2563 | H180: 2.2005 | I180: =IF($B$7=constants!$C$60,G180,IF($B$8=constants!$C$60,C180,E180)) -> 2.31556 | J180: =IF($B$7=constants!$C$60,H180,IF($B$8=constants!$C$60,D180,F180)) -> 2.33056 | K180: 1 | L180: 2.31556 | M180: 2.6 | N180: 2.31556 | O180: =IF(OR($B$22=constants!$B$60,AND(I180>$B$12,$B$12<>-1)),O179+(N180-O179)*$O$74,O179+(L180-O179)*$O$74) -> 2.315089588 | P180: 2.295089588 | Q180: 2.2 | R180: 2.2 | S180: 0 | T180: 0 | U180: 0 | V180: 0 | W180: 0 | X180: 0 | Y180: 0 | Z180: 0 | AA180: 0
A181: 1 | B181: 1.05 | C181: 1.5656 | D181: 0.65 | E181: 2.319575 | F181: 2.334575 | G181: 2.274 | H181: 2.2005 | I181: =IF($B$7=constants!$C$60,G181,IF($B$8=constants!$C$60,C181,E181)) -> 2.319575 | J181: =IF($B$7=constants!$C$60,H181,IF($B$8=constants!$C$60,D181,F181)) -> 2.334575 | K181: 1 | L181: 2.319575 | M181: 2.6 | N181: 2.319575 | O181: =IF(OR($B$22=constants!$B$60,AND(I181>$B$12,$B$12<>-1)),O180+(N181-O180)*$O$74,O180+(L181-O180)*$O$74) -> 2.319126459 | P181: 2.299126459 | Q181: 2.2 | R181: 2.2 | S181: 0 | T181: 0 | U181: 0 | V181: 0 | W181: 0 | X181: 0 | Y181: 0 | Z181: 0 | AA181: 0
A182: 1 | B182: 1.06 | C182: 1.61872 | D182: 0.65 | E182: 2.32359 | F182: 2.33859 | G182: 2.2917 | H182: 2.2005 | I182: =IF($B$7=constants!$C$60,G182,IF($B$8=constants!$C$60,C182,E182)) -> 2.32359 | J182: =IF($B$7=constants!$C$60,H182,IF($B$8=constants!$C$60,D182,F182)) -> 2.33859 | K182: 1 | L182: 2.32359 | M182: 2.6 | N182: 2.32359 | O182: =IF(OR($B$22=constants!$B$60,AND(I182>$B$12,$B$12<>-1)),O181+(N182-O181)*$O$74,O181+(L182-O181)*$O$74) -> 2.323143646 | P182: 2.303143646 | Q182: 2.2 | R182: 2.2 | S182: 0 | T182: 0 | U182: 0 | V182: 0 | W182: 0 | X182: 0 | Y182: 0 | Z182: 0 | AA182: 0
A183: 1 | B183: 1.07 | C183: 1.67184 | D183: 0.65 | E183: 2.327605 | F183: 2.342605 | G183: 2.3094 | H183: 2.2005 | I183: =IF($B$7=constants!$C$60,G183,IF($B$8=constants!$C$60,C183,E183)) -> 2.327605 | J183: =IF($B$7=constants!$C$60,H183,IF($B$8=constants!$C$60,D183,F183)) -> 2.342605 | K183: 1 | L183: 2.327605 | M183: 2.6 | N183: 2.327605 | O183: =IF(OR($B$22=constants!$B$60,AND(I183>$B$12,$B$12<>-1)),O182+(N183-O182)*$O$74,O182+(L183-O182)*$O$74) -> 2.327158865 | P183: 2.307158865 | Q183: 2.2 | R183: 2.2 | S183: 0 | T183: 0 | U183: 0 | V183: 0 | W183: 0 | X183: 0 | Y183: 0 | Z183: 0 | AA183: 0
A184: 1 | B184: 1.08 | C184: 1.72496 | D184: 0.65 | E184: 2.33162 | F184: 2.34662 | G184: 2.3271 | H184: 2.2005 | I184: =IF($B$7=constants!$C$60,G184,IF($B$8=constants!$C$60,C184,E184)) -> 2.33162 | J184: =IF($B$7=constants!$C$60,H184,IF($B$8=constants!$C$60,D184,F184)) -> 2.34662 | K184: 1 | L184: 2.33162 | M184: 2.6 | N184: 2.33162 | O184: =IF(OR($B$22=constants!$B$60,AND(I184>$B$12,$B$12<>-1)),O183+(N184-O183)*$O$74,O183+(L184-O183)*$O$74) -> 2.331173886 | P184: 2.311173886 | Q184: 2.2 | R184: 2.2 | S184: 0 | T184: 0 | U184: 0 | V184: 0 | W184: 0 | X184: 0 | Y184: 0 | Z184: 0 | AA184: 0
A185: 1 | B185: 1.09 | C185: 1.77808 | D185: 0.65 | E185: 2.335635 | F185: 2.350635 | G185: 2.3448 | H185: 2.2005 | I185: =IF($B$7=constants!$C$60,G185,IF($B$8=constants!$C$60,C185,E185)) -> 2.335635 | J185: =IF($B$7=constants!$C$60,H185,IF($B$8=constants!$C$60,D185,F185)) -> 2.350635 | K185: 1 | L185: 2.335635 | M185: 2.6 | N185: 2.335635 | O185: =IF(OR($B$22=constants!$B$60,AND(I185>$B$12,$B$12<>-1)),O184+(N185-O184)*$O$74,O184+(L185-O184)*$O$74) -> 2.335188889 | P185: 2.315188889 | Q185: 2.2 | R185: 2.2 | S185: 0 | T185: 0 | U185: 0 | V185: 0 | W185: 0 | X185: 0 | Y185: 0 | Z185: 0 | AA185: 0
A186: 1 | B186: 1.1 | C186: 1.8312 | D186: 0.65 | E186: 2.33965 | F186: 2.35465 | G186: 2.3625 | H186: 2.2005 | I186: =IF($B$7=constants!$C$60,G186,IF($B$8=constants!$C$60,C186,E186)) -> 2.33965 | J186: =IF($B$7=constants!$C$60,H186,IF($B$8=constants!$C$60,D186,F186)) -> 2.35465 | K186: 1 | L186: 2.33965 | M186: 2.6 | N186: 2.33965 | O186: =IF(OR($B$22=constants!$B$60,AND(I186>$B$12,$B$12<>-1)),O185+(N186-O185)*$O$74,O185+(L186-O185)*$O$74) -> 2.339203889 | P186: 2.319203889 | Q186: 2.2 | R186: 2.2 | S186: 0 | T186: 0 | U186: 0 | V186: 0 | W186: 0 | X186: 0 | Y186: 0 | Z186: 0 | AA186: 0
A187: 1 | B187: 1.11 | C187: 1.88432 | D187: 0.65 | E187: 2.343665 | F187: 2.358665 | G187: 2.3802 | H187: 2.2005 | I187: =IF($B$7=constants!$C$60,G187,IF($B$8=constants!$C$60,C187,E187)) -> 2.343665 | J187: =IF($B$7=constants!$C$60,H187,IF($B$8=constants!$C$60,D187,F187)) -> 2.358665 | K187: 1 | L187: 2.343665 | M187: 2.6 | N187: 2.343665 | O187: =IF(OR($B$22=constants!$B$60,AND(I187>$B$12,$B$12<>-1)),O186+(N187-O186)*$O$74,O186+(L187-O186)*$O$74) -> 2.343218889 | P187: 2.323218889 | Q187: 2.2 | R187: 2.2 | S187: 0 | T187: 0 | U187: 0 | V187: 0 | W187: 0 | X187: 0 | Y187: 0 | Z187: 0 | AA187: 0
A188: 1 | B188: 1.12 | C188: 1.93744 | D188: 0.65 | E188: 2.34768 | F188: 2.36268 | G188: 2.3979 | H188: 2.2005 | I188: =IF($B$7=constants!$C$60,G188,IF($B$8=constants!$C$60,C188,E188)) -> 2.34768 | J188: =IF($B$7=constants!$C$60,H188,IF($B$8=constants!$C$60,D188,F188)) -> 2.36268 | K188: 1 | L188: 2.34768 | M188: 2.6 | N188: 2.34768 | O188: =IF(OR($B$22=constants!$B$60,AND(I188>$B$12,$B$12<>-1)),O187+(N188-O187)*$O$74,O187+(L188-O187)*$O$74) -> 2.347233889 | P188: 2.327233889 | Q188: 2.2 | R188: 2.2 | S188: 0 | T188: 0 | U188: 0 | V188: 0 | W188: 0 | X188: 0 | Y188: 0 | Z188: 0 | AA188: 0
A189: 1 | B189: 1.13 | C189: 1.99056 | D189: 0.65 | E189: 2.351695 | F189: 2.366695 | G189: 2.4156 | H189: 2.2005 | I189: =IF($B$7=constants!$C$60,G189,IF($B$8=constants!$C$60,C189,E189)) -> 2.351695 | J189: =IF($B$7=constants!$C$60,H189,IF($B$8=constants!$C$60,D189,F189)) -> 2.366695 | K189: 1 | L189: 2.351695 | M189: 2.6 | N189: 2.351695 | O189: =IF(OR($B$22=constants!$B$60,AND(I189>$B$12,$B$12<>-1)),O188+(N189-O188)*$O$74,O188+(L189-O188)*$O$74) -> 2.351248889 | P189: 2.331248889 | Q189: 2.2 | R189: 2.2 | S189: 0 | T189: 0 | U189: 0 | V189: 0 | W189: 0 | X189: 0 | Y189: 0 | Z189: 0 | AA189: 0
A190: 1 | B190: 1.14 | C190: 2.04368 | D190: 0.65 | E190: 2.35571 | F190: 2.37071 | G190: 2.4333 | H190: 2.2005 | I190: =IF($B$7=constants!$C$60,G190,IF($B$8=constants!$C$60,C190,E190)) -> 2.35571 | J190: =IF($B$7=constants!$C$60,H190,IF($B$8=constants!$C$60,D190,F190)) -> 2.37071 | K190: 1 | L190: 2.35571 | M190: 2.6 | N190: 2.35571 | O190: =IF(OR($B$22=constants!$B$60,AND(I190>$B$12,$B$12<>-1)),O189+(N190-O189)*$O$74,O189+(L190-O189)*$O$74) -> 2.355263889 | P190: 2.335263889 | Q190: 2.2 | R190: 2.2 | S190: 0 | T190: 0 | U190: 0 | V190: 0 | W190: 0 | X190: 0 | Y190: 0 | Z190: 0 | AA190: 0
A191: 1 | B191: 1.15 | C191: 2.0968 | D191: 0.65 | E191: 2.359725 | F191: 2.374725 | G191: 2.451 | H191: 2.2005 | I191: =IF($B$7=constants!$C$60,G191,IF($B$8=constants!$C$60,C191,E191)) -> 2.359725 | J191: =IF($B$7=constants!$C$60,H191,IF($B$8=constants!$C$60,D191,F191)) -> 2.374725 | K191: 1 | L191: 2.359725 | M191: 2.6 | N191: 2.359725 | O191: =IF(OR($B$22=constants!$B$60,AND(I191>$B$12,$B$12<>-1)),O190+(N191-O190)*$O$74,O190+(L191-O190)*$O$74) -> 2.359278889 | P191: 2.339278889 | Q191: 2.2 | R191: 2.2 | S191: 0 | T191: 0 | U191: 0 | V191: 0 | W191: 0 | X191: 0 | Y191: 0 | Z191: 0 | AA191: 0
A192: 1 | B192: 1.16 | C192: 2.14992 | D192: 0.65 | E192: 2.36374 | F192: 2.37874 | G192: 2.4687 | H192: 2.2005 | I192: =IF($B$7=constants!$C$60,G192,IF($B$8=constants!$C$60,C192,E192)) -> 2.36374 | J192: =IF($B$7=constants!$C$60,H192,IF($B$8=constants!$C$60,D192,F192)) -> 2.37874 | K192: 1 | L192: 2.36374 | M192: 2.6 | N192: 2.36374 | O192: =IF(OR($B$22=constants!$B$60,AND(I192>$B$12,$B$12<>-1)),O191+(N192-O191)*$O$74,O191+(L192-O191)*$O$74) -> 2.363293889 | P192: 2.343293889 | Q192: 2.2 | R192: 2.2 | S192: 0 | T192: 0 | U192: 0 | V192: 0 | W192: 0 | X192: 0 | Y192: 0 | Z192: 0 | AA192: 0
A193: 1 | B193: 1.17 | C193: 2.20304 | D193: 0.65 | E193: 2.367755 | F193: 2.382755 | G193: 2.4864 | H193: 2.2005 | I193: =IF($B$7=constants!$C$60,G193,IF($B$8=constants!$C$60,C193,E193)) -> 2.367755 | J193: =IF($B$7=constants!$C$60,H193,IF($B$8=constants!$C$60,D193,F193)) -> 2.382755 | K193: 1 | L193: 2.367755 | M193: 2.6 | N193: =IF(M193>I193,L193,M193) -> 2.367755 | O193: =IF(OR($B$22=constants!$B$60,AND(I193>$B$12,$B$12<>-1)),O192+(N193-O192)*$O$74,O192+(L193-O192)*$O$74) -> 2.367308889 | P193: 2.347308889 | Q193: 2.2 | R193: 2.2 | S193: 0 | T193: 0 | U193: 0 | V193: 0 | W193: 0 | X193: 0 | Y193: 0 | Z193: 0 | AA193: 0
A194: 1 | B194: 1.18 | C194: 2.25616 | D194: 0.65 | E194: 2.37177 | F194: 2.38677 | G194: 2.5041 | H194: 2.2005 | I194: =IF($B$7=constants!$C$60,G194,IF($B$8=constants!$C$60,C194,E194)) -> 2.37177 | J194: =IF($B$7=constants!$C$60,H194,IF($B$8=constants!$C$60,D194,F194)) -> 2.38677 | K194: 1 | L194: 2.37177 | M194: 2.6 | N194: =IF(M194>I194,L194,M194) -> 2.37177 | O194: =IF(OR($B$22=constants!$B$60,AND(I194>$B$12,$B$12<>-1)),O193+(N194-O193)*$O$74,O193+(L194-O193)*$O$74) -> 2.371323889 | P194: 2.351323889 | Q194: 2.2 | R194: 2.2 | S194: 0 | T194: 0 | U194: 0 | V194: 0 | W194: 0 | X194: 0 | Y194: 0 | Z194: 0 | AA194: 0
A195: 1 | B195: 1.19 | C195: 2.30928 | D195: 0.65 | E195: 2.375785 | F195: 2.390785 | G195: 2.5218 | H195: 2.2005 | I195: =IF($B$7=constants!$C$60,G195,IF($B$8=constants!$C$60,C195,E195)) -> 2.375785 | J195: =IF($B$7=constants!$C$60,H195,IF($B$8=constants!$C$60,D195,F195)) -> 2.390785 | K195: 1 | L195: 2.375785 | M195: 2.6 | N195: 2.375785 | O195: =IF(OR($B$22=constants!$B$60,AND(I195>$B$12,$B$12<>-1)),O194+(N195-O194)*$O$74,O194+(L195-O194)*$O$74) -> 2.375338889 | P195: 2.355338889 | Q195: 2.2 | R195: 2.2 | S195: 0 | T195: 0 | U195: 0 | V195: 0 | W195: 0 | X195: 0 | Y195: 0 | Z195: 0 | AA195: 0
A196: 1 | B196: 1.2 | C196: 2.3624 | D196: 0.65 | E196: 2.3798 | F196: 2.3948 | G196: 2.5395 | H196: 2.2005 | I196: =IF($B$7=constants!$C$60,G196,IF($B$8=constants!$C$60,C196,E196)) -> 2.3798 | J196: =IF($B$7=constants!$C$60,H196,IF($B$8=constants!$C$60,D196,F196)) -> 2.3948 | K196: 1 | L196: 2.3798 | M196: 2.6 | N196: 2.3798 | O196: =IF(OR($B$22=constants!$B$60,AND(I196>$B$12,$B$12<>-1)),O195+(N196-O195)*$O$74,O195+(L196-O195)*$O$74) -> 2.379353889 | P196: 2.359353889 | Q196: 2.2 | R196: 2.2 | S196: 0 | T196: 0 | U196: 0 | V196: 0 | W196: 0 | X196: 0 | Y196: 0 | Z196: 0 | AA196: 0
A197: 1 | B197: 1.21 | C197: 2.41552 | D197: 0.65 | E197: 2.383815 | F197: 2.398815 | G197: 2.5572 | H197: 2.2005 | I197: =IF($B$7=constants!$C$60,G197,IF($B$8=constants!$C$60,C197,E197)) -> 2.383815 | J197: =IF($B$7=constants!$C$60,H197,IF($B$8=constants!$C$60,D197,F197)) -> 2.398815 | K197: 1 | L197: 2.383815 | M197: 2.6 | N197: 2.383815 | O197: =IF(OR($B$22=constants!$B$60,AND(I197>$B$12,$B$12<>-1)),O196+(N197-O196)*$O$74,O196+(L197-O196)*$O$74) -> 2.383368889 | P197: 2.363368889 | Q197: 2.2 | R197: 2.2 | S197: 0 | T197: 0 | U197: 0 | V197: 0 | W197: 0 | X197: 0 | Y197: 0 | Z197: 0 | AA197: 0
A198: 1 | B198: 1.22 | C198: 2.46864 | D198: 0.65 | E198: 2.38783 | F198: 2.40283 | G198: 2.5749 | H198: 2.2005 | I198: =IF($B$7=constants!$C$60,G198,IF($B$8=constants!$C$60,C198,E198)) -> 2.38783 | J198: =IF($B$7=constants!$C$60,H198,IF($B$8=constants!$C$60,D198,F198)) -> 2.40283 | K198: 1 | L198: 2.38783 | M198: 2.6 | N198: 2.38783 | O198: =IF(OR($B$22=constants!$B$60,AND(I198>$B$12,$B$12<>-1)),O197+(N198-O197)*$O$74,O197+(L198-O197)*$O$74) -> 2.387383889 | P198: 2.367383889 | Q198: 2.2 | R198: 2.2 | S198: 0 | T198: 0 | U198: 0 | V198: 0 | W198: 0 | X198: 0 | Y198: 0 | Z198: 0 | AA198: 0
A199: 1 | B199: 1.23 | C199: 2.52176 | D199: 0.65 | E199: 2.391845 | F199: 2.406845 | G199: 2.5926 | H199: 2.2005 | I199: =IF($B$7=constants!$C$60,G199,IF($B$8=constants!$C$60,C199,E199)) -> 2.391845 | J199: =IF($B$7=constants!$C$60,H199,IF($B$8=constants!$C$60,D199,F199)) -> 2.406845 | K199: 1 | L199: 2.391845 | M199: 2.6 | N199: 2.391845 | O199: =IF(OR($B$22=constants!$B$60,AND(I199>$B$12,$B$12<>-1)),O198+(N199-O198)*$O$74,O198+(L199-O198)*$O$74) -> 2.391398889 | P199: 2.371398889 | Q199: 2.2 | R199: 2.2 | S199: 0 | T199: 0 | U199: 0 | V199: 0 | W199: 0 | X199: 0 | Y199: 0 | Z199: 0 | AA199: 0
A200: 1 | B200: 1.24 | C200: 2.57488 | D200: 0.65 | E200: 2.39586 | F200: 2.41086 | G200: 2.6103 | H200: 2.2005 | I200: =IF($B$7=constants!$C$60,G200,IF($B$8=constants!$C$60,C200,E200)) -> 2.39586 | J200: =IF($B$7=constants!$C$60,H200,IF($B$8=constants!$C$60,D200,F200)) -> 2.41086 | K200: 1 | L200: 2.39586 | M200: 2.6 | N200: 2.39586 | O200: =IF(OR($B$22=constants!$B$60,AND(I200>$B$12,$B$12<>-1)),O199+(N200-O199)*$O$74,O199+(L200-O199)*$O$74) -> 2.395413889 | P200: 2.375413889 | Q200: 2.2 | R200: 2.2 | S200: 0 | T200: 0 | U200: 0 | V200: 0 | W200: 0 | X200: 0 | Y200: 0 | Z200: 0 | AA200: 0
A201: 1 | B201: 1.25 | C201: =$D$15*B201+$D$16 -> 2.628 | D201: 0.65 | E201: 2.399875 | F201: 2.414875 | G201: =B201*$H$46+$H$47 -> 2.628 | H201: 2.2005 | I201: =IF($B$7=constants!$C$60,G201,IF($B$8=constants!$C$60,C201,E201)) -> 2.399875 | J201: =IF($B$7=constants!$C$60,H201,IF($B$8=constants!$C$60,D201,F201)) -> 2.414875 | K201: 1 | L201: 2.399875 | M201: 2.6 | N201: 2.399875 | O201: =IF(OR($B$22=constants!$B$60,AND(I201>$B$12,$B$12<>-1)),O200+(N201-O200)*$O$74,O200+(L201-O200)*$O$74) -> 2.399428889 | P201: 2.379428889 | Q201: 2.2 | R201: 2.2 | S201: 0 | T201: 0 | U201: 0 | V201: 0 | W201: 0 | X201: 0 | Y201: 0 | Z201: 0 | AA201: 0
A202: 1 | B202: 1.26 | C202: =$D$15*$B202+$D$16 -> 2.60172 | D202: =$G$15*$B202+$G$16 -> 0.67642 | E202: 2.40389 | F202: 2.41889 | G202: =B202*$H$46+$H$47 -> 2.60172 | H202: 2.2005 | I202: =IF($B$7=constants!$C$60,G202,IF($B$8=constants!$C$60,C202,E202)) -> 2.40389 | J202: =IF($B$7=constants!$C$60,H202,IF($B$8=constants!$C$60,D202,F202)) -> 2.41889 | K202: 1 | L202: 2.40389 | M202: 2.6 | N202: 2.40389 | O202: =IF(OR($B$22=constants!$B$60,AND(I202>$B$12,$B$12<>-1)),O201+(N202-O201)*$O$74,O201+(L202-O201)*$O$74) -> 2.403443889 | P202: 2.383443889 | Q202: 2.2 | R202: 2.2 | S202: 0 | T202: 0 | U202: 0 | V202: 0 | W202: 0 | X202: 0 | Y202: 0 | Z202: 0 | AA202: 0
A203: 1 | B203: 1.27 | C203: =$D$15*B203+$D$16 -> 2.57544 | D203: =$G$15*$B203+$G$16 -> 0.70284 | E203: 2.407905 | F203: 2.422905 | G203: 2.57544 | H203: 2.2005 | I203: =IF($B$7=constants!$C$60,G203,IF($B$8=constants!$C$60,C203,E203)) -> 2.407905 | J203: =IF($B$7=constants!$C$60,H203,IF($B$8=constants!$C$60,D203,F203)) -> 2.422905 | K203: 1 | L203: 2.407905 | M203: 2.6 | N203: 2.407905 | O203: =IF(OR($B$22=constants!$B$60,AND(I203>$B$12,$B$12<>-1)),O202+(N203-O202)*$O$74,O202+(L203-O202)*$O$74) -> 2.407458889 | P203: 2.387458889 | Q203: 2.2 | R203: 2.2 | S203: 0 | T203: 0 | U203: 0 | V203: 0 | W203: 0 | X203: 0 | Y203: 0 | Z203: 0 | AA203: 0
A204: 1 | B204: 1.28 | C204: 2.54916 | D204: 0.72926 | E204: 2.41192 | F204: 2.42692 | G204: 2.54916 | H204: 2.2005 | I204: =IF($B$7=constants!$C$60,G204,IF($B$8=constants!$C$60,C204,E204)) -> 2.41192 | J204: =IF($B$7=constants!$C$60,H204,IF($B$8=constants!$C$60,D204,F204)) -> 2.42692 | K204: 1 | L204: 2.41192 | M204: 2.6 | N204: 2.41192 | O204: =IF(OR($B$22=constants!$B$60,AND(I204>$B$12,$B$12<>-1)),O203+(N204-O203)*$O$74,O203+(L204-O203)*$O$74) -> 2.411473889 | P204: 2.391473889 | Q204: 2.2 | R204: 2.2 | S204: 0 | T204: 0 | U204: 0 | V204: 0 | W204: 0 | X204: 0 | Y204: 0 | Z204: 0 | AA204: 0
A205: =IF(B205<=100,1,IF(B205<=200,2,3)) -> 1 | B205: 1.29 | C205: 2.52288 | D205: 0.75568 | E205: 2.415935 | F205: 2.430935 | G205: 2.52288 | H205: 2.2005 | I205: =IF($B$7=constants!$C$60,G205,IF($B$8=constants!$C$60,C205,E205)) -> 2.415935 | J205: =IF($B$7=constants!$C$60,H205,IF($B$8=constants!$C$60,D205,F205)) -> 2.430935 | K205: 1 | L205: 2.415935 | M205: 2.6 | N205: 2.415935 | O205: =IF(OR($B$22=constants!$B$60,AND(I205>$B$12,$B$12<>-1)),O204+(N205-O204)*$O$74,O204+(L205-O204)*$O$74) -> 2.415488889 | P205: =IF(O205=0,0,O205-$P$72) -> 2.395488889 | Q205: 2.2 | R205: 2.2 | S205: =S$72*IF(S$71=0,$L205,IF(S$71=1,$R205,IF($B$12=-1,$L205,IF($I205>$B$12,$R205,$L205)))) -> 0 | T205: 0 | U205: 0 | V205: 0 | W205: 0 | X205: 0 | Y205: =IF(V205=0,0,V205-Y$72) -> 0 | Z205: =IF(W205=0,0,W205-Z$72) -> 0 | AA205: =IF(X205=0,0,X205-AA$72) -> 0
A206: 1 | B206: =B205+0.01 -> 1.3 | C206: 2.4966 | D206: 0.7821 | E206: 2.41995 | F206: 2.43495 | G206: 2.4966 | H206: 2.2005 | I206: =IF($B$7=constants!$C$60,G206,IF($B$8=constants!$C$60,C206,E206)) -> 2.41995 | J206: =IF($B$7=constants!$C$60,H206,IF($B$8=constants!$C$60,D206,F206)) -> 2.43495 | K206: =IF(AND(I206>$B$16,K205=0),1,IF(AND(I206<$B$17,K205=1),0,K205)) -> 1 | L206: 2.41995 | M206: 2.6 | N206: 2.41995 | O206: =IF(OR($B$22=constants!$B$60,AND(I206>$B$12,$B$12<>-1)),O205+(N206-O205)*$O$74,O205+(L206-O205)*$O$74) -> 2.419503889 | P206: 2.399503889 | Q206: 2.2 | R206: =IF(Q206>I206,I206,Q206) -> 2.2 | S206: 0 | T206: 0 | U206: 0 | V206: =V205+(S206-V$72-V205)*V$74 -> 0 | W206: =W205+(T206-W$72-W205)*W$74 -> 0 | X206: =X205+(U206-X$72-X205)*X$74 -> 0 | Y206: 0 | Z206: 0 | AA206: 0
A207: 1 | B207: 1.31 | C207: 2.47032 | D207: 0.80852 | E207: 2.423965 | F207: 2.438965 | G207: 2.47032 | H207: 2.2005 | I207: =IF($B$7=constants!$C$60,G207,IF($B$8=constants!$C$60,C207,E207)) -> 2.423965 | J207: =IF($B$7=constants!$C$60,H207,IF($B$8=constants!$C$60,D207,F207)) -> 2.438965 | K207: 1 | L207: 2.423965 | M207: 2.6 | N207: 2.423965 | O207: =IF(OR($B$22=constants!$B$60,AND(I207>$B$12,$B$12<>-1)),O206+(N207-O206)*$O$74,O206+(L207-O206)*$O$74) -> 2.423518889 | P207: 2.403518889 | Q207: 2.2 | R207: 2.2 | S207: 0 | T207: 0 | U207: 0 | V207: 0 | W207: 0 | X207: 0 | Y207: 0 | Z207: 0 | AA207: 0
A208: 1 | B208: 1.32 | C208: 2.44404 | D208: 0.83494 | E208: 2.42798 | F208: 2.44298 | G208: 2.44404 | H208: 2.2005 | I208: =IF($B$7=constants!$C$60,G208,IF($B$8=constants!$C$60,C208,E208)) -> 2.42798 | J208: =IF($B$7=constants!$C$60,H208,IF($B$8=constants!$C$60,D208,F208)) -> 2.44298 | K208: 1 | L208: 2.42798 | M208: 2.6 | N208: 2.42798 | O208: =IF(OR($B$22=constants!$B$60,AND(I208>$B$12,$B$12<>-1)),O207+(N208-O207)*$O$74,O207+(L208-O207)*$O$74) -> 2.427533889 | P208: 2.407533889 | Q208: 2.2 | R208: 2.2 | S208: 0 | T208: 0 | U208: 0 | V208: 0 | W208: 0 | X208: 0 | Y208: 0 | Z208: 0 | AA208: 0
A209: 1 | B209: 1.33 | C209: 2.41776 | D209: 0.86136 | E209: 2.431995 | F209: =E209+$F$74 -> 2.446995 | G209: 2.41776 | H209: 2.2005 | I209: =IF($B$7=constants!$C$60,G209,IF($B$8=constants!$C$60,C209,E209)) -> 2.431995 | J209: =IF($B$7=constants!$C$60,H209,IF($B$8=constants!$C$60,D209,F209)) -> 2.446995 | K209: 1 | L209: 2.431995 | M209: 2.6 | N209: 2.431995 | O209: =IF(OR($B$22=constants!$B$60,AND(I209>$B$12,$B$12<>-1)),O208+(N209-O208)*$O$74,O208+(L209-O208)*$O$74) -> 2.431548889 | P209: 2.411548889 | Q209: 2.2 | R209: 2.2 | S209: 0 | T209: 0 | U209: 0 | V209: 0 | W209: 0 | X209: 0 | Y209: 0 | Z209: 0 | AA209: 0
A210: 1 | B210: 1.34 | C210: 2.39148 | D210: 0.88778 | E210: 2.43601 | F210: 2.45101 | G210: 2.39148 | H210: 2.2005 | I210: =IF($B$7=constants!$C$60,G210,IF($B$8=constants!$C$60,C210,E210)) -> 2.43601 | J210: =IF($B$7=constants!$C$60,H210,IF($B$8=constants!$C$60,D210,F210)) -> 2.45101 | K210: 1 | L210: 2.43601 | M210: 2.6 | N210: 2.43601 | O210: =IF(OR($B$22=constants!$B$60,AND(I210>$B$12,$B$12<>-1)),O209+(N210-O209)*$O$74,O209+(L210-O209)*$O$74) -> 2.435563889 | P210: 2.415563889 | Q210: 2.2 | R210: 2.2 | S210: 0 | T210: 0 | U210: 0 | V210: 0 | W210: 0 | X210: 0 | Y210: 0 | Z210: 0 | AA210: 0
A211: 1 | B211: 1.35 | C211: 2.3652 | D211: 0.9142 | E211: 2.440025 | F211: 2.455025 | G211: 2.3652 | H211: 2.2005 | I211: =IF($B$7=constants!$C$60,G211,IF($B$8=constants!$C$60,C211,E211)) -> 2.440025 | J211: =IF($B$7=constants!$C$60,H211,IF($B$8=constants!$C$60,D211,F211)) -> 2.455025 | K211: 1 | L211: 2.440025 | M211: 2.6 | N211: 2.440025 | O211: =IF(OR($B$22=constants!$B$60,AND(I211>$B$12,$B$12<>-1)),O210+(N211-O210)*$O$74,O210+(L211-O210)*$O$74) -> 2.439578889 | P211: 2.419578889 | Q211: 2.2 | R211: 2.2 | S211: 0 | T211: 0 | U211: 0 | V211: 0 | W211: 0 | X211: 0 | Y211: 0 | Z211: 0 | AA211: 0
A212: 1 | B212: 1.36 | C212: 2.33892 | D212: 0.94062 | E212: 2.44404 | F212: 2.45904 | G212: 2.33892 | H212: 2.2005 | I212: =IF($B$7=constants!$C$60,G212,IF($B$8=constants!$C$60,C212,E212)) -> 2.44404 | J212: =IF($B$7=constants!$C$60,H212,IF($B$8=constants!$C$60,D212,F212)) -> 2.45904 | K212: 1 | L212: 2.44404 | M212: 2.6 | N212: 2.44404 | O212: =IF(OR($B$22=constants!$B$60,AND(I212>$B$12,$B$12<>-1)),O211+(N212-O211)*$O$74,O211+(L212-O211)*$O$74) -> 2.443593889 | P212: 2.423593889 | Q212: 2.2 | R212: 2.2 | S212: 0 | T212: 0 | U212: 0 | V212: 0 | W212: 0 | X212: 0 | Y212: 0 | Z212: 0 | AA212: 0
... 164 more rows
